Service Area Categorisation,Service Division Categorisation,Responsible Unit,Expenses Types,Detailed Expenses Type,Expense Code,Narrative,Payment Date,Transaction Number,Order ID,Amount,Capital/Revenue,Supplier Name
Community Care,ADULT DISABILITY SERVICES,Social Care and Health,Third Party Payments,Third Party,Personal Care.,,04/05/2022,317601,0,443.19,R,REDACTED PERSONAL DATA
Community Care,ADULT DISABILITY SERVICES,Social Care and Health,Third Party Payments,Third Party,Personal Care.,,10/05/2022,317619,0,443.19,R,REDACTED PERSONAL DATA
Community Care,Community Care Team,Social Care and Health,Third Party Payments,Third Party,Third party payments NOT relating to goods or services,,13/05/2022,317630,0,"5,940.00",R,Danygraig Nursing Home
Community Care,Community Care Team,Social Care and Health,Third Party Payments,Third Party,Nursing.,,13/05/2022,317631,0,"2,936.00",R,Milkwood Care Ltd T/A Castleford
Community Care,INTEGRATED CARE FUND,Social Care and Health,Third Party Payments,Third Party,Third party payments NOT relating to goods or services,,16/05/2022,317636,0,"20,972.00",R,3 Circles Care Limited
Community Care,Community Care Team,Social Care and Health,Third Party Payments,Third Party,Third party payments NOT relating to goods or services,,16/05/2022,317637,0,190.26,R,Belmont House Res Home
Community Care,Community Care Team,Social Care and Health,Third Party Payments,Third Party,Personal Care.,,17/05/2022,317644,0,309.16,R,REDACTED PERSONAL DATA
Community Care,Community Care Team,Social Care and Health,Third Party Payments,Third Party,Third party payments NOT relating to goods or services,,18/05/2022,317648,0,128,R,Adriana Ltd
Community Care,ADULT DISABILITY SERVICES,Social Care and Health,Third Party Payments,Third Party,Personal Care.,,23/05/2022,317665,0,625.1,R,REDACTED PERSONAL DATA
Community Care,ADULT DISABILITY SERVICES,Social Care and Health,Third Party Payments,Third Party,Personal Care.,,24/05/2022,317668,0,443.19,R,REDACTED PERSONAL DATA
Community Care,Community Care Team,Social Care and Health,Third Party Payments,Third Party,Personal Care.,,24/05/2022,317671,0,458,R,REDACTED PERSONAL DATA
Community Care,Community Care Team,Social Care and Health,Third Party Payments,Third Party,Residential.,,25/05/2022,317674,0,"3,172.12",R,Willowbrook House Nursing Home
Community Care,Community Care Team,Social Care and Health,Third Party Payments,Third Party,Third party payments NOT relating to goods or services,,25/05/2022,317679,0,"2,967.14",R,Parade Residential Home
Community Care,INTEGRATED CARE FUND,Social Care and Health,Third Party Payments,Third Party,Third party payments NOT relating to goods or services,,27/05/2022,317686,0,"5,992.00",R,3 Circles Care Limited
Community Care,Community Care Team,Social Care and Health,Third Party Payments,Third Party,Personal Care.,,31/05/2022,317700,0,309.16,R,REDACTED PERSONAL DATA
Facilities & Fleet Management,Home to School Transport Dept,Enterprise,Transport,Contract Hire and Operating Leases,PTU Vehicle Contracts,,25/05/2022,4058331,0,-255.17,R,REDACTED PERSONAL DATA
Facilities & Fleet Management,Home to School Transport Dept,Enterprise,Transport,Contract Hire and Operating Leases,PTU Vehicle Contracts,,25/05/2022,4058333,0,-358.34,R,REDACTED PERSONAL DATA
Facilities & Fleet Management,Home to School Transport Dept,Enterprise,Transport,Contract Hire and Operating Leases,PTU Vehicle Contracts,,25/05/2022,4058335,0,-383.4,R,REDACTED PERSONAL DATA
Democratic Services,Democratic Services,People & Governance,Premises,Rents,Rents/Hire Of Premises.,,27/05/2022,4058481,0,-100,R,Llanfoist Village Hall
"Commercial, Corporate & landlord Services",Property Services & Facilities Management,Resources,Premises,"Repairs, Alterations & Maintenance of Buildings",Building Improvements / Maintenance,,06/05/2022,10961027,90061347,68,R,EFS Systems (UK) Ltd
Neighbourhood Services,Highways,Enterprise,Transport,Contract Hire and Operating Leases,Plant Hire Charge,,06/05/2022,10979815,818381,"2,502.99",R,Eco Vigour Ltd
"Commercial, Corporate & landlord Services",Property Services & Facilities Management,Resources,Premises,"Repairs, Alterations & Maintenance of Buildings",Building Improvements / Maintenance,,12/05/2022,10980221,90062857,"1,220.00",R,KRL Services
"Enterprise, Housing & Community Animation",Business Growth & Enterprise,Enterprise,Supplies & Services,Services,Assistance To Clients,,19/05/2022,10980573,0,134.97,R,BSM Purchase Card Transactions
Schools Total,School Group 2 � Pupil Capacity 144-314,MCC Schools,Supplies & Services,"Equipment, Furniture and Materials",Materials & Consumables.,,19/05/2022,10980579,0,17.48,R,BSM Purchase Card Transactions
"Enterprise, Housing & Community Animation",Business Growth & Enterprise,Enterprise,Supplies & Services,Services,Assistance To Clients,,19/05/2022,10980590,0,33.95,R,BSM Purchase Card Transactions
Schools Total,School Group 2 � Pupil Capacity 144-314,MCC Schools,Supplies & Services,Catering,Catering,,19/05/2022,10980667,0,4.12,R,BSM Purchase Card Transactions
"Leisure, Youth & Outdoor Adventure",Youth & Education,MonLife Directorate,Supplies & Services,"Equipment, Furniture and Materials",Provisions.,,19/05/2022,10980670,0,-75.2,R,BSM Purchase Card Transactions
"Enterprise, Housing & Community Animation",Borough Theatre,Enterprise,Employees,Direct Employee Expenses,Subsistence,,19/05/2022,10980695,0,150,R,BSM Purchase Card Transactions
"Enterprise, Housing & Community Animation",Borough Theatre,Enterprise,Employees,Direct Employee Expenses,Subsistence,,19/05/2022,10980697,0,150,R,BSM Purchase Card Transactions
"Enterprise, Housing & Community Animation",Borough Theatre,Enterprise,Employees,Direct Employee Expenses,Subsistence,,19/05/2022,10980709,0,145,R,BSM Purchase Card Transactions
Schools Total,SCHGRP3 � School Group 3 � Pupil Capacity 315-500,MCC Schools,Supplies & Services,"Equipment, Furniture and Materials",Materials & Consumables.,,19/05/2022,10980739,0,27.15,R,BSM Purchase Card Transactions
Schools Total,School Group 2 � Pupil Capacity 144-314,MCC Schools,Supplies & Services,"Printing, Stationery and General Office Expenses",Book Purchases,,19/05/2022,10980746,0,31.76,R,BSM Purchase Card Transactions
Children Services,Children Services Teams,Social Care and Health,Supplies & Services,Services,Direct Work with Young People,,19/05/2022,10980747,0,123.11,R,BSM Purchase Card Transactions
Schools Total,School Group 2 � Pupil Capacity 144-314,MCC Schools,Supplies & Services,Catering,Catering,,19/05/2022,10980767,0,5.49,R,BSM Purchase Card Transactions
Schools Total,SCHGRP3 � School Group 3 � Pupil Capacity 315-500,MCC Schools,Supplies & Services,"Equipment, Furniture and Materials",Materials & Consumables.,,19/05/2022,10980803,0,64.65,R,BSM Purchase Card Transactions
Children Services,Children Services Teams,Social Care and Health,Supplies & Services,Services,Direct Work with Young People,,19/05/2022,10980808,0,12,R,BSM Purchase Card Transactions
Children Services,Children Services Teams,Social Care and Health,Supplies & Services,Services,Direct Work with Young People,,19/05/2022,10980814,0,15.02,R,BSM Purchase Card Transactions
Schools Total,SCHGRP3 � School Group 3 � Pupil Capacity 315-500,MCC Schools,Supplies & Services,"Equipment, Furniture and Materials",Materials & Consumables.,,19/05/2022,10980816,0,26.2,R,BSM Purchase Card Transactions
Schools Total,School Group 2 � Pupil Capacity 144-314,MCC Schools,Premises,"Repairs, Alterations & Maintenance of Buildings",Premises Repairs And Maintenance,,19/05/2022,10980830,0,19.16,R,BSM Purchase Card Transactions
Schools Total,SCHGRP3 � School Group 3 � Pupil Capacity 315-500,MCC Schools,Supplies & Services,"Equipment, Furniture and Materials",Materials & Consumables.,,19/05/2022,10980834,0,32.05,R,BSM Purchase Card Transactions
Finance & Business Devlopment,Marketing & Sales,MonLife Directorate,Supplies & Services,"Equipment, Furniture and Materials",Equipment Purchases,,19/05/2022,10980839,0,124.17,R,BSM Purchase Card Transactions
Children Services,Children Services Teams,Social Care and Health,Supplies & Services,Services,Direct Work with Young People,,19/05/2022,10980847,0,69.5,R,BSM Purchase Card Transactions
Children Services,Children Services Teams,Social Care and Health,Supplies & Services,"Equipment, Furniture and Materials",Equipment Purchases,,19/05/2022,10980851,0,183.32,R,BSM Purchase Card Transactions
Countryside & Culture,Learning,MonLife Directorate,Supplies & Services,"Equipment, Furniture and Materials",Equipment Purchases,,19/05/2022,10980890,0,83.33,R,BSM Purchase Card Transactions
Children Services,Children Services Teams,Social Care and Health,Supplies & Services,Services,Direct Work with Young People,,19/05/2022,10980892,0,12.25,R,BSM Purchase Card Transactions
Schools Total,SCHGRP3 � School Group 3 � Pupil Capacity 315-500,MCC Schools,Supplies & Services,Communications and Computing,IT Hardware,,19/05/2022,10980907,0,49.99,R,BSM Purchase Card Transactions
"Enterprise, Housing & Community Animation",Borough Theatre,Enterprise,Supplies & Services,"Equipment, Furniture and Materials",Marketing General,,19/05/2022,10980945,0,74.96,R,BSM Purchase Card Transactions
Children Services,Children Services Teams,Social Care and Health,Supplies & Services,Services,Direct Work with Young People,,19/05/2022,10980951,0,6.22,R,BSM Purchase Card Transactions
Children Services,Children Services Teams,Social Care and Health,Supplies & Services,Services,Direct Work with Young People,,19/05/2022,10980961,0,8,R,BSM Purchase Card Transactions
Children Services,Children Services Teams,Social Care and Health,Supplies & Services,Services,Direct Work with Young People,,19/05/2022,10980977,0,1.25,R,BSM Purchase Card Transactions
Children Services,Children Services Teams,Social Care and Health,Supplies & Services,Services,Direct Work with Young People,,19/05/2022,10980981,0,3.49,R,BSM Purchase Card Transactions
Children Services,Children Services Teams,Social Care and Health,Supplies & Services,"Clothes, Uniform and Laundry",Clothing (Direct),,19/05/2022,10980985,0,50,R,BSM Purchase Card Transactions
Children Services,Children Services Teams,Social Care and Health,Supplies & Services,Services,Direct Work with Young People,,19/05/2022,10980987,0,5.83,R,BSM Purchase Card Transactions
Schools Total,School Group 2 � Pupil Capacity 144-314,MCC Schools,Supplies & Services,"Equipment, Furniture and Materials",Furniture Purchases / Replacement,,19/05/2022,10981008,0,130.43,R,BSM Purchase Card Transactions
Schools Total,School Group 2 � Pupil Capacity 144-314,MCC Schools,Supplies & Services,Catering,Catering,,19/05/2022,10981048,0,5.94,R,BSM Purchase Card Transactions
Children Services,Children Services Teams,Social Care and Health,Supplies & Services,Services,Direct Work with Young People,,19/05/2022,10981087,0,3.93,R,BSM Purchase Card Transactions
Children Services,Children Services Teams,Social Care and Health,Supplies & Services,"Clothes, Uniform and Laundry",Clothing (Direct),,19/05/2022,10981089,0,32.65,R,BSM Purchase Card Transactions
Children Services,Children Services Teams,Social Care and Health,Supplies & Services,Services,Direct Work with Young People,,19/05/2022,10981095,0,0.99,R,BSM Purchase Card Transactions
Neighbourhood Services,Highways,Enterprise,Transport,Contract Hire and Operating Leases,Plant Hire Charge,,04/05/2022,10981860,818339,984.07,R,Skid Steer Hire Solutions
"Commercial, Corporate & landlord Services",Property Services & Facilities Management,Resources,Premises,"Repairs, Alterations & Maintenance of Buildings",Building Improvements / Maintenance,,06/05/2022,10993686,90061007,305.07,R,A.J Quinn Building Contractors Ltd
"Commercial, Corporate & landlord Services",Property Services & Facilities Management,Resources,Premises,"Repairs, Alterations & Maintenance of Buildings",Building Improvements / Maintenance,,06/05/2022,10993689,90061973,335.5,R,A.J Quinn Building Contractors Ltd
"Commercial, Corporate & landlord Services",Property Services & Facilities Management,Resources,Premises,"Repairs, Alterations & Maintenance of Buildings",Building Improvements / Maintenance,,06/05/2022,10993690,90062036,65.41,R,A.J Quinn Building Contractors Ltd
"Commercial, Corporate & landlord Services",Property Services & Facilities Management,Resources,Premises,"Repairs, Alterations & Maintenance of Buildings",Building Improvements / Maintenance,,06/05/2022,10993974,90061869,416.77,R,A.J Quinn Building Contractors Ltd
"Commercial, Corporate & landlord Services",Property Services & Facilities Management,Resources,Premises,"Repairs, Alterations & Maintenance of Buildings",Building Improvements / Maintenance,,06/05/2022,10994070,90063050,168.98,R,A.J Quinn Building Contractors Ltd
"Commercial, Corporate & landlord Services",Property Services & Facilities Management,Resources,Premises,"Repairs, Alterations & Maintenance of Buildings",Building Improvements / Maintenance,,03/05/2022,10994325,760018142,258,R,EFS Systems (UK) Ltd
"Commercial, Corporate & landlord Services",Property Services & Facilities Management,Resources,Premises,"Repairs, Alterations & Maintenance of Buildings",Building Improvements / Maintenance,,03/05/2022,10994352,760018338,"5,373.71",R,EFS Systems (UK) Ltd
"Commercial, Corporate & landlord Services",Property Services & Facilities Management,Resources,Premises,"Repairs, Alterations & Maintenance of Buildings",Building Improvements / Maintenance,,03/05/2022,10994393,760018925,266.4,R,EFS Systems (UK) Ltd
"Commercial, Corporate & landlord Services",Property Services & Facilities Management,Resources,Premises,"Repairs, Alterations & Maintenance of Buildings",Building Improvements / Maintenance,,03/05/2022,10994397,760018973,136.9,R,EFS Systems (UK) Ltd
"Commercial, Corporate & landlord Services",Property Services & Facilities Management,Resources,Premises,"Repairs, Alterations & Maintenance of Buildings",Building Improvements / Maintenance,,03/05/2022,10994404,760019000,346.25,R,EFS Systems (UK) Ltd
"Commercial, Corporate & landlord Services",Property Services & Facilities Management,Resources,Premises,"Repairs, Alterations & Maintenance of Buildings",Building Improvements / Maintenance,,03/05/2022,10994405,760019001,465.48,R,EFS Systems (UK) Ltd
"Commercial, Corporate & landlord Services",Property Services & Facilities Management,Resources,Premises,"Repairs, Alterations & Maintenance of Buildings",Building Improvements / Maintenance,,03/05/2022,10994406,760019002,34.5,R,EFS Systems (UK) Ltd
"Commercial, Corporate & landlord Services",Property Services & Facilities Management,Resources,Premises,"Repairs, Alterations & Maintenance of Buildings",Building Improvements / Maintenance,,03/05/2022,10994408,760019018,50.06,R,EFS Systems (UK) Ltd
"Commercial, Corporate & landlord Services",Property Services & Facilities Management,Resources,Premises,"Repairs, Alterations & Maintenance of Buildings",Building Improvements / Maintenance,,03/05/2022,10994412,760019036,34.5,R,EFS Systems (UK) Ltd
"Commercial, Corporate & landlord Services",Property Services & Facilities Management,Resources,Premises,"Repairs, Alterations & Maintenance of Buildings",Building Improvements / Maintenance,,03/05/2022,10994558,760019051,149.69,R,EFS Systems (UK) Ltd
"Commercial, Corporate & landlord Services",Property Services & Facilities Management,Resources,Premises,"Repairs, Alterations & Maintenance of Buildings",Building Improvements / Maintenance,,03/05/2022,10994561,760019082,56.92,R,EFS Systems (UK) Ltd
"Commercial, Corporate & landlord Services",Property Services & Facilities Management,Resources,Premises,"Repairs, Alterations & Maintenance of Buildings",Building Improvements / Maintenance,,03/05/2022,10994564,760019098,74,R,EFS Systems (UK) Ltd
"Commercial, Corporate & landlord Services",Property Services & Facilities Management,Resources,Premises,"Repairs, Alterations & Maintenance of Buildings",Building Improvements / Maintenance,,03/05/2022,10994566,90060587,"1,244.70",R,EFS Systems (UK) Ltd
"Commercial, Corporate & landlord Services",Property Services & Facilities Management,Resources,Premises,"Repairs, Alterations & Maintenance of Buildings",Building Improvements / Maintenance,,03/05/2022,10994567,90060623,335.33,R,EFS Systems (UK) Ltd
"Commercial, Corporate & landlord Services",Property Services & Facilities Management,Resources,Premises,"Repairs, Alterations & Maintenance of Buildings",Building Improvements / Maintenance,,03/05/2022,10994569,90061648,"1,404.56",R,EFS Systems (UK) Ltd
"Commercial, Corporate & landlord Services",Property Services & Facilities Management,Resources,Premises,"Repairs, Alterations & Maintenance of Buildings",Premises Repairs And Maintenance,,05/05/2022,10994570,90062288,225.75,R,EFS Systems (UK) Ltd
"Commercial, Corporate & landlord Services",Property Services & Facilities Management,Resources,Premises,"Repairs, Alterations & Maintenance of Buildings",Premises Repairs And Maintenance,,05/05/2022,10994571,90062289,351.75,R,EFS Systems (UK) Ltd
"Commercial, Corporate & landlord Services",Property Services & Facilities Management,Resources,Premises,"Repairs, Alterations & Maintenance of Buildings",Premises Repairs And Maintenance,,05/05/2022,10994572,90062290,225.75,R,EFS Systems (UK) Ltd
"Commercial, Corporate & landlord Services",Property Services & Facilities Management,Resources,Premises,"Repairs, Alterations & Maintenance of Buildings",Premises Repairs And Maintenance,,05/05/2022,10994573,90062292,286.65,R,EFS Systems (UK) Ltd
"Commercial, Corporate & landlord Services",Property Services & Facilities Management,Resources,Premises,"Repairs, Alterations & Maintenance of Buildings",Premises Repairs And Maintenance,,05/05/2022,10994584,90062293,351.75,R,EFS Systems (UK) Ltd
"Commercial, Corporate & landlord Services",Property Services & Facilities Management,Resources,Premises,"Repairs, Alterations & Maintenance of Buildings",Building Improvements / Maintenance,,03/05/2022,10994586,90062664,605.37,R,EFS Systems (UK) Ltd
"Commercial, Corporate & landlord Services",Property Services & Facilities Management,Resources,Premises,"Repairs, Alterations & Maintenance of Buildings",Building Improvements / Maintenance,,04/05/2022,10994589,90062683,70.26,R,EFS Systems (UK) Ltd
"Commercial, Corporate & landlord Services",Property Services & Facilities Management,Resources,Premises,"Repairs, Alterations & Maintenance of Buildings",Building Improvements / Maintenance,,04/05/2022,10994590,90062706,327.27,R,EFS Systems (UK) Ltd
"Commercial, Corporate & landlord Services",Property Services & Facilities Management,Resources,Premises,"Repairs, Alterations & Maintenance of Buildings",Building Improvements / Maintenance,,04/05/2022,10994591,90062707,224.2,R,EFS Systems (UK) Ltd
"Commercial, Corporate & landlord Services",Property Services & Facilities Management,Resources,Premises,"Repairs, Alterations & Maintenance of Buildings",Building Improvements / Maintenance,,04/05/2022,10994592,90062889,23,R,EFS Systems (UK) Ltd
"Commercial, Corporate & landlord Services",Property Services & Facilities Management,Resources,Premises,"Repairs, Alterations & Maintenance of Buildings",Building Improvements / Maintenance,,04/05/2022,10994593,90062890,55.5,R,EFS Systems (UK) Ltd
"Commercial, Corporate & landlord Services",Property Services & Facilities Management,Resources,Premises,"Repairs, Alterations & Maintenance of Buildings",Building Improvements / Maintenance,,04/05/2022,10994648,90061352,354.95,R,EFS Systems (UK) Ltd
"Commercial, Corporate & landlord Services",Property Services & Facilities Management,Resources,Premises,"Repairs, Alterations & Maintenance of Buildings",Building Improvements / Maintenance,,05/05/2022,10994649,90061808,612.39,R,EFS Systems (UK) Ltd
"Commercial, Corporate & landlord Services",Property Services & Facilities Management,Resources,Premises,"Repairs, Alterations & Maintenance of Buildings",Building Improvements / Maintenance,,05/05/2022,10994651,90062691,256.58,R,EFS Systems (UK) Ltd
"Commercial, Corporate & landlord Services",Property Services & Facilities Management,Resources,Premises,"Repairs, Alterations & Maintenance of Buildings",Building Improvements / Maintenance,,04/05/2022,10994652,90062694,34.5,R,EFS Systems (UK) Ltd
Schools Total,School Group 7 � Pupil Capacity 501-1800,MCC Schools,Premises,"Repairs, Alterations & Maintenance of Buildings",Building Improvements / Maintenance,,04/05/2022,10994653,90062724,56.75,R,EFS Systems (UK) Ltd
"Commercial, Corporate & landlord Services",Property Services & Facilities Management,Resources,Premises,"Repairs, Alterations & Maintenance of Buildings",Building Improvements / Maintenance,,04/05/2022,10994655,90062736,34.5,R,EFS Systems (UK) Ltd
"Commercial, Corporate & landlord Services",Property Services & Facilities Management,Resources,Premises,"Repairs, Alterations & Maintenance of Buildings",Building Improvements / Maintenance,,04/05/2022,10994656,90062752,49.78,R,EFS Systems (UK) Ltd
Schools Total,School Group 7 � Pupil Capacity 501-1800,MCC Schools,Premises,"Repairs, Alterations & Maintenance of Buildings",Building Improvements / Maintenance,,04/05/2022,10994657,90062754,80.5,R,EFS Systems (UK) Ltd
"Commercial, Corporate & landlord Services",Property Services & Facilities Management,Resources,Premises,"Repairs, Alterations & Maintenance of Buildings",Building Improvements / Maintenance,,04/05/2022,10994659,90062811,126.63,R,EFS Systems (UK) Ltd
"Commercial, Corporate & landlord Services",Property Services & Facilities Management,Resources,Premises,"Repairs, Alterations & Maintenance of Buildings",Building Improvements / Maintenance,,04/05/2022,10994660,90062812,495.23,R,EFS Systems (UK) Ltd
"Commercial, Corporate & landlord Services",Property Services & Facilities Management,Resources,Premises,"Repairs, Alterations & Maintenance of Buildings",Building Improvements / Maintenance,,04/05/2022,10994661,90062863,199.5,R,EFS Systems (UK) Ltd
"Commercial, Corporate & landlord Services",Asset Management,Resources,Premises,Energy Costs,Electricity.,,03/05/2022,10994795,0,144.05,R,British Gas Business
Appropriations,Appropriations,Appropriations,Premises,Energy Costs,Electricity.,,03/05/2022,10994797,0,46.58,R,EON Next
"Commercial, Corporate & landlord Services",Asset Management,Resources,Premises,Energy Costs,Electricity.,,03/05/2022,10994799,0,24.28,R,EON Next
"Commercial, Corporate & landlord Services",Property Services & Facilities Management,Resources,Premises,Energy Costs,Gas.,,03/05/2022,10994801,0,"1,243.47",R,British Gas Business
"Enterprise, Housing & Community Animation",General Fund Housing,Enterprise,Premises,Energy Costs,Electricity.,,03/05/2022,10994803,0,39.65,R,British Gas Business
"Commercial, Corporate & landlord Services",Property Services & Facilities Management,Resources,Premises,Energy Costs,Gas.,,03/05/2022,10994805,0,"2,307.70",R,British Gas Business
"Commercial, Corporate & landlord Services",Asset Management,Resources,Premises,Energy Costs,Electricity.,,03/05/2022,10994807,0,26.23,R,British Gas Business
"Commercial, Corporate & landlord Services",Asset Management,Resources,Premises,Energy Costs,Gas.,,03/05/2022,10994809,0,27.6,R,British Gas Business
Facilities & Fleet Management,Home to School Transport Dept,Enterprise,Transport,Contract Hire and Operating Leases,PTU Vehicle Contracts,,03/05/2022,10994811,0,"1,903.80",R,REDACTED PERSONAL DATA
Facilities & Fleet Management,Home to School Transport Dept,Enterprise,Transport,Contract Hire and Operating Leases,PTU Vehicle Contracts,,03/05/2022,10994813,0,755.44,R,REDACTED PERSONAL DATA
Facilities & Fleet Management,Home to School Transport Dept,Enterprise,Transport,Contract Hire and Operating Leases,PTU Vehicle Contracts,,03/05/2022,10994815,0,142.08,R,REDACTED PERSONAL DATA
Facilities & Fleet Management,Home to School Transport Dept,Enterprise,Transport,Contract Hire and Operating Leases,PTU Vehicle Contracts,,03/05/2022,10994817,0,885.42,R,REDACTED PERSONAL DATA
"Commercial, Corporate & landlord Services",Property Services & Facilities Management,Resources,Premises,"Repairs, Alterations & Maintenance of Buildings",Premises Repairs And Maintenance,,05/05/2022,10994819,90057646,588.25,R,Hightech Water Services
"Commercial, Corporate & landlord Services",Property Services & Facilities Management,Resources,Premises,"Repairs, Alterations & Maintenance of Buildings",Building Improvements / Maintenance,,04/05/2022,10994820,760019245,850,R,APT Ltd
"Commercial, Corporate & landlord Services",Property Services & Facilities Management,Resources,Supplies & Services,Services,Professional And Specialist Fees,,04/05/2022,10994821,90051219,"1,684.68",R,REDACTED PERSONAL DATA
"Commercial, Corporate & landlord Services",Property Services & Facilities Management,Resources,Premises,"Repairs, Alterations & Maintenance of Buildings",Building Improvements / Maintenance,,04/05/2022,10994924,90054442,"2,911.99",R,Portakabin Limited
"Commercial, Corporate & landlord Services",Property Services & Facilities Management,Resources,Premises,"Repairs, Alterations & Maintenance of Buildings",Building Improvements / Maintenance,,09/05/2022,10994925,90062603,"2,539.00",R,Springvale Wproofing Ltd
Facilities & Fleet Management,Home to School Transport Dept,Enterprise,Transport,Contract Hire and Operating Leases,PTU Vehicle Contracts,,04/05/2022,10995048,0,255.17,R,REDACTED PERSONAL DATA
Facilities & Fleet Management,Home to School Transport Dept,Enterprise,Transport,Contract Hire and Operating Leases,PTU Vehicle Contracts,,04/05/2022,10995050,0,358.34,R,REDACTED PERSONAL DATA
Facilities & Fleet Management,Home to School Transport Dept,Enterprise,Transport,Contract Hire and Operating Leases,PTU Vehicle Contracts,,04/05/2022,10995052,0,319.5,R,REDACTED PERSONAL DATA
"Commercial, Corporate & landlord Services",Property Services & Facilities Management,Resources,Premises,"Repairs, Alterations & Maintenance of Buildings",Building Improvements / Maintenance,,04/05/2022,10995054,760018958,250,R,Rockfield M & E Ltd
"Commercial, Corporate & landlord Services",Property Services & Facilities Management,Resources,Premises,"Repairs, Alterations & Maintenance of Buildings",Building Improvements / Maintenance,,04/05/2022,10995055,760019134,250,R,Rockfield M & E Ltd
"Commercial, Corporate & landlord Services",Property Services & Facilities Management,Resources,Premises,"Repairs, Alterations & Maintenance of Buildings",Building Improvements / Maintenance,,04/05/2022,10995056,760019136,450,R,Rockfield M & E Ltd
"Commercial, Corporate & landlord Services",Property Services & Facilities Management,Resources,Premises,"Repairs, Alterations & Maintenance of Buildings",Building Improvements / Maintenance,,04/05/2022,10995057,760019135,250,R,Rockfield M & E Ltd
"Commercial, Corporate & landlord Services",Property Services & Facilities Management,Resources,Premises,"Repairs, Alterations & Maintenance of Buildings",Premises Repairs And Maintenance,,05/05/2022,10995112,90057841,101.96,R,Lorne Stewart  Plc
"Commercial, Corporate & landlord Services",Property Services & Facilities Management,Resources,Premises,"Repairs, Alterations & Maintenance of Buildings",Premises Repairs And Maintenance,,05/05/2022,10995113,90057843,101.96,R,Lorne Stewart  Plc
"Commercial, Corporate & landlord Services",Property Services & Facilities Management,Resources,Premises,"Repairs, Alterations & Maintenance of Buildings",Premises Repairs And Maintenance,,05/05/2022,10995114,90057789,38.24,R,Lorne Stewart  Plc
"Commercial, Corporate & landlord Services",Property Services & Facilities Management,Resources,Premises,"Repairs, Alterations & Maintenance of Buildings",Premises Repairs And Maintenance,,05/05/2022,10995115,90058276,101.96,R,Lorne Stewart  Plc
Schools Total,School Group 2 � Pupil Capacity 144-314,MCC Schools,Premises,"Repairs, Alterations & Maintenance of Buildings",Building Improvements / Maintenance,,05/05/2022,10995116,90058538,89.22,R,Lorne Stewart  Plc
"Commercial, Corporate & landlord Services",Property Services & Facilities Management,Resources,Premises,"Repairs, Alterations & Maintenance of Buildings",Premises Repairs And Maintenance,,05/05/2022,10995117,90058754,101.96,R,Lorne Stewart  Plc
"Commercial, Corporate & landlord Services",Property Services & Facilities Management,Resources,Premises,"Repairs, Alterations & Maintenance of Buildings",Premises Repairs And Maintenance,,05/05/2022,10995118,90058756,152.94,R,Lorne Stewart  Plc
"Commercial, Corporate & landlord Services",Property Services & Facilities Management,Resources,Premises,"Repairs, Alterations & Maintenance of Buildings",Building Improvements / Maintenance,,09/05/2022,10995119,90058787,344.13,R,A.J Quinn Building Contractors Ltd
Schools Total,School Group 7 � Pupil Capacity 501-1800,MCC Schools,Premises,"Repairs, Alterations & Maintenance of Buildings",Building Improvements / Maintenance,,05/05/2022,10995121,90063424,192,R,Pontypool Glazing Ltd
"Commercial, Corporate & landlord Services",Property Services & Facilities Management,Resources,Premises,"Repairs, Alterations & Maintenance of Buildings",Building Improvements / Maintenance,,05/05/2022,10995122,90062874,455,R,Development Plus Limited
"Commercial, Corporate & landlord Services",Property Services & Facilities Management,Resources,Premises,"Repairs, Alterations & Maintenance of Buildings",Building Improvements / Maintenance,,05/05/2022,10995123,760018953,"2,450.00",R,Power Solutions
"Commercial, Corporate & landlord Services",Property Services & Facilities Management,Resources,Premises,"Repairs, Alterations & Maintenance of Buildings",Premises Repairs And Maintenance,,05/05/2022,10995124,90058758,76.47,R,Lorne Stewart  Plc
"Commercial, Corporate & landlord Services",Property Services & Facilities Management,Resources,Premises,"Repairs, Alterations & Maintenance of Buildings",Building Improvements / Maintenance,,06/05/2022,10995125,760014698,237.91,R,Tremorfa Ltd
"Commercial, Corporate & landlord Services",Property Services & Facilities Management,Resources,Premises,"Repairs, Alterations & Maintenance of Buildings",Premises Repairs And Maintenance,,05/05/2022,10995126,90058702,50.98,R,Lorne Stewart  Plc
Schools Total,School Group 2 � Pupil Capacity 144-314,MCC Schools,Premises,"Repairs, Alterations & Maintenance of Buildings",Building Improvements / Maintenance,,05/05/2022,10995127,90059052,496.89,R,Lorne Stewart  Plc
"Commercial, Corporate & landlord Services",Property Services & Facilities Management,Resources,Premises,"Repairs, Alterations & Maintenance of Buildings",Premises Repairs And Maintenance,,05/05/2022,10995128,90059068,50.98,R,Lorne Stewart  Plc
"Commercial, Corporate & landlord Services",Property Services & Facilities Management,Resources,Premises,"Repairs, Alterations & Maintenance of Buildings",Premises Repairs And Maintenance,,05/05/2022,10995129,90059069,50.98,R,Lorne Stewart  Plc
"Commercial, Corporate & landlord Services",Property Services & Facilities Management,Resources,Premises,"Repairs, Alterations & Maintenance of Buildings",Premises Repairs And Maintenance,,05/05/2022,10995130,90059071,76.47,R,Lorne Stewart  Plc
"Commercial, Corporate & landlord Services",Property Services & Facilities Management,Resources,Premises,"Repairs, Alterations & Maintenance of Buildings",Premises Repairs And Maintenance,,05/05/2022,10995131,90059072,50.98,R,Lorne Stewart  Plc
"Commercial, Corporate & landlord Services",Property Services & Facilities Management,Resources,Premises,"Repairs, Alterations & Maintenance of Buildings",Premises Repairs And Maintenance,,05/05/2022,10995132,90059073,101.96,R,Lorne Stewart  Plc
"Commercial, Corporate & landlord Services",Property Services & Facilities Management,Resources,Premises,"Repairs, Alterations & Maintenance of Buildings",Premises Repairs And Maintenance,,05/05/2022,10995133,90059076,50.98,R,Lorne Stewart  Plc
"Commercial, Corporate & landlord Services",Property Services & Facilities Management,Resources,Premises,"Repairs, Alterations & Maintenance of Buildings",Premises Repairs And Maintenance,,05/05/2022,10995134,90059082,50.98,R,Lorne Stewart  Plc
"Commercial, Corporate & landlord Services",Property Services & Facilities Management,Resources,Premises,"Repairs, Alterations & Maintenance of Buildings",Premises Repairs And Maintenance,,05/05/2022,10995135,90059083,89.22,R,Lorne Stewart  Plc
"Commercial, Corporate & landlord Services",Property Services & Facilities Management,Resources,Premises,"Repairs, Alterations & Maintenance of Buildings",Premises Repairs And Maintenance,,05/05/2022,10995136,90057660,50.98,R,Lorne Stewart  Plc
"Commercial, Corporate & landlord Services",Property Services & Facilities Management,Resources,Premises,"Repairs, Alterations & Maintenance of Buildings",Premises Repairs And Maintenance,,05/05/2022,10995137,90057661,50.98,R,Lorne Stewart  Plc
"Commercial, Corporate & landlord Services",Property Services & Facilities Management,Resources,Premises,"Repairs, Alterations & Maintenance of Buildings",Premises Repairs And Maintenance,,05/05/2022,10995138,90057653,25.49,R,Lorne Stewart  Plc
"Commercial, Corporate & landlord Services",Property Services & Facilities Management,Resources,Premises,"Repairs, Alterations & Maintenance of Buildings",Premises Repairs And Maintenance,,05/05/2022,10995139,90057657,76.47,R,Lorne Stewart  Plc
"Commercial, Corporate & landlord Services",Property Services & Facilities Management,Resources,Premises,"Repairs, Alterations & Maintenance of Buildings",Premises Repairs And Maintenance,,05/05/2022,10995140,90058722,544.5,R,Lorne Stewart  Plc
"Commercial, Corporate & landlord Services",Property Services & Facilities Management,Resources,Premises,"Repairs, Alterations & Maintenance of Buildings",Premises Repairs And Maintenance,,05/05/2022,10995141,90058724,544.5,R,Lorne Stewart  Plc
"Commercial, Corporate & landlord Services",Property Services & Facilities Management,Resources,Premises,"Repairs, Alterations & Maintenance of Buildings",Premises Repairs And Maintenance,,05/05/2022,10995142,90058741,544.5,R,Lorne Stewart  Plc
"Commercial, Corporate & landlord Services",Property Services & Facilities Management,Resources,Premises,"Repairs, Alterations & Maintenance of Buildings",Building Improvements / Maintenance,,05/05/2022,10995240,760018846,505.59,R,Industrial Door Services
"Commercial, Corporate & landlord Services",Property Services & Facilities Management,Resources,Premises,"Repairs, Alterations & Maintenance of Buildings",Building Improvements / Maintenance,,06/05/2022,10995241,760019047,125,R,Industrial Door Services
"Commercial, Corporate & landlord Services",Property Services & Facilities Management,Resources,Premises,"Repairs, Alterations & Maintenance of Buildings",Building Improvements / Maintenance,,06/05/2022,10995242,760019043,553.71,R,Industrial Door Services
"Commercial, Corporate & landlord Services",Property Services & Facilities Management,Resources,Premises,"Repairs, Alterations & Maintenance of Buildings",Building Improvements / Maintenance,,05/05/2022,10995243,760018971,"1,287.35",R,Industrial Door Services
"Commercial, Corporate & landlord Services",Property Services & Facilities Management,Resources,Premises,"Repairs, Alterations & Maintenance of Buildings",Building Improvements / Maintenance,,05/05/2022,10995244,760018970,"2,423.50",R,Industrial Door Services
"Commercial, Corporate & landlord Services",Property Services & Facilities Management,Resources,Premises,"Repairs, Alterations & Maintenance of Buildings",Building Improvements / Maintenance,,06/05/2022,10995245,760019071,125,R,Industrial Door Services
"Enterprise, Housing & Community Animation",General Fund Housing,Enterprise,Premises,Rents,Rents/Hire Of Premises.,,05/05/2022,10995277,0,590,R,REDACTED PERSONAL DATA
"Enterprise, Housing & Community Animation",General Fund Housing,Enterprise,Premises,Rents,Rents/Hire Of Premises.,,05/05/2022,10995279,0,590,R,REDACTED PERSONAL DATA
"Enterprise, Housing & Community Animation",General Fund Housing,Enterprise,Premises,Rents,Rents/Hire Of Premises.,,05/05/2022,10995281,0,590,R,Worth Consultin Limited
"Enterprise, Housing & Community Animation",General Fund Housing,Enterprise,Premises,Rents,Rents/Hire Of Premises.,,05/05/2022,10995283,0,590,R,Worth Consultin Limited
"Enterprise, Housing & Community Animation",General Fund Housing,Enterprise,Premises,Rents,Rents/Hire Of Premises.,,05/05/2022,10995285,0,675,R,REDACTED PERSONAL DATA
"Commercial, Corporate & landlord Services",Property Services & Facilities Management,Resources,Premises,"Repairs, Alterations & Maintenance of Buildings",Building Improvements / Maintenance,,09/05/2022,10995286,760018957,196.16,R,Industrial Door Services
"Commercial, Corporate & landlord Services",Property Services & Facilities Management,Resources,Premises,"Repairs, Alterations & Maintenance of Buildings",Building Improvements / Maintenance,,06/05/2022,10995287,760019030,125,R,Industrial Door Services
"Commercial, Corporate & landlord Services",Property Services & Facilities Management,Resources,Premises,"Repairs, Alterations & Maintenance of Buildings",Building Improvements / Maintenance,,06/05/2022,10995288,760018481,"5,720.00",R,Industrial Door Services
"Commercial, Corporate & landlord Services",Property Services & Facilities Management,Resources,Premises,"Repairs, Alterations & Maintenance of Buildings",Premises Repairs And Maintenance,,06/05/2022,10995333,90059084,50.98,R,Lorne Stewart  Plc
"Commercial, Corporate & landlord Services",Property Services & Facilities Management,Resources,Premises,"Repairs, Alterations & Maintenance of Buildings",Premises Repairs And Maintenance,,09/05/2022,10995338,90059999,127.45,R,Lorne Stewart  Plc
"Commercial, Corporate & landlord Services",Property Services & Facilities Management,Resources,Premises,"Repairs, Alterations & Maintenance of Buildings",Premises Repairs And Maintenance,,06/05/2022,10995342,90060019,177.13,R,Lorne Stewart  Plc
"Commercial, Corporate & landlord Services",Property Services & Facilities Management,Resources,Premises,"Repairs, Alterations & Maintenance of Buildings",Premises Repairs And Maintenance,,09/05/2022,10995346,90060029,101.96,R,Lorne Stewart  Plc
"Commercial, Corporate & landlord Services",Property Services & Facilities Management,Resources,Premises,"Repairs, Alterations & Maintenance of Buildings",Building Improvements / Maintenance,,06/05/2022,10995351,90060072,126.15,R,Lorne Stewart  Plc
"Commercial, Corporate & landlord Services",Property Services & Facilities Management,Resources,Premises,"Repairs, Alterations & Maintenance of Buildings",Building Improvements / Maintenance,,06/05/2022,10995373,90060071,63.73,R,Lorne Stewart  Plc
"Commercial, Corporate & landlord Services",Property Services & Facilities Management,Resources,Premises,"Repairs, Alterations & Maintenance of Buildings",Premises Repairs And Maintenance,,09/05/2022,10995379,90060542,76.47,R,Lorne Stewart  Plc
"Commercial, Corporate & landlord Services",Property Services & Facilities Management,Resources,Premises,"Repairs, Alterations & Maintenance of Buildings",Premises Repairs And Maintenance,,06/05/2022,10995380,90060961,38.24,R,Lorne Stewart  Plc
"Commercial, Corporate & landlord Services",Property Services & Facilities Management,Resources,Premises,"Repairs, Alterations & Maintenance of Buildings",Premises Repairs And Maintenance,,09/05/2022,10995381,90060544,25.49,R,Lorne Stewart  Plc
"Commercial, Corporate & landlord Services",Property Services & Facilities Management,Resources,Premises,"Repairs, Alterations & Maintenance of Buildings",Premises Repairs And Maintenance,,06/05/2022,10995382,90060981,126.15,R,Lorne Stewart  Plc
"Commercial, Corporate & landlord Services",Property Services & Facilities Management,Resources,Premises,"Repairs, Alterations & Maintenance of Buildings",Premises Repairs And Maintenance,,09/05/2022,10995383,90060983,126.15,R,Lorne Stewart  Plc
"Commercial, Corporate & landlord Services",Property Services & Facilities Management,Resources,Premises,"Repairs, Alterations & Maintenance of Buildings",Premises Repairs And Maintenance,,06/05/2022,10995384,90059104,544.5,R,Lorne Stewart  Plc
"Commercial, Corporate & landlord Services",Property Services & Facilities Management,Resources,Premises,"Repairs, Alterations & Maintenance of Buildings",Premises Repairs And Maintenance,,06/05/2022,10995385,90059121,544.5,R,Lorne Stewart  Plc
"Commercial, Corporate & landlord Services",Property Services & Facilities Management,Resources,Premises,"Repairs, Alterations & Maintenance of Buildings",Premises Repairs And Maintenance,,09/05/2022,10995386,90061522,101.96,R,Lorne Stewart  Plc
"Commercial, Corporate & landlord Services",Property Services & Facilities Management,Resources,Premises,"Repairs, Alterations & Maintenance of Buildings",Premises Repairs And Maintenance,,06/05/2022,10995387,90061523,76.47,R,Lorne Stewart  Plc
"Commercial, Corporate & landlord Services",Property Services & Facilities Management,Resources,Premises,"Repairs, Alterations & Maintenance of Buildings",Premises Repairs And Maintenance,,09/05/2022,10995388,90061526,89.22,R,Lorne Stewart  Plc
"Commercial, Corporate & landlord Services",Property Services & Facilities Management,Resources,Premises,"Repairs, Alterations & Maintenance of Buildings",Premises Repairs And Maintenance,,09/05/2022,10995389,90061513,178.43,R,Lorne Stewart  Plc
"Commercial, Corporate & landlord Services",Property Services & Facilities Management,Resources,Premises,"Repairs, Alterations & Maintenance of Buildings",Premises Repairs And Maintenance,,09/05/2022,10995390,90061516,101.96,R,Lorne Stewart  Plc
"Commercial, Corporate & landlord Services",Property Services & Facilities Management,Resources,Premises,"Repairs, Alterations & Maintenance of Buildings",Premises Repairs And Maintenance,,06/05/2022,10995391,90061512,25.49,R,Lorne Stewart  Plc
"Commercial, Corporate & landlord Services",Property Services & Facilities Management,Resources,Premises,"Repairs, Alterations & Maintenance of Buildings",Premises Repairs And Maintenance,,06/05/2022,10995392,90061942,76.47,R,Lorne Stewart  Plc
"Commercial, Corporate & landlord Services",Property Services & Facilities Management,Resources,Premises,"Repairs, Alterations & Maintenance of Buildings",Premises Repairs And Maintenance,,09/05/2022,10995393,90061947,152.94,R,Lorne Stewart  Plc
"Commercial, Corporate & landlord Services",Property Services & Facilities Management,Resources,Premises,"Repairs, Alterations & Maintenance of Buildings",Premises Repairs And Maintenance,,09/05/2022,10995394,90061948,101.96,R,Lorne Stewart  Plc
"Commercial, Corporate & landlord Services",Property Services & Facilities Management,Resources,Premises,"Repairs, Alterations & Maintenance of Buildings",Premises Repairs And Maintenance,,09/05/2022,10995395,90061950,254.9,R,Lorne Stewart  Plc
"Commercial, Corporate & landlord Services",Property Services & Facilities Management,Resources,Premises,"Repairs, Alterations & Maintenance of Buildings",Premises Repairs And Maintenance,,09/05/2022,10995396,90061952,50.98,R,Lorne Stewart  Plc
"Commercial, Corporate & landlord Services",Property Services & Facilities Management,Resources,Premises,"Repairs, Alterations & Maintenance of Buildings",Premises Repairs And Maintenance,,09/05/2022,10995397,90061876,38.24,R,Lorne Stewart  Plc
"Commercial, Corporate & landlord Services",Property Services & Facilities Management,Resources,Premises,"Repairs, Alterations & Maintenance of Buildings",Premises Repairs And Maintenance,,06/05/2022,10995398,90061877,50.98,R,Lorne Stewart  Plc
Neighbourhood Services,Waste and Street Services,Enterprise,Employees,Direct Employee Expenses,Agency Staff,,06/05/2022,10995530,0,502.09,R,Randstad Solutions Ltd
"Commercial, Corporate & landlord Services",Property Services & Facilities Management,Resources,Premises,"Repairs, Alterations & Maintenance of Buildings",Building Improvements / Maintenance,,10/05/2022,10995548,90062653,200,R,Industrial Door Services
"Commercial, Corporate & landlord Services",Property Services & Facilities Management,Resources,Premises,"Repairs, Alterations & Maintenance of Buildings",Premises Repairs And Maintenance,,10/05/2022,10995558,90059458,390,R,Industrial Door Services
"Commercial, Corporate & landlord Services",Property Services & Facilities Management,Resources,Premises,"Repairs, Alterations & Maintenance of Buildings",Premises Repairs And Maintenance,,10/05/2022,10995563,90059456,165,R,Industrial Door Services
"Commercial, Corporate & landlord Services",Property Services & Facilities Management,Resources,Premises,"Repairs, Alterations & Maintenance of Buildings",Premises Repairs And Maintenance,,09/05/2022,10995580,90059455,75,R,Industrial Door Services
"Commercial, Corporate & landlord Services",Property Services & Facilities Management,Resources,Premises,"Repairs, Alterations & Maintenance of Buildings",Premises Repairs And Maintenance,,09/05/2022,10995600,90053698,"3,792.60",R,Lorne Stewart  Plc
"Commercial, Corporate & landlord Services",Property Services & Facilities Management,Resources,Premises,"Repairs, Alterations & Maintenance of Buildings",Building Improvements / Maintenance,,10/05/2022,10995642,760018253,380,R,Industrial Door Services
"Commercial, Corporate & landlord Services",Property Services & Facilities Management,Resources,Premises,"Repairs, Alterations & Maintenance of Buildings",Building Improvements / Maintenance,,09/05/2022,10995779,90062968,120,R,Industrial Door Services
"Commercial, Corporate & landlord Services",Property Services & Facilities Management,Resources,Premises,"Repairs, Alterations & Maintenance of Buildings",Building Improvements / Maintenance,,09/05/2022,10995780,90062989,435,R,Industrial Door Services
"Commercial, Corporate & landlord Services",Property Services & Facilities Management,Resources,Premises,"Repairs, Alterations & Maintenance of Buildings",Building Improvements / Maintenance,,09/05/2022,10995781,90063012,"3,418.00",R,Industrial Door Services
Schools Total,School Group 2 � Pupil Capacity 144-314,MCC Schools,Employees,Direct Employee Expenses,Agency Staff,,09/05/2022,10995783,0,194.08,R,New Directions Education Ltd
Schools Total,School Group 2 � Pupil Capacity 144-314,MCC Schools,Employees,Direct Employee Expenses,Agency Staff,,09/05/2022,10995785,0,194.08,R,New Directions Education Ltd
Schools Total,School Group 7 � Pupil Capacity 501-1800,MCC Schools,Employees,Direct Employee Expenses,Agency Staff,,09/05/2022,10995787,0,207.5,R,New Directions Education Ltd
Schools Total,School Group 7 � Pupil Capacity 501-1800,MCC Schools,Employees,Direct Employee Expenses,Agency Staff,,09/05/2022,10995789,0,207.5,R,New Directions Education Ltd
Schools Total,School Group 7 � Pupil Capacity 501-1800,MCC Schools,Employees,Direct Employee Expenses,Agency Staff,,09/05/2022,10995791,0,198.5,R,New Directions Education Ltd
Schools Total,School Group 7 � Pupil Capacity 501-1800,MCC Schools,Employees,Direct Employee Expenses,Agency Staff,,09/05/2022,10995793,0,198.5,R,New Directions Education Ltd
Schools Total,School Group 7 � Pupil Capacity 501-1800,MCC Schools,Employees,Direct Employee Expenses,Agency Staff,,09/05/2022,10995795,0,189.5,R,New Directions Education Ltd
Schools Total,School Group 7 � Pupil Capacity 501-1800,MCC Schools,Employees,Direct Employee Expenses,Agency Staff,,09/05/2022,10995797,0,189.5,R,New Directions Education Ltd
Schools Total,School Group 7 � Pupil Capacity 501-1800,MCC Schools,Employees,Direct Employee Expenses,Agency Staff,,09/05/2022,10995799,0,198,R,New Directions Education Ltd
Schools Total,School Group 7 � Pupil Capacity 501-1800,MCC Schools,Employees,Direct Employee Expenses,Agency Staff,,09/05/2022,10995801,0,142.67,R,New Directions Education Ltd
Schools Total,School Group 7 � Pupil Capacity 501-1800,MCC Schools,Employees,Direct Employee Expenses,Agency Staff,,09/05/2022,10995803,0,142.67,R,New Directions Education Ltd
Schools Total,School Group 7 � Pupil Capacity 501-1800,MCC Schools,Employees,Direct Employee Expenses,Agency Staff,,09/05/2022,10995805,0,142.67,R,New Directions Education Ltd
Schools Total,School Group 2 � Pupil Capacity 144-314,MCC Schools,Employees,Direct Employee Expenses,Agency Staff,,09/05/2022,10995807,0,36.1,R,New Directions Education Ltd
Schools Total,School Group 2 � Pupil Capacity 144-314,MCC Schools,Employees,Direct Employee Expenses,Agency Staff,,09/05/2022,10995809,0,36.1,R,New Directions Education Ltd
Schools Total,School Group 2 � Pupil Capacity 144-314,MCC Schools,Employees,Direct Employee Expenses,Agency Staff,,09/05/2022,10995811,0,36.1,R,New Directions Education Ltd
Schools Total,School Group 7 � Pupil Capacity 501-1800,MCC Schools,Employees,Direct Employee Expenses,Agency Staff,,09/05/2022,10995813,0,114,R,New Directions Education Ltd
Schools Total,School Group 7 � Pupil Capacity 501-1800,MCC Schools,Employees,Direct Employee Expenses,Agency Staff,,09/05/2022,10995815,0,114,R,New Directions Education Ltd
Schools Total,School Group 2 � Pupil Capacity 144-314,MCC Schools,Employees,Direct Employee Expenses,Agency Staff,,09/05/2022,10995817,0,194.08,R,New Directions Education Ltd
Schools Total,School Group 2 � Pupil Capacity 144-314,MCC Schools,Employees,Direct Employee Expenses,Agency Staff,,09/05/2022,10995819,0,194.08,R,New Directions Education Ltd
Schools Total,School Group 2 � Pupil Capacity 144-314,MCC Schools,Employees,Direct Employee Expenses,Agency Staff,,09/05/2022,10995821,0,194.08,R,New Directions Education Ltd
Schools Total,School Group 1 � Pupil Capacity 1-143,MCC Schools,Employees,Direct Employee Expenses,Agency Staff,,09/05/2022,10995823,0,194.08,R,New Directions Education Ltd
Schools Total,SCHGRP3 � School Group 3 � Pupil Capacity 315-500,MCC Schools,Employees,Direct Employee Expenses,Agency Staff,,09/05/2022,10995825,0,107.7,R,New Directions Education Ltd
Schools Total,SCHGRP3 � School Group 3 � Pupil Capacity 315-500,MCC Schools,Employees,Direct Employee Expenses,Agency Staff,,09/05/2022,10995827,0,107.7,R,New Directions Education Ltd
Schools Total,SCHGRP3 � School Group 3 � Pupil Capacity 315-500,MCC Schools,Employees,Direct Employee Expenses,Agency Staff,,09/05/2022,10995829,0,194.08,R,New Directions Education Ltd
Schools Total,SCHGRP3 � School Group 3 � Pupil Capacity 315-500,MCC Schools,Employees,Direct Employee Expenses,Agency Staff,,09/05/2022,10995831,0,194.08,R,New Directions Education Ltd
Schools Total,SCHGRP3 � School Group 3 � Pupil Capacity 315-500,MCC Schools,Employees,Direct Employee Expenses,Agency Staff,,09/05/2022,10995833,0,194.08,R,New Directions Education Ltd
Schools Total,SCHGRP3 � School Group 3 � Pupil Capacity 315-500,MCC Schools,Employees,Direct Employee Expenses,Agency Staff,,09/05/2022,10995835,0,88.13,R,New Directions Education Ltd
Schools Total,SCHGRP3 � School Group 3 � Pupil Capacity 315-500,MCC Schools,Employees,Direct Employee Expenses,Agency Staff,,09/05/2022,10995837,0,194.08,R,New Directions Education Ltd
Schools Total,SCHGRP3 � School Group 3 � Pupil Capacity 315-500,MCC Schools,Employees,Direct Employee Expenses,Agency Staff,,09/05/2022,10995839,0,112.05,R,New Directions Education Ltd
Schools Total,SCHGRP3 � School Group 3 � Pupil Capacity 315-500,MCC Schools,Employees,Direct Employee Expenses,Agency Staff,,09/05/2022,10995841,0,112.05,R,New Directions Education Ltd
Schools Total,Schools,MCC Schools,Premises,Water Services,Water Services-Metered.,,09/05/2022,10995843,0,175.02,R,Welsh Water
Schools Total,SCHGRP3 � School Group 3 � Pupil Capacity 315-500,MCC Schools,Premises,Water Services,Water Services-Metered.,,09/05/2022,10995845,0,"1,610.45",R,Welsh Water
Schools Total,SCHGRP3 � School Group 3 � Pupil Capacity 315-500,MCC Schools,Premises,Water Services,Water Services-Metered.,,09/05/2022,10995847,0,"4,702.49",R,Welsh Water
Schools Total,School Group 7 � Pupil Capacity 501-1800,MCC Schools,Premises,Energy Costs,Electricity.,,09/05/2022,10995849,0,637.76,R,EDF Energy
"Leisure, Youth & Outdoor Adventure",Leisure Services,MonLife Directorate,Premises,Energy Costs,Electricity.,,09/05/2022,10995851,0,"5,528.16",R,EDF Energy
Schools Total,School Group 7 � Pupil Capacity 501-1800,MCC Schools,Premises,Energy Costs,Electricity.,,09/05/2022,10995853,0,"8,752.88",R,EDF Energy
Schools Total,Schools,MCC Schools,Premises,Energy Costs,Electricity.,,09/05/2022,10995855,0,394.05,R,EDF Energy
"Leisure, Youth & Outdoor Adventure",Leisure Services,MonLife Directorate,Premises,Energy Costs,Electricity.,,09/05/2022,10995857,0,"7,873.93",R,EDF Energy
Schools Total,School Group 2 � Pupil Capacity 144-314,MCC Schools,Premises,Energy Costs,Electricity.,,09/05/2022,10995859,0,"1,400.87",R,EDF Energy
"Leisure, Youth & Outdoor Adventure",Youth & Education,MonLife Directorate,Premises,Energy Costs,Electricity.,,09/05/2022,10995861,0,"1,043.79",R,EDF Energy
Schools Total,School Group 2 � Pupil Capacity 144-314,MCC Schools,Premises,Energy Costs,Electricity.,,09/05/2022,10995863,0,"1,549.75",R,EDF Energy
Schools Total,SCHGRP3 � School Group 3 � Pupil Capacity 315-500,MCC Schools,Premises,Energy Costs,Electricity.,,09/05/2022,10995865,0,"2,460.48",R,EDF Energy
Finance & Business Devlopment,Attractions,MonLife Directorate,Premises,Energy Costs,Electricity.,,09/05/2022,10995867,0,629.2,R,EDF Energy
"Commercial, Corporate & landlord Services",Property Services & Facilities Management,Resources,Premises,Energy Costs,Electricity.,,09/05/2022,10995869,0,"1,636.06",R,EDF Energy
Schools Total,School Group 2 � Pupil Capacity 144-314,MCC Schools,Premises,Energy Costs,Electricity.,,09/05/2022,10995871,0,"1,420.42",R,EDF Energy
"Commercial, Corporate & landlord Services",Property Services & Facilities Management,Resources,Premises,Energy Costs,Electricity.,,09/05/2022,10995873,0,"1,801.09",R,EDF Energy
Schools Total,School Group 2 � Pupil Capacity 144-314,MCC Schools,Premises,Energy Costs,Electricity.,,09/05/2022,10995875,0,"1,797.73",R,EDF Energy
Schools Total,SCHGRP3 � School Group 3 � Pupil Capacity 315-500,MCC Schools,Premises,Energy Costs,Electricity.,,09/05/2022,10995877,0,897.92,R,EDF Energy
Schools Total,SCHGRP3 � School Group 3 � Pupil Capacity 315-500,MCC Schools,Premises,Water Services,Water Services-Metered.,,09/05/2022,10995879,0,"2,004.01",R,Welsh Water
Schools Total,School Group 2 � Pupil Capacity 144-314,MCC Schools,Premises,Water Services,Water Services-Metered.,,09/05/2022,10995881,0,3.18,R,Welsh Water
"Commercial, Corporate & landlord Services",Property Services & Facilities Management,Resources,Premises,Water Services,Water Services-Metered.,,09/05/2022,10995883,0,"13,964.21",R,Welsh Water
"Commercial, Corporate & landlord Services",Property Services & Facilities Management,Resources,Premises,Water Services,Water Services-Metered.,,09/05/2022,10995885,0,"1,070.84",R,Welsh Water
"Commercial, Corporate & landlord Services",Asset Management,Resources,Premises,Energy Costs,Electricity.,,09/05/2022,10995887,0,"1,101.70",R,EDF Energy
"Commercial, Corporate & landlord Services",Asset Management,Resources,Premises,Energy Costs,Electricity.,,09/05/2022,10995889,0,-362.64,R,EDF Energy
Finance & Business Devlopment,Attractions,MonLife Directorate,Premises,Energy Costs,Electricity.,,09/05/2022,10995891,0,597.7,R,EDF Energy
Schools Total,School Group 2 � Pupil Capacity 144-314,MCC Schools,Premises,Energy Costs,Electricity.,,09/05/2022,10995893,0,"-1,163.04",R,EDF Energy
Neighbourhood Services,Highways,Enterprise,Supplies & Services,"Equipment, Furniture and Materials",Materials & Consumables.,,17/05/2022,10995983,818428,563.76,R,Dragon Asphalt Ltd
Neighbourhood Services,Highways,Enterprise,Supplies & Services,Services,Professional And Specialist Fees,,09/05/2022,10995984,818419,"8,640.95",R,Conharfin Ltd
Neighbourhood Services,Highways,Enterprise,Transport,Contract Hire and Operating Leases,Plant Hire Charge,,09/05/2022,10995985,814565,287.86,R,Forest Traffic Signals Ltd
Neighbourhood Services,Highways,Enterprise,Supplies & Services,"Equipment, Furniture and Materials",Materials & Consumables.,,09/05/2022,10995986,10121741,244.68,R,Travis Perkins Trading Co Ltd
Neighbourhood Services,Highways,Enterprise,Transport,Direct Transport Costs,Vechicles Repairs and Maintenance,,09/05/2022,10995987,818493,12.71,R,Travis Perkins Trading Co Ltd
Neighbourhood Services,Highways,Enterprise,Supplies & Services,"Equipment, Furniture and Materials",Materials & Consumables.,,09/05/2022,10995988,10123138,8.5,R,Travis Perkins Trading Co Ltd
Neighbourhood Services,Highways,Enterprise,Supplies & Services,"Equipment, Furniture and Materials",Materials & Consumables.,,09/05/2022,10995989,818276,"2,167.20",R,Robert Price Builders Merchants Ltd
Neighbourhood Services,Highways,Enterprise,Supplies & Services,"Equipment, Furniture and Materials",Materials & Consumables.,,09/05/2022,10995990,818276,465.21,R,Robert Price Builders Merchants Ltd
"Commercial, Corporate & landlord Services",Property Services & Facilities Management,Resources,Premises,"Repairs, Alterations & Maintenance of Buildings",Building Improvements / Maintenance,,09/05/2022,10995991,90063117,50,R,Ambassador Fire & Security LTD
Countryside & Culture,Museums,MonLife Directorate,Premises,Energy Costs,Electricity.,,09/05/2022,10995992,0,97.99,R,SWALEC
Facilities & Fleet Management,Home to School Transport Dept,Enterprise,Premises,Energy Costs,Liquid Gas.,,09/05/2022,10995994,0,424.09,R,Calor Gas Ltd
"Commercial, Corporate & landlord Services",Property Services & Facilities Management,Resources,Premises,Energy Costs,Electricity.,,09/05/2022,10995996,0,429.14,R,EDF Energy
"Commercial, Corporate & landlord Services",Asset Management,Resources,Premises,Water Services,Water Services-Metered.,,09/05/2022,10995998,0,"1,034.76",R,Welsh Water
"Commercial, Corporate & landlord Services",Property Services & Facilities Management,Resources,Premises,Energy Costs,Liquid Gas.,,09/05/2022,10996000,0,571.98,R,Calor Gas Ltd
Schools Total,School Group 2 � Pupil Capacity 144-314,MCC Schools,Premises,Energy Costs,Liquid Gas.,,09/05/2022,10996002,0,921.18,R,Calor Gas Ltd
Facilities & Fleet Management,Home to School Transport Dept,Enterprise,Premises,Energy Costs,Liquid Gas.,,09/05/2022,10996004,0,495.21,R,Calor Gas Ltd
Neighbourhood Services,Waste and Street Services,Enterprise,Premises,Energy Costs,Electricity.,,09/05/2022,10996006,0,35.48,R,EDF Energy
Schools Total,School Group 2 � Pupil Capacity 144-314,MCC Schools,Premises,Energy Costs,Electricity.,,09/05/2022,10996008,0,"1,416.53",R,EDF Energy
Schools Total,School Group 2 � Pupil Capacity 144-314,MCC Schools,Premises,Energy Costs,Electricity.,,09/05/2022,10996010,0,904.55,R,EDF Energy
Schools Total,SCHGRP3 � School Group 3 � Pupil Capacity 315-500,MCC Schools,Premises,Energy Costs,Electricity.,,09/05/2022,10996012,0,"1,950.65",R,EDF Energy
"Policy, Scrutiny & Customer Service",Community Hubs,Chief Executive's Unit,Premises,Energy Costs,Electricity.,,09/05/2022,10996014,0,108.54,R,EDF Energy
Adult Services,Direct Care Residential,Social Care and Health,Premises,Energy Costs,Electricity.,,09/05/2022,10996016,0,"1,559.45",R,EDF Energy
"Commercial, Corporate & landlord Services",Asset Management,Resources,Premises,Energy Costs,Electricity.,,09/05/2022,10996018,0,29.24,R,EDF Energy
Finance & Business Devlopment,Attractions,MonLife Directorate,Premises,Energy Costs,Electricity.,,09/05/2022,10996020,0,411.66,R,EDF Energy
Neighbourhood Services,Waste and Street Services,Enterprise,Premises,Energy Costs,Electricity.,,09/05/2022,10996022,0,22.53,R,EDF Energy
Finance & Business Devlopment,Attractions,MonLife Directorate,Premises,Energy Costs,Electricity.,,09/05/2022,10996024,0,65.59,R,EDF Energy
"Policy, Scrutiny & Customer Service",Community Hubs,Chief Executive's Unit,Premises,Energy Costs,Electricity.,,09/05/2022,10996026,0,25.43,R,EDF Energy
Schools Total,School Group 2 � Pupil Capacity 144-314,MCC Schools,Premises,Energy Costs,Gas.,,09/05/2022,10996028,0,52.1,R,TOTAL GAS & POWER LIMITED
"Commercial, Corporate & landlord Services",Property Services & Facilities Management,Resources,Premises,Energy Costs,Gas.,,09/05/2022,10996030,0,751.86,R,TOTAL GAS & POWER LIMITED
"Commercial, Corporate & landlord Services",Property Services & Facilities Management,Resources,Premises,Energy Costs,Gas.,,09/05/2022,10996032,0,"1,464.04",R,TOTAL GAS & POWER LIMITED
Schools Total,School Group 2 � Pupil Capacity 144-314,MCC Schools,Premises,Energy Costs,Gas.,,09/05/2022,10996034,0,531.92,R,TOTAL GAS & POWER LIMITED
Schools Total,School Group 2 � Pupil Capacity 144-314,MCC Schools,Premises,Energy Costs,Gas.,,09/05/2022,10996036,0,967.66,R,TOTAL GAS & POWER LIMITED
"Policy, Scrutiny & Customer Service",Community Hubs,Chief Executive's Unit,Premises,Energy Costs,Gas.,,09/05/2022,10996038,0,297.87,R,TOTAL GAS & POWER LIMITED
Schools Total,School Group 2 � Pupil Capacity 144-314,MCC Schools,Premises,Energy Costs,Gas.,,09/05/2022,10996040,0,626.84,R,TOTAL GAS & POWER LIMITED
"Commercial, Corporate & landlord Services",Property Services & Facilities Management,Resources,Premises,Energy Costs,Gas.,,09/05/2022,10996042,0,576.29,R,TOTAL GAS & POWER LIMITED
"Commercial, Corporate & landlord Services",Asset Management,Resources,Premises,Energy Costs,Gas.,,09/05/2022,10996044,0,240.34,R,TOTAL GAS & POWER LIMITED
"Commercial, Corporate & landlord Services",Asset Management,Resources,Premises,Energy Costs,Gas.,,09/05/2022,10996045,0,73.81,R,TOTAL GAS & POWER LIMITED
"Commercial, Corporate & landlord Services",Property Services & Facilities Management,Resources,Premises,Energy Costs,Gas.,,09/05/2022,10996047,0,353.58,R,TOTAL GAS & POWER LIMITED
"Commercial, Corporate & landlord Services",Property Services & Facilities Management,Resources,Premises,Energy Costs,Gas.,,09/05/2022,10996049,0,290.97,R,TOTAL GAS & POWER LIMITED
Schools Total,School Group 2 � Pupil Capacity 144-314,MCC Schools,Premises,Energy Costs,Gas.,,09/05/2022,10996051,0,53.05,R,TOTAL GAS & POWER LIMITED
Schools Total,School Group 7 � Pupil Capacity 501-1800,MCC Schools,Premises,Energy Costs,Gas.,,09/05/2022,10996053,0,"3,534.69",R,TOTAL GAS & POWER LIMITED
Schools Total,School Group 2 � Pupil Capacity 144-314,MCC Schools,Premises,Energy Costs,Gas.,,09/05/2022,10996055,0,401.22,R,TOTAL GAS & POWER LIMITED
"Commercial, Corporate & landlord Services",Property Services & Facilities Management,Resources,Premises,Energy Costs,Gas.,,09/05/2022,10996057,0,113.08,R,TOTAL GAS & POWER LIMITED
"Leisure, Youth & Outdoor Adventure",Leisure Services,MonLife Directorate,Premises,Energy Costs,Gas.,,09/05/2022,10996059,0,197.31,R,TOTAL GAS & POWER LIMITED
Schools Total,School Group 2 � Pupil Capacity 144-314,MCC Schools,Premises,Energy Costs,Gas.,,09/05/2022,10996061,0,588.78,R,TOTAL GAS & POWER LIMITED
Schools Total,School Group 2 � Pupil Capacity 144-314,MCC Schools,Premises,Energy Costs,Gas.,,09/05/2022,10996063,0,332.24,R,TOTAL GAS & POWER LIMITED
"Leisure, Youth & Outdoor Adventure",Leisure Services,MonLife Directorate,Premises,Energy Costs,Gas.,,09/05/2022,10996065,0,"4,682.30",R,TOTAL GAS & POWER LIMITED
Neighbourhood Services,Waste and Street Services,Enterprise,Premises,Energy Costs,Gas.,,09/05/2022,10996067,0,94.78,R,TOTAL GAS & POWER LIMITED
Adult Services,Direct Care Residential,Social Care and Health,Premises,Energy Costs,Gas.,,09/05/2022,10996069,0,"1,764.46",R,TOTAL GAS & POWER LIMITED
Schools Total,SCHGRP3 � School Group 3 � Pupil Capacity 315-500,MCC Schools,Premises,Energy Costs,Gas.,,09/05/2022,10996071,0,726.35,R,TOTAL GAS & POWER LIMITED
Schools Total,School Group 2 � Pupil Capacity 144-314,MCC Schools,Premises,Energy Costs,Gas.,,09/05/2022,10996073,0,820.53,R,TOTAL GAS & POWER LIMITED
Finance & Business Devlopment,Attractions,MonLife Directorate,Premises,Energy Costs,Gas.,,09/05/2022,10996075,0,409.62,R,TOTAL GAS & POWER LIMITED
Schools Total,School Group 2 � Pupil Capacity 144-314,MCC Schools,Premises,Energy Costs,Gas.,,09/05/2022,10996077,0,408.28,R,TOTAL GAS & POWER LIMITED
Schools Total,School Group 1 � Pupil Capacity 1-143,MCC Schools,Premises,Energy Costs,Gas.,,09/05/2022,10996079,0,240.54,R,TOTAL GAS & POWER LIMITED
Schools Total,SCHGRP3 � School Group 3 � Pupil Capacity 315-500,MCC Schools,Premises,Energy Costs,Gas.,,09/05/2022,10996081,0,834.04,R,TOTAL GAS & POWER LIMITED
"Policy, Scrutiny & Customer Service",Community Hubs,Chief Executive's Unit,Premises,Energy Costs,Gas.,,09/05/2022,10996083,0,428.26,R,TOTAL GAS & POWER LIMITED
"Commercial, Corporate & landlord Services",Asset Management,Resources,Premises,Energy Costs,Gas.,,09/05/2022,10996085,0,54.87,R,TOTAL GAS & POWER LIMITED
"Commercial, Corporate & landlord Services",Property Services & Facilities Management,Resources,Premises,Energy Costs,Gas.,,09/05/2022,10996087,0,20.77,R,TOTAL GAS & POWER LIMITED
"Enterprise, Housing & Community Animation",General Fund Housing,Enterprise,Premises,Energy Costs,Gas.,,09/05/2022,10996089,0,39.37,R,TOTAL GAS & POWER LIMITED
Finance & Business Devlopment,Attractions,MonLife Directorate,Premises,Energy Costs,Gas.,,09/05/2022,10996091,0,237.78,R,TOTAL GAS & POWER LIMITED
Schools Total,School Group 2 � Pupil Capacity 144-314,MCC Schools,Premises,Energy Costs,Gas.,,09/05/2022,10996093,0,427.93,R,TOTAL GAS & POWER LIMITED
"Leisure, Youth & Outdoor Adventure",Leisure Services,MonLife Directorate,Premises,Energy Costs,Gas.,,09/05/2022,10996095,0,143.46,R,TOTAL GAS & POWER LIMITED
Children Services,Children Services Other,Social Care and Health,Premises,Energy Costs,Gas.,,09/05/2022,10996097,0,79.2,R,TOTAL GAS & POWER LIMITED
"Commercial, Corporate & landlord Services",Asset Management,Resources,Premises,Energy Costs,Gas.,,09/05/2022,10996099,0,51.15,R,TOTAL GAS & POWER LIMITED
"Commercial, Corporate & landlord Services",Asset Management,Resources,Premises,Energy Costs,Gas.,,09/05/2022,10996101,0,161.17,R,TOTAL GAS & POWER LIMITED
"Enterprise, Housing & Community Animation",General Fund Housing,Enterprise,Premises,Energy Costs,Gas.,,09/05/2022,10996103,0,30.54,R,TOTAL GAS & POWER LIMITED
Finance & Business Devlopment,Attractions,MonLife Directorate,Premises,Energy Costs,Gas.,,09/05/2022,10996105,0,107.37,R,TOTAL GAS & POWER LIMITED
Schools Total,School Group 7 � Pupil Capacity 501-1800,MCC Schools,Premises,Energy Costs,Electricity.,,09/05/2022,10996107,0,25.83,R,EDF Energy
Facilities & Fleet Management,Property Services -  Cleaning,Enterprise,Premises,Energy Costs,Electricity.,,09/05/2022,10996109,0,12.74,R,EDF Energy
Neighbourhood Services,Waste and Street Services,Enterprise,Premises,Energy Costs,Electricity.,,09/05/2022,10996111,0,492.62,R,EDF Energy
"Commercial, Corporate & landlord Services",Asset Management,Resources,Premises,Energy Costs,Electricity.,,09/05/2022,10996113,0,130.34,R,EDF Energy
Facilities & Fleet Management,Property Services -  Cleaning,Enterprise,Premises,Energy Costs,Electricity.,,09/05/2022,10996115,0,41.65,R,EDF Energy
"Commercial, Corporate & landlord Services",Property Services & Facilities Management,Resources,Premises,Energy Costs,Electricity.,,09/05/2022,10996117,0,542.21,R,EDF Energy
"Commercial, Corporate & landlord Services",Asset Management,Resources,Premises,Energy Costs,Electricity.,,09/05/2022,10996119,0,292.29,R,EDF Energy
Schools Total,School Group 2 � Pupil Capacity 144-314,MCC Schools,Premises,Energy Costs,Electricity.,,09/05/2022,10996121,0,"1,054.13",R,EDF Energy
Facilities & Fleet Management,Property Services -  Cleaning,Enterprise,Premises,Energy Costs,Electricity.,,09/05/2022,10996123,0,106.98,R,EDF Energy
Schools Total,School Group 2 � Pupil Capacity 144-314,MCC Schools,Premises,Energy Costs,Electricity.,,09/05/2022,10996125,0,653.75,R,EDF Energy
Facilities & Fleet Management,Property Services -  Cleaning,Enterprise,Premises,Energy Costs,Electricity.,,09/05/2022,10996127,0,100.09,R,EDF Energy
Facilities & Fleet Management,Home to School Transport Dept,Enterprise,Premises,Energy Costs,Electricity.,,09/05/2022,10996129,0,49.84,R,EDF Energy
Neighbourhood Services,Waste and Street Services,Enterprise,Premises,Energy Costs,Electricity.,,09/05/2022,10996131,0,21.65,R,EDF Energy
Schools Total,School Group 2 � Pupil Capacity 144-314,MCC Schools,Premises,Energy Costs,Electricity.,,09/05/2022,10996133,0,108.89,R,EDF Energy
"Policy, Scrutiny & Customer Service",Community Education,Chief Executive's Unit,Premises,Energy Costs,Electricity.,,09/05/2022,10996135,0,27.96,R,EDF Energy
Finance & Business Devlopment,Attractions,MonLife Directorate,Premises,Energy Costs,Electricity.,,09/05/2022,10996137,0,173.04,R,EDF Energy
"Policy, Scrutiny & Customer Service",Community Hubs,Chief Executive's Unit,Premises,Energy Costs,Electricity.,,09/05/2022,10996139,0,210.29,R,EDF Energy
"Leisure, Youth & Outdoor Adventure",Youth & Education,MonLife Directorate,Premises,Energy Costs,Electricity.,,09/05/2022,10996141,0,134.84,R,EDF Energy
Facilities & Fleet Management,Property Services -  Cleaning,Enterprise,Premises,Energy Costs,Electricity.,,09/05/2022,10996143,0,109.28,R,EDF Energy
Finance & Business Devlopment,Attractions,MonLife Directorate,Premises,Energy Costs,Electricity.,,09/05/2022,10996145,0,78.36,R,EDF Energy
Neighbourhood Services,Highways,Enterprise,Premises,Energy Costs,Electricity.,,09/05/2022,10996147,0,590.14,R,EDF Energy
Facilities & Fleet Management,Property Services -  Cleaning,Enterprise,Premises,Energy Costs,Electricity.,,09/05/2022,10996149,0,46.2,R,EDF Energy
Facilities & Fleet Management,Property Services -  Cleaning,Enterprise,Premises,Energy Costs,Electricity.,,09/05/2022,10996151,0,34.71,R,EDF Energy
Finance & Business Devlopment,Attractions,MonLife Directorate,Premises,Energy Costs,Electricity.,,09/05/2022,10996153,0,5.53,R,EDF Energy
Neighbourhood Services,Waste and Street Services,Enterprise,Premises,Energy Costs,Electricity.,,09/05/2022,10996155,0,349.22,R,EDF Energy
Appropriations,Appropriations,Appropriations,Premises,Energy Costs,Electricity.,,09/05/2022,10996157,0,0.01,R,EDF Energy
"Commercial, Corporate & landlord Services",Asset Management,Resources,Premises,Energy Costs,Electricity.,,09/05/2022,10996159,0,187.48,R,EDF Energy
Schools Total,School Group 2 � Pupil Capacity 144-314,MCC Schools,Premises,Energy Costs,Electricity.,,09/05/2022,10996161,0,871.51,R,EDF Energy
Facilities & Fleet Management,Property Services -  Cleaning,Enterprise,Premises,Energy Costs,Electricity.,,09/05/2022,10996163,0,108.66,R,EDF Energy
Schools Total,School Group 2 � Pupil Capacity 144-314,MCC Schools,Premises,Energy Costs,Electricity.,,09/05/2022,10996165,0,855.47,R,EDF Energy
Schools Total,School Group 1 � Pupil Capacity 1-143,MCC Schools,Premises,Energy Costs,Electricity.,,09/05/2022,10996167,0,122.59,R,EDF Energy
"Enterprise, Housing & Community Animation",General Fund Housing,Enterprise,Premises,Energy Costs,Electricity.,,09/05/2022,10996169,0,220.17,R,EDF Energy
Schools Total,School Group 1 � Pupil Capacity 1-143,MCC Schools,Premises,Energy Costs,Electricity.,,09/05/2022,10996171,0,319.38,R,EDF Energy
Schools Total,School Group 2 � Pupil Capacity 144-314,MCC Schools,Premises,Energy Costs,Electricity.,,09/05/2022,10996173,0,711.05,R,EDF Energy
"Commercial, Corporate & landlord Services",Asset Management,Resources,Premises,Energy Costs,Electricity.,,09/05/2022,10996175,0,255.43,R,EDF Energy
Neighbourhood Services,Waste and Street Services,Enterprise,Premises,Energy Costs,Electricity.,,09/05/2022,10996177,0,7.77,R,EDF Energy
"Commercial, Corporate & landlord Services",Asset Management,Resources,Premises,Energy Costs,Electricity.,,09/05/2022,10996179,0,9.89,R,EDF Energy
"Enterprise, Housing & Community Animation",General Fund Housing,Enterprise,Premises,Energy Costs,Electricity.,,09/05/2022,10996181,0,67.5,R,EDF Energy
"Commercial, Corporate & landlord Services",Asset Management,Resources,Premises,Energy Costs,Electricity.,,09/05/2022,10996183,0,99.81,R,EDF Energy
Public Protection,Public Protection,Social Care and Health,Premises,Energy Costs,Electricity.,,09/05/2022,10996185,0,213.89,R,EDF Energy
Facilities & Fleet Management,Property Services -  Cleaning,Enterprise,Premises,Energy Costs,Electricity.,,09/05/2022,10996187,0,103.51,R,EDF Energy
Schools Total,School Group 2 � Pupil Capacity 144-314,MCC Schools,Premises,Energy Costs,Electricity.,,09/05/2022,10996189,0,"1,236.59",R,EDF Energy
"Commercial, Corporate & landlord Services",Asset Management,Resources,Premises,Water Services,Water Services-Metered.,,09/05/2022,10996191,0,"29,745.28",R,Welsh Water
"Policy, Scrutiny & Customer Service",Community Hubs,Chief Executive's Unit,Premises,Energy Costs,Electricity.,,09/05/2022,10996193,0,24.96,R,EDF Energy
"Policy, Scrutiny & Customer Service",Community Hubs,Chief Executive's Unit,Premises,Energy Costs,Electricity.,,09/05/2022,10996195,0,26.96,R,EDF Energy
"Policy, Scrutiny & Customer Service",Community Hubs,Chief Executive's Unit,Premises,Energy Costs,Electricity.,,09/05/2022,10996197,0,26.96,R,EDF Energy
"Policy, Scrutiny & Customer Service",Community Hubs,Chief Executive's Unit,Premises,Energy Costs,Electricity.,,09/05/2022,10996199,0,-216.19,R,EDF Energy
"Commercial, Corporate & landlord Services",Asset Management,Resources,Premises,Energy Costs,Electricity.,,09/05/2022,10996201,0,865.13,R,EDF Energy
"Policy, Scrutiny & Customer Service",Community Hubs,Chief Executive's Unit,Premises,Energy Costs,Electricity.,,09/05/2022,10996203,0,-189.04,R,EDF Energy
"Commercial, Corporate & landlord Services",Asset Management,Resources,Premises,Energy Costs,Electricity.,,09/05/2022,10996205,0,255.94,R,EDF Energy
Schools Total,School Group 7 � Pupil Capacity 501-1800,MCC Schools,Premises,"Repairs, Alterations & Maintenance of Buildings",Building Improvements / Maintenance,,10/05/2022,10996207,90063119,104.6,R,Ambassador Fire & Security LTD
"Commercial, Corporate & landlord Services",Property Services & Facilities Management,Resources,Premises,"Repairs, Alterations & Maintenance of Buildings",Building Improvements / Maintenance,,10/05/2022,10996208,90063116,50,R,Ambassador Fire & Security LTD
Schools Total,School Group 7 � Pupil Capacity 501-1800,MCC Schools,Premises,"Repairs, Alterations & Maintenance of Buildings",Building Improvements / Maintenance,,10/05/2022,10996209,90063177,215.5,R,Ambassador Fire & Security LTD
Schools Total,School Group 7 � Pupil Capacity 501-1800,MCC Schools,Premises,"Repairs, Alterations & Maintenance of Buildings",Building Improvements / Maintenance,,10/05/2022,10996210,90063087,50,R,Ambassador Fire & Security LTD
Schools Total,School Group 7 � Pupil Capacity 501-1800,MCC Schools,Premises,"Repairs, Alterations & Maintenance of Buildings",Building Improvements / Maintenance,,10/05/2022,10996211,90063041,50,R,Ambassador Fire & Security LTD
Schools Total,School Group 7 � Pupil Capacity 501-1800,MCC Schools,Premises,"Repairs, Alterations & Maintenance of Buildings",Building Improvements / Maintenance,,10/05/2022,10996212,90063100,50,R,Ambassador Fire & Security LTD
Schools Total,School Group 7 � Pupil Capacity 501-1800,MCC Schools,Premises,"Repairs, Alterations & Maintenance of Buildings",Building Improvements / Maintenance,,10/05/2022,10996213,90063101,50,R,Ambassador Fire & Security LTD
Neighbourhood Services,Highways,Enterprise,Premises,"Repairs, Alterations & Maintenance of Buildings",Skip Hire,,10/05/2022,10996214,818327,415,R,Volehurst Ltd
Schools Total,School Group 2 � Pupil Capacity 144-314,MCC Schools,Premises,"Repairs, Alterations & Maintenance of Buildings",Building Improvements / Maintenance,,10/05/2022,10996215,90062815,50,R,Ambassador Fire & Security LTD
Schools Total,School Group 7 � Pupil Capacity 501-1800,MCC Schools,Premises,"Repairs, Alterations & Maintenance of Buildings",Building Improvements / Maintenance,,10/05/2022,10996216,90063034,75,R,Ambassador Fire & Security LTD
Schools Total,School Group 2 � Pupil Capacity 144-314,MCC Schools,Premises,"Repairs, Alterations & Maintenance of Buildings",Building Improvements / Maintenance,,10/05/2022,10996217,90062759,96,R,Ambassador Fire & Security LTD
"Commercial, Corporate & landlord Services",Property Services & Facilities Management,Resources,Premises,"Repairs, Alterations & Maintenance of Buildings",Building Improvements / Maintenance,,10/05/2022,10996218,90063102,96,R,Ambassador Fire & Security LTD
"Commercial, Corporate & landlord Services",Property Services & Facilities Management,Resources,Premises,"Repairs, Alterations & Maintenance of Buildings",Building Improvements / Maintenance,,10/05/2022,10996219,90063046,50,R,Ambassador Fire & Security LTD
Neighbourhood Services,Highways,Enterprise,Transport,Contract Hire and Operating Leases,Plant Hire Charge,,10/05/2022,10996231,10121030,436,R,Chepstow Construction Equipment Ltd
Neighbourhood Services,Highways,Enterprise,Transport,Contract Hire and Operating Leases,Plant Hire Charge,,10/05/2022,10996233,10121724,501.4,R,Chepstow Construction Equipment Ltd
"Commercial, Corporate & landlord Services",Property Services & Facilities Management,Resources,Premises,"Repairs, Alterations & Maintenance of Buildings",Building Improvements / Maintenance,,12/05/2022,10996235,90058428,50,R,Ambassador Fire & Security LTD
Schools Total,School Group 2 � Pupil Capacity 144-314,MCC Schools,Premises,"Repairs, Alterations & Maintenance of Buildings",Building Improvements / Maintenance,,12/05/2022,10996236,90061508,163,R,Ambassador Fire & Security LTD
"Commercial, Corporate & landlord Services",Property Services & Facilities Management,Resources,Premises,"Repairs, Alterations & Maintenance of Buildings",Building Improvements / Maintenance,,10/05/2022,10996237,90062408,75,R,Ambassador Fire & Security LTD
Schools Total,School Group 7 � Pupil Capacity 501-1800,MCC Schools,Premises,"Repairs, Alterations & Maintenance of Buildings",Building Improvements / Maintenance,,10/05/2022,10996238,90062522,50,R,Ambassador Fire & Security LTD
"Commercial, Corporate & landlord Services",Property Services & Facilities Management,Resources,Premises,"Repairs, Alterations & Maintenance of Buildings",Building Improvements / Maintenance,,10/05/2022,10996239,90062886,50,R,Ambassador Fire & Security LTD
Neighbourhood Services,Highways,Enterprise,Supplies & Services,"Equipment, Furniture and Materials",Materials & Consumables.,,10/05/2022,10996268,10120184,53.9,R,Robert Price Builders Merchants Ltd
Neighbourhood Services,Highways,Enterprise,Supplies & Services,"Equipment, Furniture and Materials",Materials & Consumables.,,10/05/2022,10996270,10123137,38.31,R,Robert Price Builders Merchants Ltd
Neighbourhood Services,Highways,Enterprise,Transport,Contract Hire and Operating Leases,Plant Hire Charge,,10/05/2022,10996271,817129,762,R,Forest Traffic Signals Ltd
Neighbourhood Services,Highways,Enterprise,Transport,Contract Hire and Operating Leases,Plant Hire Charge,,10/05/2022,10996272,818285,327,R,Forest Traffic Signals Ltd
Neighbourhood Services,Highways,Enterprise,Transport,Contract Hire and Operating Leases,Plant Hire Charge,,10/05/2022,10996273,817661,872,R,Chepstow Construction Equipment Ltd
Neighbourhood Services,Highways,Enterprise,Transport,Contract Hire and Operating Leases,Plant Hire Charge,,10/05/2022,10996274,817661,"1,002.80",R,Chepstow Construction Equipment Ltd
Neighbourhood Services,Highways,Enterprise,Supplies & Services,"Equipment, Furniture and Materials",Materials & Consumables.,,19/05/2022,10996275,818371,123.12,R,Dragon Asphalt Ltd
"Commercial, Corporate & landlord Services",Property Services & Facilities Management,Resources,Premises,"Repairs, Alterations & Maintenance of Buildings",Premises Repairs And Maintenance,,23/05/2022,10996276,90059462,345,R,Industrial Door Services
Neighbourhood Services,Highways,Enterprise,Supplies & Services,"Equipment, Furniture and Materials",Materials & Consumables.,,17/05/2022,10996277,818436,483.84,R,Dragon Asphalt Ltd
Neighbourhood Services,Highways,Enterprise,Supplies & Services,"Equipment, Furniture and Materials",Materials & Consumables.,,17/05/2022,10996278,818436,481.92,R,Dragon Asphalt Ltd
Neighbourhood Services,Highways,Enterprise,Supplies & Services,"Equipment, Furniture and Materials",Materials & Consumables.,,18/05/2022,10996279,818436,485.76,R,Dragon Asphalt Ltd
Neighbourhood Services,Highways,Enterprise,Supplies & Services,"Equipment, Furniture and Materials",Materials & Consumables.,,17/05/2022,10996280,818436,480,R,Dragon Asphalt Ltd
Neighbourhood Services,Highways,Enterprise,Supplies & Services,"Equipment, Furniture and Materials",Materials & Consumables.,,19/05/2022,10996281,818436,493.44,R,Dragon Asphalt Ltd
"Commercial, Corporate & landlord Services",Property Services & Facilities Management,Resources,Premises,"Repairs, Alterations & Maintenance of Buildings",Premises Repairs And Maintenance,,17/05/2022,10996283,90058757,344.13,R,Lorne Stewart  Plc
Neighbourhood Services,Highways,Enterprise,Supplies & Services,"Equipment, Furniture and Materials",Materials & Consumables.,,19/05/2022,10996284,818466,460.8,R,Dragon Asphalt Ltd
Neighbourhood Services,Highways,Enterprise,Supplies & Services,"Equipment, Furniture and Materials",Small Plant & Tools.,,10/05/2022,10996286,10121039,380.67,R,South Wales Locksmiths
Neighbourhood Services,Highways,Enterprise,Supplies & Services,"Equipment, Furniture and Materials",Small Plant & Tools.,,10/05/2022,10996287,10121734,37.8,R,South Wales Locksmiths
Neighbourhood Services,Highways,Enterprise,Supplies & Services,"Equipment, Furniture and Materials",Materials & Consumables.,,11/05/2022,10996288,818421,925.76,R,Hanson Quarry Products Europe Ltd
Neighbourhood Services,Highways,Enterprise,Supplies & Services,"Equipment, Furniture and Materials",Materials & Consumables.,,10/05/2022,10996289,818425,407.88,R,Hanson Quarry Products Europe Ltd
"Commercial, Corporate & landlord Services",Property Services & Facilities Management,Resources,Premises,"Repairs, Alterations & Maintenance of Buildings",Building Improvements / Maintenance,,17/05/2022,10996293,90062735,180,R,Industrial Door Services
"Commercial, Corporate & landlord Services",Property Services & Facilities Management,Resources,Premises,"Repairs, Alterations & Maintenance of Buildings",Building Improvements / Maintenance,,17/05/2022,10996294,90062726,270,R,Industrial Door Services
"Commercial, Corporate & landlord Services",Property Services & Facilities Management,Resources,Premises,"Repairs, Alterations & Maintenance of Buildings",Building Improvements / Maintenance,,17/05/2022,10996295,90060773,326.82,R,Industrial Door Services
"Commercial, Corporate & landlord Services",Property Services & Facilities Management,Resources,Premises,"Repairs, Alterations & Maintenance of Buildings",Building Improvements / Maintenance,,23/05/2022,10996296,90061390,998.43,R,Industrial Door Services
"Enterprise, Housing & Community Animation",General Fund Housing,Enterprise,Premises,Rents,Rents/Hire Of Premises.,,10/05/2022,10996297,0,500,R,REDACTED PERSONAL DATA
"Enterprise, Housing & Community Animation",General Fund Housing,Enterprise,Premises,Rents,Rents/Hire Of Premises.,,10/05/2022,10996299,0,500,R,REDACTED PERSONAL DATA
"Enterprise, Housing & Community Animation",General Fund Housing,Enterprise,Premises,Rents,Rents/Hire Of Premises.,,10/05/2022,10996301,0,400,R,REDACTED PERSONAL DATA
"Enterprise, Housing & Community Animation",General Fund Housing,Enterprise,Premises,Rents,Rents/Hire Of Premises.,,10/05/2022,10996303,0,590,R,REDACTED PERSONAL DATA
Neighbourhood Services,Highways,Enterprise,Third Party Payments,Third Party,Hedge/Tree Cutting,,16/05/2022,10996306,818353,520.71,R,Eco Vigour Ltd
Neighbourhood Services,Highways,Enterprise,Third Party Payments,Third Party,Hedge/Tree Cutting,,16/05/2022,10996307,818353,372.3,R,Eco Vigour Ltd
Neighbourhood Services,Highways,Enterprise,Third Party Payments,Third Party,Hedge/Tree Cutting,,16/05/2022,10996308,818353,298.86,R,Eco Vigour Ltd
Neighbourhood Services,Highways,Enterprise,Third Party Payments,Third Party,Hedge/Tree Cutting,,16/05/2022,10996309,818260,"2,761.60",R,Eco Vigour Ltd
Neighbourhood Services,Highways,Enterprise,Third Party Payments,Third Party,Hedge/Tree Cutting,,16/05/2022,10996310,818353,"1,588.40",R,Eco Vigour Ltd
"Commercial, Corporate & landlord Services",Property Services & Facilities Management,Resources,Premises,"Repairs, Alterations & Maintenance of Buildings",Building Improvements / Maintenance,,17/05/2022,10996311,90062797,125,R,Industrial Door Services
Schools Total,School Group 7 � Pupil Capacity 501-1800,MCC Schools,Premises,"Repairs, Alterations & Maintenance of Buildings",Building Improvements / Maintenance,,17/05/2022,10996312,90062952,125,R,Industrial Door Services
"Commercial, Corporate & landlord Services",Property Services & Facilities Management,Resources,Premises,"Repairs, Alterations & Maintenance of Buildings",Building Improvements / Maintenance,,19/05/2022,10996313,760017492,643.6,R,Springvale Wproofing Ltd
"Commercial, Corporate & landlord Services",Property Services & Facilities Management,Resources,Premises,"Repairs, Alterations & Maintenance of Buildings",Building Improvements / Maintenance,,19/05/2022,10996314,760018356,502.12,R,Springvale Wproofing Ltd
"Commercial, Corporate & landlord Services",Property Services & Facilities Management,Resources,Premises,"Repairs, Alterations & Maintenance of Buildings",Building Improvements / Maintenance,,17/05/2022,10996315,760018240,221.76,R,Springvale Wproofing Ltd
Schools Total,SCHGRP3 � School Group 3 � Pupil Capacity 315-500,MCC Schools,Premises,"Repairs, Alterations & Maintenance of Buildings",Building Improvements / Maintenance,,19/05/2022,10996316,90061385,655.67,R,Springvale Wproofing Ltd
"Commercial, Corporate & landlord Services",Property Services & Facilities Management,Resources,Premises,"Repairs, Alterations & Maintenance of Buildings",Building Improvements / Maintenance,,17/05/2022,10996317,90061656,"7,526.08",R,Springvale Wproofing Ltd
Neighbourhood Services,Highways,Enterprise,Third Party Payments,Third Party,Hedge/Tree Cutting,,16/05/2022,10996318,818439,882.6,R,Eco Vigour Ltd
"Commercial, Corporate & landlord Services",Property Services & Facilities Management,Resources,Premises,"Repairs, Alterations & Maintenance of Buildings",Building Improvements / Maintenance,,17/05/2022,10996319,760017502,894.63,R,Springvale Wproofing Ltd
"Commercial, Corporate & landlord Services",Property Services & Facilities Management,Resources,Premises,"Repairs, Alterations & Maintenance of Buildings",Building Improvements / Maintenance,,18/05/2022,10996320,760017314,676.67,R,Springvale Wproofing Ltd
"Commercial, Corporate & landlord Services",Property Services & Facilities Management,Resources,Premises,"Repairs, Alterations & Maintenance of Buildings",Building Improvements / Maintenance,,17/05/2022,10996321,760017504,897.16,R,Springvale Wproofing Ltd
"Commercial, Corporate & landlord Services",Property Services & Facilities Management,Resources,Premises,"Repairs, Alterations & Maintenance of Buildings",Building Improvements / Maintenance,,18/05/2022,10996322,90062011,673.91,R,Springvale Wproofing Ltd
Neighbourhood Services,Highways,Enterprise,Supplies & Services,"Equipment, Furniture and Materials",Materials & Consumables.,,11/05/2022,10996342,10123138,80.09,R,Travis Perkins Trading Co Ltd
"Commercial, Corporate & landlord Services",Property Services & Facilities Management,Resources,Supplies & Services,Communications and Computing,Telephone,,11/05/2022,10996343,90063678,129,R,BT Business Direct
Schools Total,School Group 7 � Pupil Capacity 501-1800,MCC Schools,Premises,"Repairs, Alterations & Maintenance of Buildings",Building Improvements / Maintenance,,17/05/2022,10996385,90062553,126.38,R,A.J Quinn Building Contractors Ltd
Neighbourhood Services,Highways,Enterprise,Supplies & Services,"Equipment, Furniture and Materials",Repairs & Maintenance.,,11/05/2022,10996386,818149,251.44,R,Enerveo Ltd
Schools Total,School Group 1 � Pupil Capacity 1-143,MCC Schools,Premises,"Repairs, Alterations & Maintenance of Buildings",Building Improvements / Maintenance,,19/05/2022,10996388,90062710,266.96,R,A.J Quinn Building Contractors Ltd
"Commercial, Corporate & landlord Services",Property Services & Facilities Management,Resources,Premises,"Repairs, Alterations & Maintenance of Buildings",Building Improvements / Maintenance,,17/05/2022,10996392,90062936,42,R,A.J Quinn Building Contractors Ltd
"Commercial, Corporate & landlord Services",Property Services & Facilities Management,Resources,Premises,"Repairs, Alterations & Maintenance of Buildings",Building Improvements / Maintenance,,18/05/2022,10996394,90062987,86.08,R,A.J Quinn Building Contractors Ltd
"Commercial, Corporate & landlord Services",Property Services & Facilities Management,Resources,Premises,"Repairs, Alterations & Maintenance of Buildings",Building Improvements / Maintenance,,17/05/2022,10996395,90063002,101.33,R,A.J Quinn Building Contractors Ltd
"Commercial, Corporate & landlord Services",Property Services & Facilities Management,Resources,Premises,"Repairs, Alterations & Maintenance of Buildings",Building Improvements / Maintenance,,19/05/2022,10996397,90063028,"13,008.90",R,A.J Quinn Building Contractors Ltd
Schools Total,School Group 2 � Pupil Capacity 144-314,MCC Schools,Premises,"Repairs, Alterations & Maintenance of Buildings",Building Improvements / Maintenance,,19/05/2022,10996405,90063035,299.96,R,A.J Quinn Building Contractors Ltd
"Commercial, Corporate & landlord Services",Property Services & Facilities Management,Resources,Premises,"Repairs, Alterations & Maintenance of Buildings",Building Improvements / Maintenance,,17/05/2022,10996419,90063038,60.17,R,A.J Quinn Building Contractors Ltd
"Commercial, Corporate & landlord Services",Property Services & Facilities Management,Resources,Premises,"Repairs, Alterations & Maintenance of Buildings",Building Improvements / Maintenance,,18/05/2022,10996420,90063039,"3,926.33",R,A.J Quinn Building Contractors Ltd
"Commercial, Corporate & landlord Services",Property Services & Facilities Management,Resources,Premises,"Repairs, Alterations & Maintenance of Buildings",Building Improvements / Maintenance,,16/05/2022,10996424,90059045,32.34,R,Box-It Wales and Severn
"Commercial, Corporate & landlord Services",Property Services & Facilities Management,Resources,Premises,"Repairs, Alterations & Maintenance of Buildings",Building Improvements / Maintenance,,17/05/2022,10996427,90063074,77.77,R,A.J Quinn Building Contractors Ltd
"Commercial, Corporate & landlord Services",Property Services & Facilities Management,Resources,Premises,"Repairs, Alterations & Maintenance of Buildings",Building Improvements / Maintenance,,18/05/2022,10996428,90063096,121.33,R,A.J Quinn Building Contractors Ltd
"Commercial, Corporate & landlord Services",Property Services & Facilities Management,Resources,Premises,"Repairs, Alterations & Maintenance of Buildings",Building Improvements / Maintenance,,11/05/2022,10996429,90063341,"1,095.00",R,Hightech Water Services
"Commercial, Corporate & landlord Services",Property Services & Facilities Management,Resources,Premises,"Repairs, Alterations & Maintenance of Buildings",Building Improvements / Maintenance,,11/05/2022,10996430,90063509,97.5,R,Hightech Water Services
"Commercial, Corporate & landlord Services",Property Services & Facilities Management,Resources,Premises,"Repairs, Alterations & Maintenance of Buildings",Building Improvements / Maintenance,,11/05/2022,10996432,90063506,838.5,R,Hightech Water Services
"Commercial, Corporate & landlord Services",Property Services & Facilities Management,Resources,Premises,"Repairs, Alterations & Maintenance of Buildings",Building Improvements / Maintenance,,12/05/2022,10996433,90063507,"2,313.00",R,Hightech Water Services
"Commercial, Corporate & landlord Services",Property Services & Facilities Management,Resources,Premises,"Repairs, Alterations & Maintenance of Buildings",Building Improvements / Maintenance,,12/05/2022,10996434,90063508,269.4,R,Hightech Water Services
Schools Total,School Group 7 � Pupil Capacity 501-1800,MCC Schools,Premises,"Repairs, Alterations & Maintenance of Buildings",Premises Repairs And Maintenance,,12/05/2022,10996436,90058902,140,R,Fire Safety Direct
Schools Total,School Group 7 � Pupil Capacity 501-1800,MCC Schools,Premises,"Repairs, Alterations & Maintenance of Buildings",Premises Repairs And Maintenance,,12/05/2022,10996437,90058902,140,R,Fire Safety Direct
"Commercial, Corporate & landlord Services",Property Services & Facilities Management,Resources,Premises,"Repairs, Alterations & Maintenance of Buildings",Premises Repairs And Maintenance,,13/05/2022,10996439,90061763,149.1,R,Fire Safety Direct
"Commercial, Corporate & landlord Services",Property Services & Facilities Management,Resources,Premises,"Repairs, Alterations & Maintenance of Buildings",Premises Repairs And Maintenance,,13/05/2022,10996440,90062216,31.8,R,Fire Safety Direct
"Commercial, Corporate & landlord Services",Property Services & Facilities Management,Resources,Premises,"Repairs, Alterations & Maintenance of Buildings",Premises Repairs And Maintenance,,12/05/2022,10996442,90062217,4.14,R,Fire Safety Direct
"Commercial, Corporate & landlord Services",Property Services & Facilities Management,Resources,Premises,"Repairs, Alterations & Maintenance of Buildings",Premises Repairs And Maintenance,,13/05/2022,10996443,90061766,111.8,R,Fire Safety Direct
"Commercial, Corporate & landlord Services",Property Services & Facilities Management,Resources,Premises,"Repairs, Alterations & Maintenance of Buildings",Premises Repairs And Maintenance,,26/05/2022,10996444,90061774,104.04,R,Fire Safety Direct
"Commercial, Corporate & landlord Services",Property Services & Facilities Management,Resources,Premises,"Repairs, Alterations & Maintenance of Buildings",Premises Repairs And Maintenance,,12/05/2022,10996445,90061775,4.14,R,Fire Safety Direct
"Commercial, Corporate & landlord Services",Property Services & Facilities Management,Resources,Premises,"Repairs, Alterations & Maintenance of Buildings",Premises Repairs And Maintenance,,13/05/2022,10996446,90062224,99.38,R,Fire Safety Direct
"Enterprise, Housing & Community Animation",General Fund Housing,Enterprise,Premises,Rents,Rents/Hire Of Premises.,,12/05/2022,10996904,0,575,R,REDACTED PERSONAL DATA
"Commercial, Corporate & landlord Services",Property Services & Facilities Management,Resources,Premises,"Repairs, Alterations & Maintenance of Buildings",Building Improvements / Maintenance,,12/05/2022,10996906,90061859,458.33,R,WCI SEWAGE TREATMENT
Finance,Revenues Department,Resources,Supplies & Services,Grants and Subscriptions,Disbursements,,12/05/2022,10996908,0,150,R,Cost of Living Payments
Finance,Revenues Department,Resources,Supplies & Services,Grants and Subscriptions,Disbursements,,12/05/2022,10996910,0,150,R,Cost of Living Payments
Finance,Revenues Department,Resources,Supplies & Services,Grants and Subscriptions,Disbursements,,12/05/2022,10996912,0,150,R,Cost of Living Payments
Finance,Revenues Department,Resources,Supplies & Services,Grants and Subscriptions,Disbursements,,12/05/2022,10996914,0,150,R,Cost of Living Payments
Finance,Revenues Department,Resources,Supplies & Services,Grants and Subscriptions,Disbursements,,12/05/2022,10996916,0,150,R,Cost of Living Payments
Finance,Revenues Department,Resources,Supplies & Services,Grants and Subscriptions,Disbursements,,12/05/2022,10996918,0,150,R,Cost of Living Payments
Finance,Revenues Department,Resources,Supplies & Services,Grants and Subscriptions,Disbursements,,12/05/2022,10996920,0,150,R,Cost of Living Payments
Finance,Revenues Department,Resources,Supplies & Services,Grants and Subscriptions,Disbursements,,12/05/2022,10996922,0,150,R,Cost of Living Payments
Finance,Revenues Department,Resources,Supplies & Services,Grants and Subscriptions,Disbursements,,12/05/2022,10996924,0,150,R,Cost of Living Payments
Finance,Revenues Department,Resources,Supplies & Services,Grants and Subscriptions,Disbursements,,12/05/2022,10996926,0,150,R,Cost of Living Payments
Finance,Revenues Department,Resources,Supplies & Services,Grants and Subscriptions,Disbursements,,12/05/2022,10996928,0,150,R,Cost of Living Payments
Finance,Revenues Department,Resources,Supplies & Services,Grants and Subscriptions,Disbursements,,12/05/2022,10996930,0,150,R,Cost of Living Payments
Finance,Revenues Department,Resources,Supplies & Services,Grants and Subscriptions,Disbursements,,12/05/2022,10996932,0,150,R,Cost of Living Payments
Finance,Revenues Department,Resources,Supplies & Services,Grants and Subscriptions,Disbursements,,12/05/2022,10996934,0,150,R,Cost of Living Payments
Finance,Revenues Department,Resources,Supplies & Services,Grants and Subscriptions,Disbursements,,12/05/2022,10996936,0,150,R,Cost of Living Payments
Finance,Revenues Department,Resources,Supplies & Services,Grants and Subscriptions,Disbursements,,12/05/2022,10996938,0,150,R,Cost of Living Payments
Finance,Revenues Department,Resources,Supplies & Services,Grants and Subscriptions,Disbursements,,12/05/2022,10996940,0,150,R,Cost of Living Payments
Finance,Revenues Department,Resources,Supplies & Services,Grants and Subscriptions,Disbursements,,12/05/2022,10996941,0,150,R,Cost of Living Payments
Finance,Revenues Department,Resources,Supplies & Services,Grants and Subscriptions,Disbursements,,12/05/2022,10996943,0,150,R,Cost of Living Payments
Finance,Revenues Department,Resources,Supplies & Services,Grants and Subscriptions,Disbursements,,12/05/2022,10996945,0,150,R,Cost of Living Payments
Finance,Revenues Department,Resources,Supplies & Services,Grants and Subscriptions,Disbursements,,12/05/2022,10996947,0,150,R,Cost of Living Payments
Finance,Revenues Department,Resources,Supplies & Services,Grants and Subscriptions,Disbursements,,12/05/2022,10996949,0,150,R,Cost of Living Payments
Finance,Revenues Department,Resources,Supplies & Services,Grants and Subscriptions,Disbursements,,12/05/2022,10996951,0,150,R,Cost of Living Payments
Finance,Revenues Department,Resources,Supplies & Services,Grants and Subscriptions,Disbursements,,12/05/2022,10996953,0,150,R,Cost of Living Payments
Finance,Revenues Department,Resources,Supplies & Services,Grants and Subscriptions,Disbursements,,12/05/2022,10996955,0,150,R,Cost of Living Payments
Finance,Revenues Department,Resources,Supplies & Services,Grants and Subscriptions,Disbursements,,12/05/2022,10996957,0,150,R,Cost of Living Payments
Finance,Revenues Department,Resources,Supplies & Services,Grants and Subscriptions,Disbursements,,12/05/2022,10996959,0,150,R,Cost of Living Payments
Finance,Revenues Department,Resources,Supplies & Services,Grants and Subscriptions,Disbursements,,12/05/2022,10996961,0,150,R,Cost of Living Payments
Finance,Revenues Department,Resources,Supplies & Services,Grants and Subscriptions,Disbursements,,12/05/2022,10996963,0,150,R,Cost of Living Payments
Finance,Revenues Department,Resources,Supplies & Services,Grants and Subscriptions,Disbursements,,12/05/2022,10996965,0,150,R,Cost of Living Payments
Finance,Revenues Department,Resources,Supplies & Services,Grants and Subscriptions,Disbursements,,12/05/2022,10996967,0,150,R,Cost of Living Payments
Finance,Revenues Department,Resources,Supplies & Services,Grants and Subscriptions,Disbursements,,12/05/2022,10996969,0,150,R,Cost of Living Payments
Finance,Revenues Department,Resources,Supplies & Services,Grants and Subscriptions,Disbursements,,12/05/2022,10996971,0,150,R,Cost of Living Payments
Finance,Revenues Department,Resources,Supplies & Services,Grants and Subscriptions,Disbursements,,12/05/2022,10996973,0,150,R,Cost of Living Payments
Finance,Revenues Department,Resources,Supplies & Services,Grants and Subscriptions,Disbursements,,12/05/2022,10996975,0,150,R,Cost of Living Payments
Finance,Revenues Department,Resources,Supplies & Services,Grants and Subscriptions,Disbursements,,12/05/2022,10996977,0,150,R,Cost of Living Payments
Finance,Revenues Department,Resources,Supplies & Services,Grants and Subscriptions,Disbursements,,12/05/2022,10996979,0,150,R,Cost of Living Payments
Finance,Revenues Department,Resources,Supplies & Services,Grants and Subscriptions,Disbursements,,12/05/2022,10996981,0,150,R,Cost of Living Payments
Finance,Revenues Department,Resources,Supplies & Services,Grants and Subscriptions,Disbursements,,12/05/2022,10996983,0,150,R,Cost of Living Payments
Finance,Revenues Department,Resources,Supplies & Services,Grants and Subscriptions,Disbursements,,12/05/2022,10996986,0,150,R,Cost of Living Payments
Finance,Revenues Department,Resources,Supplies & Services,Grants and Subscriptions,Disbursements,,12/05/2022,10996989,0,150,R,Cost of Living Payments
Finance,Revenues Department,Resources,Supplies & Services,Grants and Subscriptions,Disbursements,,12/05/2022,10996991,0,150,R,Cost of Living Payments
Finance,Revenues Department,Resources,Supplies & Services,Grants and Subscriptions,Disbursements,,12/05/2022,10996993,0,150,R,Cost of Living Payments
Finance,Revenues Department,Resources,Supplies & Services,Grants and Subscriptions,Disbursements,,12/05/2022,10996995,0,150,R,Cost of Living Payments
Finance,Revenues Department,Resources,Supplies & Services,Grants and Subscriptions,Disbursements,,12/05/2022,10996997,0,150,R,Cost of Living Payments
Finance,Revenues Department,Resources,Supplies & Services,Grants and Subscriptions,Disbursements,,12/05/2022,10996999,0,150,R,Cost of Living Payments
Finance,Revenues Department,Resources,Supplies & Services,Grants and Subscriptions,Disbursements,,12/05/2022,10997001,0,150,R,Cost of Living Payments
Finance,Revenues Department,Resources,Supplies & Services,Grants and Subscriptions,Disbursements,,12/05/2022,10997003,0,150,R,Cost of Living Payments
Finance,Revenues Department,Resources,Supplies & Services,Grants and Subscriptions,Disbursements,,12/05/2022,10997005,0,150,R,Cost of Living Payments
Finance,Revenues Department,Resources,Supplies & Services,Grants and Subscriptions,Disbursements,,12/05/2022,10997007,0,150,R,Cost of Living Payments
Finance,Revenues Department,Resources,Supplies & Services,Grants and Subscriptions,Disbursements,,12/05/2022,10997009,0,150,R,Cost of Living Payments
Finance,Revenues Department,Resources,Supplies & Services,Grants and Subscriptions,Disbursements,,12/05/2022,10997011,0,150,R,Cost of Living Payments
Finance,Revenues Department,Resources,Supplies & Services,Grants and Subscriptions,Disbursements,,12/05/2022,10997013,0,150,R,Cost of Living Payments
Finance,Revenues Department,Resources,Supplies & Services,Grants and Subscriptions,Disbursements,,12/05/2022,10997015,0,150,R,Cost of Living Payments
Finance,Revenues Department,Resources,Supplies & Services,Grants and Subscriptions,Disbursements,,12/05/2022,10997017,0,150,R,Cost of Living Payments
Finance,Revenues Department,Resources,Supplies & Services,Grants and Subscriptions,Disbursements,,12/05/2022,10997019,0,150,R,Cost of Living Payments
Finance,Revenues Department,Resources,Supplies & Services,Grants and Subscriptions,Disbursements,,12/05/2022,10997021,0,150,R,Cost of Living Payments
Finance,Revenues Department,Resources,Supplies & Services,Grants and Subscriptions,Disbursements,,12/05/2022,10997023,0,150,R,Cost of Living Payments
Finance,Revenues Department,Resources,Supplies & Services,Grants and Subscriptions,Disbursements,,12/05/2022,10997025,0,150,R,Cost of Living Payments
Finance,Revenues Department,Resources,Supplies & Services,Grants and Subscriptions,Disbursements,,12/05/2022,10997027,0,150,R,Cost of Living Payments
Finance,Revenues Department,Resources,Supplies & Services,Grants and Subscriptions,Disbursements,,12/05/2022,10997029,0,150,R,Cost of Living Payments
Finance,Revenues Department,Resources,Supplies & Services,Grants and Subscriptions,Disbursements,,12/05/2022,10997031,0,150,R,Cost of Living Payments
Finance,Revenues Department,Resources,Supplies & Services,Grants and Subscriptions,Disbursements,,12/05/2022,10997033,0,150,R,Cost of Living Payments
Finance,Revenues Department,Resources,Supplies & Services,Grants and Subscriptions,Disbursements,,12/05/2022,10997036,0,150,R,Cost of Living Payments
Finance,Revenues Department,Resources,Supplies & Services,Grants and Subscriptions,Disbursements,,12/05/2022,10997038,0,150,R,Cost of Living Payments
Finance,Revenues Department,Resources,Supplies & Services,Grants and Subscriptions,Disbursements,,12/05/2022,10997040,0,150,R,Cost of Living Payments
Finance,Revenues Department,Resources,Supplies & Services,Grants and Subscriptions,Disbursements,,12/05/2022,10997042,0,150,R,Cost of Living Payments
Finance,Revenues Department,Resources,Supplies & Services,Grants and Subscriptions,Disbursements,,12/05/2022,10997044,0,150,R,Cost of Living Payments
Finance,Revenues Department,Resources,Supplies & Services,Grants and Subscriptions,Disbursements,,12/05/2022,10997046,0,150,R,Cost of Living Payments
Finance,Revenues Department,Resources,Supplies & Services,Grants and Subscriptions,Disbursements,,12/05/2022,10997048,0,150,R,Cost of Living Payments
Finance,Revenues Department,Resources,Supplies & Services,Grants and Subscriptions,Disbursements,,12/05/2022,10997050,0,150,R,Cost of Living Payments
Finance,Revenues Department,Resources,Supplies & Services,Grants and Subscriptions,Disbursements,,12/05/2022,10997052,0,150,R,Cost of Living Payments
Finance,Revenues Department,Resources,Supplies & Services,Grants and Subscriptions,Disbursements,,12/05/2022,10997054,0,150,R,Cost of Living Payments
Finance,Revenues Department,Resources,Supplies & Services,Grants and Subscriptions,Disbursements,,12/05/2022,10997056,0,150,R,Cost of Living Payments
Finance,Revenues Department,Resources,Supplies & Services,Grants and Subscriptions,Disbursements,,12/05/2022,10997058,0,150,R,Cost of Living Payments
Finance,Revenues Department,Resources,Supplies & Services,Grants and Subscriptions,Disbursements,,12/05/2022,10997060,0,150,R,Cost of Living Payments
Finance,Revenues Department,Resources,Supplies & Services,Grants and Subscriptions,Disbursements,,12/05/2022,10997062,0,150,R,Cost of Living Payments
Finance,Revenues Department,Resources,Supplies & Services,Grants and Subscriptions,Disbursements,,12/05/2022,10997064,0,150,R,Cost of Living Payments
Finance,Revenues Department,Resources,Supplies & Services,Grants and Subscriptions,Disbursements,,12/05/2022,10997066,0,150,R,Cost of Living Payments
Finance,Revenues Department,Resources,Supplies & Services,Grants and Subscriptions,Disbursements,,12/05/2022,10997068,0,150,R,Cost of Living Payments
Finance,Revenues Department,Resources,Supplies & Services,Grants and Subscriptions,Disbursements,,12/05/2022,10997070,0,150,R,Cost of Living Payments
Finance,Revenues Department,Resources,Supplies & Services,Grants and Subscriptions,Disbursements,,12/05/2022,10997072,0,150,R,Cost of Living Payments
Finance,Revenues Department,Resources,Supplies & Services,Grants and Subscriptions,Disbursements,,12/05/2022,10997074,0,150,R,Cost of Living Payments
Finance,Revenues Department,Resources,Supplies & Services,Grants and Subscriptions,Disbursements,,12/05/2022,10997076,0,150,R,Cost of Living Payments
Finance,Revenues Department,Resources,Supplies & Services,Grants and Subscriptions,Disbursements,,12/05/2022,10997077,0,150,R,Cost of Living Payments
Finance,Revenues Department,Resources,Supplies & Services,Grants and Subscriptions,Disbursements,,12/05/2022,10997079,0,150,R,Cost of Living Payments
Finance,Revenues Department,Resources,Supplies & Services,Grants and Subscriptions,Disbursements,,12/05/2022,10997081,0,150,R,Cost of Living Payments
Finance,Revenues Department,Resources,Supplies & Services,Grants and Subscriptions,Disbursements,,12/05/2022,10997082,0,150,R,Cost of Living Payments
Finance,Revenues Department,Resources,Supplies & Services,Grants and Subscriptions,Disbursements,,12/05/2022,10997084,0,150,R,Cost of Living Payments
Finance,Revenues Department,Resources,Supplies & Services,Grants and Subscriptions,Disbursements,,12/05/2022,10997086,0,150,R,Cost of Living Payments
Finance,Revenues Department,Resources,Supplies & Services,Grants and Subscriptions,Disbursements,,12/05/2022,10997088,0,150,R,Cost of Living Payments
Finance,Revenues Department,Resources,Supplies & Services,Grants and Subscriptions,Disbursements,,12/05/2022,10997090,0,150,R,Cost of Living Payments
Finance,Revenues Department,Resources,Supplies & Services,Grants and Subscriptions,Disbursements,,12/05/2022,10997092,0,150,R,Cost of Living Payments
Finance,Revenues Department,Resources,Supplies & Services,Grants and Subscriptions,Disbursements,,12/05/2022,10997094,0,150,R,Cost of Living Payments
Finance,Revenues Department,Resources,Supplies & Services,Grants and Subscriptions,Disbursements,,12/05/2022,10997096,0,150,R,Cost of Living Payments
Finance,Revenues Department,Resources,Supplies & Services,Grants and Subscriptions,Disbursements,,12/05/2022,10997098,0,150,R,Cost of Living Payments
Finance,Revenues Department,Resources,Supplies & Services,Grants and Subscriptions,Disbursements,,12/05/2022,10997100,0,150,R,Cost of Living Payments
Finance,Revenues Department,Resources,Supplies & Services,Grants and Subscriptions,Disbursements,,12/05/2022,10997101,0,150,R,Cost of Living Payments
Finance,Revenues Department,Resources,Supplies & Services,Grants and Subscriptions,Disbursements,,12/05/2022,10997103,0,150,R,Cost of Living Payments
Finance,Revenues Department,Resources,Supplies & Services,Grants and Subscriptions,Disbursements,,12/05/2022,10997105,0,150,R,Cost of Living Payments
Finance,Revenues Department,Resources,Supplies & Services,Grants and Subscriptions,Disbursements,,12/05/2022,10997107,0,150,R,Cost of Living Payments
Finance,Revenues Department,Resources,Supplies & Services,Grants and Subscriptions,Disbursements,,12/05/2022,10997109,0,150,R,Cost of Living Payments
Finance,Revenues Department,Resources,Supplies & Services,Grants and Subscriptions,Disbursements,,12/05/2022,10997111,0,150,R,Cost of Living Payments
Finance,Revenues Department,Resources,Supplies & Services,Grants and Subscriptions,Disbursements,,12/05/2022,10997113,0,150,R,Cost of Living Payments
Finance,Revenues Department,Resources,Supplies & Services,Grants and Subscriptions,Disbursements,,12/05/2022,10997115,0,150,R,Cost of Living Payments
Finance,Revenues Department,Resources,Supplies & Services,Grants and Subscriptions,Disbursements,,12/05/2022,10997117,0,150,R,Cost of Living Payments
Finance,Revenues Department,Resources,Supplies & Services,Grants and Subscriptions,Disbursements,,12/05/2022,10997119,0,150,R,Cost of Living Payments
Finance,Revenues Department,Resources,Supplies & Services,Grants and Subscriptions,Disbursements,,12/05/2022,10997121,0,150,R,Cost of Living Payments
Finance,Revenues Department,Resources,Supplies & Services,Grants and Subscriptions,Disbursements,,12/05/2022,10997123,0,150,R,Cost of Living Payments
Finance,Revenues Department,Resources,Supplies & Services,Grants and Subscriptions,Disbursements,,12/05/2022,10997125,0,150,R,Cost of Living Payments
Finance,Revenues Department,Resources,Supplies & Services,Grants and Subscriptions,Disbursements,,12/05/2022,10997127,0,150,R,Cost of Living Payments
Finance,Revenues Department,Resources,Supplies & Services,Grants and Subscriptions,Disbursements,,12/05/2022,10997129,0,150,R,Cost of Living Payments
Finance,Revenues Department,Resources,Supplies & Services,Grants and Subscriptions,Disbursements,,12/05/2022,10997132,0,150,R,Cost of Living Payments
Finance,Revenues Department,Resources,Supplies & Services,Grants and Subscriptions,Disbursements,,12/05/2022,10997134,0,150,R,Cost of Living Payments
Finance,Revenues Department,Resources,Supplies & Services,Grants and Subscriptions,Disbursements,,12/05/2022,10997136,0,150,R,Cost of Living Payments
Finance,Revenues Department,Resources,Supplies & Services,Grants and Subscriptions,Disbursements,,12/05/2022,10997138,0,150,R,Cost of Living Payments
Finance,Revenues Department,Resources,Supplies & Services,Grants and Subscriptions,Disbursements,,12/05/2022,10997140,0,150,R,Cost of Living Payments
Finance,Revenues Department,Resources,Supplies & Services,Grants and Subscriptions,Disbursements,,12/05/2022,10997142,0,150,R,Cost of Living Payments
Finance,Revenues Department,Resources,Supplies & Services,Grants and Subscriptions,Disbursements,,12/05/2022,10997144,0,150,R,Cost of Living Payments
Finance,Revenues Department,Resources,Supplies & Services,Grants and Subscriptions,Disbursements,,12/05/2022,10997146,0,150,R,Cost of Living Payments
Finance,Revenues Department,Resources,Supplies & Services,Grants and Subscriptions,Disbursements,,12/05/2022,10997148,0,150,R,Cost of Living Payments
Finance,Revenues Department,Resources,Supplies & Services,Grants and Subscriptions,Disbursements,,12/05/2022,10997150,0,150,R,Cost of Living Payments
Finance,Revenues Department,Resources,Supplies & Services,Grants and Subscriptions,Disbursements,,12/05/2022,10997152,0,150,R,Cost of Living Payments
Finance,Revenues Department,Resources,Supplies & Services,Grants and Subscriptions,Disbursements,,12/05/2022,10997154,0,150,R,Cost of Living Payments
Finance,Revenues Department,Resources,Supplies & Services,Grants and Subscriptions,Disbursements,,12/05/2022,10997156,0,150,R,Cost of Living Payments
Finance,Revenues Department,Resources,Supplies & Services,Grants and Subscriptions,Disbursements,,12/05/2022,10997157,0,150,R,Cost of Living Payments
Finance,Revenues Department,Resources,Supplies & Services,Grants and Subscriptions,Disbursements,,12/05/2022,10997159,0,150,R,Cost of Living Payments
Finance,Revenues Department,Resources,Supplies & Services,Grants and Subscriptions,Disbursements,,12/05/2022,10997161,0,150,R,Cost of Living Payments
Finance,Revenues Department,Resources,Supplies & Services,Grants and Subscriptions,Disbursements,,12/05/2022,10997163,0,150,R,Cost of Living Payments
Finance,Revenues Department,Resources,Supplies & Services,Grants and Subscriptions,Disbursements,,12/05/2022,10997165,0,150,R,Cost of Living Payments
Finance,Revenues Department,Resources,Supplies & Services,Grants and Subscriptions,Disbursements,,12/05/2022,10997167,0,150,R,Cost of Living Payments
Finance,Revenues Department,Resources,Supplies & Services,Grants and Subscriptions,Disbursements,,12/05/2022,10997169,0,150,R,Cost of Living Payments
Finance,Revenues Department,Resources,Supplies & Services,Grants and Subscriptions,Disbursements,,12/05/2022,10997171,0,150,R,Cost of Living Payments
Finance,Revenues Department,Resources,Supplies & Services,Grants and Subscriptions,Disbursements,,12/05/2022,10997173,0,150,R,Cost of Living Payments
Finance,Revenues Department,Resources,Supplies & Services,Grants and Subscriptions,Disbursements,,12/05/2022,10997175,0,150,R,Cost of Living Payments
Finance,Revenues Department,Resources,Supplies & Services,Grants and Subscriptions,Disbursements,,12/05/2022,10997177,0,150,R,Cost of Living Payments
Finance,Revenues Department,Resources,Supplies & Services,Grants and Subscriptions,Disbursements,,12/05/2022,10997179,0,150,R,Cost of Living Payments
Finance,Revenues Department,Resources,Supplies & Services,Grants and Subscriptions,Disbursements,,12/05/2022,10997182,0,150,R,Cost of Living Payments
Finance,Revenues Department,Resources,Supplies & Services,Grants and Subscriptions,Disbursements,,12/05/2022,10997184,0,150,R,Cost of Living Payments
Finance,Revenues Department,Resources,Supplies & Services,Grants and Subscriptions,Disbursements,,12/05/2022,10997186,0,150,R,Cost of Living Payments
Finance,Revenues Department,Resources,Supplies & Services,Grants and Subscriptions,Disbursements,,12/05/2022,10997188,0,150,R,Cost of Living Payments
Finance,Revenues Department,Resources,Supplies & Services,Grants and Subscriptions,Disbursements,,12/05/2022,10997190,0,150,R,Cost of Living Payments
Finance,Revenues Department,Resources,Supplies & Services,Grants and Subscriptions,Disbursements,,12/05/2022,10997192,0,150,R,Cost of Living Payments
Finance,Revenues Department,Resources,Supplies & Services,Grants and Subscriptions,Disbursements,,12/05/2022,10997194,0,150,R,Cost of Living Payments
Finance,Revenues Department,Resources,Supplies & Services,Grants and Subscriptions,Disbursements,,12/05/2022,10997196,0,150,R,Cost of Living Payments
Finance,Revenues Department,Resources,Supplies & Services,Grants and Subscriptions,Disbursements,,12/05/2022,10997198,0,150,R,Cost of Living Payments
Finance,Revenues Department,Resources,Supplies & Services,Grants and Subscriptions,Disbursements,,12/05/2022,10997200,0,150,R,Cost of Living Payments
Finance,Revenues Department,Resources,Supplies & Services,Grants and Subscriptions,Disbursements,,12/05/2022,10997202,0,150,R,Cost of Living Payments
Finance,Revenues Department,Resources,Supplies & Services,Grants and Subscriptions,Disbursements,,12/05/2022,10997205,0,150,R,Cost of Living Payments
Finance,Revenues Department,Resources,Supplies & Services,Grants and Subscriptions,Disbursements,,12/05/2022,10997207,0,150,R,Cost of Living Payments
Finance,Revenues Department,Resources,Supplies & Services,Grants and Subscriptions,Disbursements,,12/05/2022,10997209,0,150,R,Cost of Living Payments
Finance,Revenues Department,Resources,Supplies & Services,Grants and Subscriptions,Disbursements,,12/05/2022,10997211,0,150,R,Cost of Living Payments
Finance,Revenues Department,Resources,Supplies & Services,Grants and Subscriptions,Disbursements,,12/05/2022,10997213,0,150,R,Cost of Living Payments
Finance,Revenues Department,Resources,Supplies & Services,Grants and Subscriptions,Disbursements,,12/05/2022,10997215,0,150,R,Cost of Living Payments
Finance,Revenues Department,Resources,Supplies & Services,Grants and Subscriptions,Disbursements,,12/05/2022,10997217,0,150,R,Cost of Living Payments
Finance,Revenues Department,Resources,Supplies & Services,Grants and Subscriptions,Disbursements,,12/05/2022,10997219,0,150,R,Cost of Living Payments
Finance,Revenues Department,Resources,Supplies & Services,Grants and Subscriptions,Disbursements,,12/05/2022,10997221,0,150,R,Cost of Living Payments
Finance,Revenues Department,Resources,Supplies & Services,Grants and Subscriptions,Disbursements,,12/05/2022,10997223,0,150,R,Cost of Living Payments
Finance,Revenues Department,Resources,Supplies & Services,Grants and Subscriptions,Disbursements,,12/05/2022,10997225,0,150,R,Cost of Living Payments
Finance,Revenues Department,Resources,Supplies & Services,Grants and Subscriptions,Disbursements,,12/05/2022,10997227,0,150,R,Cost of Living Payments
Finance,Revenues Department,Resources,Supplies & Services,Grants and Subscriptions,Disbursements,,12/05/2022,10997229,0,150,R,Cost of Living Payments
Finance,Revenues Department,Resources,Supplies & Services,Grants and Subscriptions,Disbursements,,12/05/2022,10997231,0,150,R,Cost of Living Payments
Finance,Revenues Department,Resources,Supplies & Services,Grants and Subscriptions,Disbursements,,12/05/2022,10997233,0,150,R,Cost of Living Payments
Finance,Revenues Department,Resources,Supplies & Services,Grants and Subscriptions,Disbursements,,12/05/2022,10997235,0,150,R,Cost of Living Payments
Finance,Revenues Department,Resources,Supplies & Services,Grants and Subscriptions,Disbursements,,12/05/2022,10997237,0,150,R,Cost of Living Payments
Finance,Revenues Department,Resources,Supplies & Services,Grants and Subscriptions,Disbursements,,12/05/2022,10997239,0,150,R,Cost of Living Payments
Finance,Revenues Department,Resources,Supplies & Services,Grants and Subscriptions,Disbursements,,12/05/2022,10997241,0,150,R,Cost of Living Payments
Finance,Revenues Department,Resources,Supplies & Services,Grants and Subscriptions,Disbursements,,12/05/2022,10997243,0,150,R,Cost of Living Payments
Finance,Revenues Department,Resources,Supplies & Services,Grants and Subscriptions,Disbursements,,12/05/2022,10997245,0,150,R,Cost of Living Payments
Finance,Revenues Department,Resources,Supplies & Services,Grants and Subscriptions,Disbursements,,12/05/2022,10997247,0,150,R,Cost of Living Payments
Finance,Revenues Department,Resources,Supplies & Services,Grants and Subscriptions,Disbursements,,12/05/2022,10997249,0,150,R,Cost of Living Payments
Finance,Revenues Department,Resources,Supplies & Services,Grants and Subscriptions,Disbursements,,12/05/2022,10997250,0,150,R,Cost of Living Payments
Finance,Revenues Department,Resources,Supplies & Services,Grants and Subscriptions,Disbursements,,12/05/2022,10997252,0,150,R,Cost of Living Payments
Finance,Revenues Department,Resources,Supplies & Services,Grants and Subscriptions,Disbursements,,12/05/2022,10997254,0,150,R,Cost of Living Payments
Finance,Revenues Department,Resources,Supplies & Services,Grants and Subscriptions,Disbursements,,12/05/2022,10997256,0,150,R,Cost of Living Payments
Finance,Revenues Department,Resources,Supplies & Services,Grants and Subscriptions,Disbursements,,12/05/2022,10997258,0,150,R,Cost of Living Payments
Finance,Revenues Department,Resources,Supplies & Services,Grants and Subscriptions,Disbursements,,12/05/2022,10997260,0,150,R,Cost of Living Payments
Finance,Revenues Department,Resources,Supplies & Services,Grants and Subscriptions,Disbursements,,12/05/2022,10997261,0,150,R,Cost of Living Payments
Finance,Revenues Department,Resources,Supplies & Services,Grants and Subscriptions,Disbursements,,12/05/2022,10997263,0,150,R,Cost of Living Payments
Finance,Revenues Department,Resources,Supplies & Services,Grants and Subscriptions,Disbursements,,12/05/2022,10997266,0,150,R,Cost of Living Payments
Finance,Revenues Department,Resources,Supplies & Services,Grants and Subscriptions,Disbursements,,12/05/2022,10997268,0,150,R,Cost of Living Payments
Finance,Revenues Department,Resources,Supplies & Services,Grants and Subscriptions,Disbursements,,12/05/2022,10997270,0,150,R,Cost of Living Payments
Finance,Revenues Department,Resources,Supplies & Services,Grants and Subscriptions,Disbursements,,12/05/2022,10997272,0,150,R,Cost of Living Payments
Finance,Revenues Department,Resources,Supplies & Services,Grants and Subscriptions,Disbursements,,12/05/2022,10997274,0,150,R,Cost of Living Payments
Finance,Revenues Department,Resources,Supplies & Services,Grants and Subscriptions,Disbursements,,12/05/2022,10997277,0,150,R,Cost of Living Payments
Finance,Revenues Department,Resources,Supplies & Services,Grants and Subscriptions,Disbursements,,12/05/2022,10997279,0,150,R,Cost of Living Payments
Finance,Revenues Department,Resources,Supplies & Services,Grants and Subscriptions,Disbursements,,12/05/2022,10997281,0,150,R,Cost of Living Payments
Finance,Revenues Department,Resources,Supplies & Services,Grants and Subscriptions,Disbursements,,12/05/2022,10997283,0,150,R,Cost of Living Payments
Finance,Revenues Department,Resources,Supplies & Services,Grants and Subscriptions,Disbursements,,12/05/2022,10997285,0,150,R,Cost of Living Payments
Finance,Revenues Department,Resources,Supplies & Services,Grants and Subscriptions,Disbursements,,12/05/2022,10997287,0,150,R,Cost of Living Payments
Finance,Revenues Department,Resources,Supplies & Services,Grants and Subscriptions,Disbursements,,12/05/2022,10997289,0,150,R,Cost of Living Payments
Finance,Revenues Department,Resources,Supplies & Services,Grants and Subscriptions,Disbursements,,12/05/2022,10997291,0,150,R,Cost of Living Payments
Finance,Revenues Department,Resources,Supplies & Services,Grants and Subscriptions,Disbursements,,12/05/2022,10997293,0,150,R,Cost of Living Payments
Finance,Revenues Department,Resources,Supplies & Services,Grants and Subscriptions,Disbursements,,12/05/2022,10997295,0,150,R,Cost of Living Payments
Finance,Revenues Department,Resources,Supplies & Services,Grants and Subscriptions,Disbursements,,12/05/2022,10997297,0,150,R,Cost of Living Payments
Finance,Revenues Department,Resources,Supplies & Services,Grants and Subscriptions,Disbursements,,12/05/2022,10997299,0,150,R,Cost of Living Payments
Finance,Revenues Department,Resources,Supplies & Services,Grants and Subscriptions,Disbursements,,12/05/2022,10997301,0,150,R,Cost of Living Payments
Finance,Revenues Department,Resources,Supplies & Services,Grants and Subscriptions,Disbursements,,12/05/2022,10997303,0,150,R,Cost of Living Payments
Finance,Revenues Department,Resources,Supplies & Services,Grants and Subscriptions,Disbursements,,12/05/2022,10997305,0,150,R,Cost of Living Payments
Finance,Revenues Department,Resources,Supplies & Services,Grants and Subscriptions,Disbursements,,12/05/2022,10997307,0,150,R,Cost of Living Payments
Finance,Revenues Department,Resources,Supplies & Services,Grants and Subscriptions,Disbursements,,12/05/2022,10997309,0,150,R,Cost of Living Payments
Finance,Revenues Department,Resources,Supplies & Services,Grants and Subscriptions,Disbursements,,12/05/2022,10997311,0,150,R,Cost of Living Payments
Finance,Revenues Department,Resources,Supplies & Services,Grants and Subscriptions,Disbursements,,12/05/2022,10997313,0,150,R,Cost of Living Payments
Finance,Revenues Department,Resources,Supplies & Services,Grants and Subscriptions,Disbursements,,12/05/2022,10997315,0,150,R,Cost of Living Payments
Finance,Revenues Department,Resources,Supplies & Services,Grants and Subscriptions,Disbursements,,12/05/2022,10997317,0,150,R,Cost of Living Payments
Finance,Revenues Department,Resources,Supplies & Services,Grants and Subscriptions,Disbursements,,12/05/2022,10997319,0,150,R,Cost of Living Payments
Finance,Revenues Department,Resources,Supplies & Services,Grants and Subscriptions,Disbursements,,12/05/2022,10997321,0,150,R,Cost of Living Payments
Finance,Revenues Department,Resources,Supplies & Services,Grants and Subscriptions,Disbursements,,12/05/2022,10997323,0,150,R,Cost of Living Payments
Finance,Revenues Department,Resources,Supplies & Services,Grants and Subscriptions,Disbursements,,12/05/2022,10997325,0,150,R,Cost of Living Payments
Finance,Revenues Department,Resources,Supplies & Services,Grants and Subscriptions,Disbursements,,12/05/2022,10997327,0,150,R,Cost of Living Payments
Finance,Revenues Department,Resources,Supplies & Services,Grants and Subscriptions,Disbursements,,12/05/2022,10997329,0,150,R,Cost of Living Payments
Finance,Revenues Department,Resources,Supplies & Services,Grants and Subscriptions,Disbursements,,12/05/2022,10997331,0,150,R,Cost of Living Payments
Finance,Revenues Department,Resources,Supplies & Services,Grants and Subscriptions,Disbursements,,12/05/2022,10997333,0,150,R,Cost of Living Payments
Finance,Revenues Department,Resources,Supplies & Services,Grants and Subscriptions,Disbursements,,12/05/2022,10997335,0,150,R,Cost of Living Payments
Finance,Revenues Department,Resources,Supplies & Services,Grants and Subscriptions,Disbursements,,12/05/2022,10997337,0,150,R,Cost of Living Payments
Finance,Revenues Department,Resources,Supplies & Services,Grants and Subscriptions,Disbursements,,12/05/2022,10997339,0,150,R,Cost of Living Payments
Finance,Revenues Department,Resources,Supplies & Services,Grants and Subscriptions,Disbursements,,12/05/2022,10997341,0,150,R,Cost of Living Payments
Finance,Revenues Department,Resources,Supplies & Services,Grants and Subscriptions,Disbursements,,12/05/2022,10997343,0,150,R,Cost of Living Payments
Finance,Revenues Department,Resources,Supplies & Services,Grants and Subscriptions,Disbursements,,12/05/2022,10997345,0,150,R,Cost of Living Payments
Finance,Revenues Department,Resources,Supplies & Services,Grants and Subscriptions,Disbursements,,12/05/2022,10997347,0,150,R,Cost of Living Payments
Finance,Revenues Department,Resources,Supplies & Services,Grants and Subscriptions,Disbursements,,12/05/2022,10997350,0,150,R,Cost of Living Payments
Finance,Revenues Department,Resources,Supplies & Services,Grants and Subscriptions,Disbursements,,12/05/2022,10997352,0,150,R,Cost of Living Payments
Finance,Revenues Department,Resources,Supplies & Services,Grants and Subscriptions,Disbursements,,12/05/2022,10997354,0,150,R,Cost of Living Payments
Finance,Revenues Department,Resources,Supplies & Services,Grants and Subscriptions,Disbursements,,12/05/2022,10997356,0,150,R,Cost of Living Payments
Finance,Revenues Department,Resources,Supplies & Services,Grants and Subscriptions,Disbursements,,12/05/2022,10997358,0,150,R,Cost of Living Payments
Finance,Revenues Department,Resources,Supplies & Services,Grants and Subscriptions,Disbursements,,12/05/2022,10997360,0,150,R,Cost of Living Payments
Finance,Revenues Department,Resources,Supplies & Services,Grants and Subscriptions,Disbursements,,12/05/2022,10997362,0,150,R,Cost of Living Payments
Finance,Revenues Department,Resources,Supplies & Services,Grants and Subscriptions,Disbursements,,12/05/2022,10997364,0,150,R,Cost of Living Payments
Finance,Revenues Department,Resources,Supplies & Services,Grants and Subscriptions,Disbursements,,12/05/2022,10997366,0,150,R,Cost of Living Payments
Finance,Revenues Department,Resources,Supplies & Services,Grants and Subscriptions,Disbursements,,12/05/2022,10997368,0,150,R,Cost of Living Payments
Finance,Revenues Department,Resources,Supplies & Services,Grants and Subscriptions,Disbursements,,12/05/2022,10997370,0,150,R,Cost of Living Payments
Finance,Revenues Department,Resources,Supplies & Services,Grants and Subscriptions,Disbursements,,12/05/2022,10997372,0,150,R,Cost of Living Payments
Finance,Revenues Department,Resources,Supplies & Services,Grants and Subscriptions,Disbursements,,12/05/2022,10997374,0,150,R,Cost of Living Payments
Finance,Revenues Department,Resources,Supplies & Services,Grants and Subscriptions,Disbursements,,12/05/2022,10997376,0,150,R,Cost of Living Payments
Finance,Revenues Department,Resources,Supplies & Services,Grants and Subscriptions,Disbursements,,12/05/2022,10997378,0,150,R,Cost of Living Payments
Finance,Revenues Department,Resources,Supplies & Services,Grants and Subscriptions,Disbursements,,12/05/2022,10997380,0,150,R,Cost of Living Payments
Finance,Revenues Department,Resources,Supplies & Services,Grants and Subscriptions,Disbursements,,12/05/2022,10997382,0,150,R,Cost of Living Payments
Finance,Revenues Department,Resources,Supplies & Services,Grants and Subscriptions,Disbursements,,12/05/2022,10997384,0,150,R,Cost of Living Payments
Finance,Revenues Department,Resources,Supplies & Services,Grants and Subscriptions,Disbursements,,12/05/2022,10997386,0,150,R,Cost of Living Payments
Finance,Revenues Department,Resources,Supplies & Services,Grants and Subscriptions,Disbursements,,12/05/2022,10997388,0,150,R,Cost of Living Payments
Finance,Revenues Department,Resources,Supplies & Services,Grants and Subscriptions,Disbursements,,12/05/2022,10997390,0,150,R,Cost of Living Payments
Finance,Revenues Department,Resources,Supplies & Services,Grants and Subscriptions,Disbursements,,12/05/2022,10997392,0,150,R,Cost of Living Payments
Finance,Revenues Department,Resources,Supplies & Services,Grants and Subscriptions,Disbursements,,12/05/2022,10997394,0,150,R,Cost of Living Payments
Finance,Revenues Department,Resources,Supplies & Services,Grants and Subscriptions,Disbursements,,12/05/2022,10997396,0,150,R,Cost of Living Payments
Finance,Revenues Department,Resources,Supplies & Services,Grants and Subscriptions,Disbursements,,12/05/2022,10997398,0,150,R,Cost of Living Payments
Finance,Revenues Department,Resources,Supplies & Services,Grants and Subscriptions,Disbursements,,12/05/2022,10997400,0,150,R,Cost of Living Payments
Finance,Revenues Department,Resources,Supplies & Services,Grants and Subscriptions,Disbursements,,12/05/2022,10997402,0,150,R,Cost of Living Payments
Finance,Revenues Department,Resources,Supplies & Services,Grants and Subscriptions,Disbursements,,12/05/2022,10997404,0,150,R,Cost of Living Payments
Finance,Revenues Department,Resources,Supplies & Services,Grants and Subscriptions,Disbursements,,12/05/2022,10997406,0,150,R,Cost of Living Payments
Finance,Revenues Department,Resources,Supplies & Services,Grants and Subscriptions,Disbursements,,12/05/2022,10997408,0,150,R,Cost of Living Payments
Finance,Revenues Department,Resources,Supplies & Services,Grants and Subscriptions,Disbursements,,12/05/2022,10997410,0,150,R,Cost of Living Payments
Finance,Revenues Department,Resources,Supplies & Services,Grants and Subscriptions,Disbursements,,12/05/2022,10997412,0,150,R,Cost of Living Payments
Finance,Revenues Department,Resources,Supplies & Services,Grants and Subscriptions,Disbursements,,12/05/2022,10997414,0,150,R,Cost of Living Payments
Finance,Revenues Department,Resources,Supplies & Services,Grants and Subscriptions,Disbursements,,12/05/2022,10997416,0,150,R,Cost of Living Payments
Finance,Revenues Department,Resources,Supplies & Services,Grants and Subscriptions,Disbursements,,12/05/2022,10997418,0,150,R,Cost of Living Payments
Finance,Revenues Department,Resources,Supplies & Services,Grants and Subscriptions,Disbursements,,12/05/2022,10997421,0,150,R,Cost of Living Payments
Finance,Revenues Department,Resources,Supplies & Services,Grants and Subscriptions,Disbursements,,12/05/2022,10997423,0,150,R,Cost of Living Payments
Finance,Revenues Department,Resources,Supplies & Services,Grants and Subscriptions,Disbursements,,12/05/2022,10997425,0,150,R,Cost of Living Payments
Finance,Revenues Department,Resources,Supplies & Services,Grants and Subscriptions,Disbursements,,12/05/2022,10997427,0,150,R,Cost of Living Payments
Finance,Revenues Department,Resources,Supplies & Services,Grants and Subscriptions,Disbursements,,12/05/2022,10997429,0,150,R,Cost of Living Payments
Finance,Revenues Department,Resources,Supplies & Services,Grants and Subscriptions,Disbursements,,12/05/2022,10997431,0,150,R,Cost of Living Payments
Finance,Revenues Department,Resources,Supplies & Services,Grants and Subscriptions,Disbursements,,12/05/2022,10997433,0,150,R,Cost of Living Payments
Finance,Revenues Department,Resources,Supplies & Services,Grants and Subscriptions,Disbursements,,12/05/2022,10997435,0,150,R,Cost of Living Payments
Finance,Revenues Department,Resources,Supplies & Services,Grants and Subscriptions,Disbursements,,12/05/2022,10997437,0,150,R,Cost of Living Payments
Finance,Revenues Department,Resources,Supplies & Services,Grants and Subscriptions,Disbursements,,12/05/2022,10997439,0,150,R,Cost of Living Payments
Finance,Revenues Department,Resources,Supplies & Services,Grants and Subscriptions,Disbursements,,12/05/2022,10997441,0,150,R,Cost of Living Payments
Finance,Revenues Department,Resources,Supplies & Services,Grants and Subscriptions,Disbursements,,12/05/2022,10997443,0,150,R,Cost of Living Payments
Finance,Revenues Department,Resources,Supplies & Services,Grants and Subscriptions,Disbursements,,12/05/2022,10997445,0,150,R,Cost of Living Payments
Finance,Revenues Department,Resources,Supplies & Services,Grants and Subscriptions,Disbursements,,12/05/2022,10997447,0,150,R,Cost of Living Payments
Finance,Revenues Department,Resources,Supplies & Services,Grants and Subscriptions,Disbursements,,12/05/2022,10997449,0,150,R,Cost of Living Payments
Finance,Revenues Department,Resources,Supplies & Services,Grants and Subscriptions,Disbursements,,12/05/2022,10997451,0,150,R,Cost of Living Payments
Finance,Revenues Department,Resources,Supplies & Services,Grants and Subscriptions,Disbursements,,12/05/2022,10997453,0,150,R,Cost of Living Payments
Finance,Revenues Department,Resources,Supplies & Services,Grants and Subscriptions,Disbursements,,12/05/2022,10997455,0,150,R,Cost of Living Payments
Finance,Revenues Department,Resources,Supplies & Services,Grants and Subscriptions,Disbursements,,12/05/2022,10997457,0,150,R,Cost of Living Payments
Finance,Revenues Department,Resources,Supplies & Services,Grants and Subscriptions,Disbursements,,12/05/2022,10997459,0,150,R,Cost of Living Payments
Finance,Revenues Department,Resources,Supplies & Services,Grants and Subscriptions,Disbursements,,12/05/2022,10997461,0,150,R,Cost of Living Payments
Finance,Revenues Department,Resources,Supplies & Services,Grants and Subscriptions,Disbursements,,12/05/2022,10997463,0,150,R,Cost of Living Payments
Finance,Revenues Department,Resources,Supplies & Services,Grants and Subscriptions,Disbursements,,12/05/2022,10997465,0,150,R,Cost of Living Payments
Finance,Revenues Department,Resources,Supplies & Services,Grants and Subscriptions,Disbursements,,12/05/2022,10997467,0,150,R,Cost of Living Payments
Finance,Revenues Department,Resources,Supplies & Services,Grants and Subscriptions,Disbursements,,12/05/2022,10997469,0,150,R,Cost of Living Payments
Finance,Revenues Department,Resources,Supplies & Services,Grants and Subscriptions,Disbursements,,12/05/2022,10997471,0,150,R,Cost of Living Payments
Finance,Revenues Department,Resources,Supplies & Services,Grants and Subscriptions,Disbursements,,12/05/2022,10997473,0,150,R,Cost of Living Payments
Finance,Revenues Department,Resources,Supplies & Services,Grants and Subscriptions,Disbursements,,12/05/2022,10997475,0,150,R,Cost of Living Payments
Finance,Revenues Department,Resources,Supplies & Services,Grants and Subscriptions,Disbursements,,12/05/2022,10997477,0,150,R,Cost of Living Payments
Finance,Revenues Department,Resources,Supplies & Services,Grants and Subscriptions,Disbursements,,12/05/2022,10997479,0,150,R,Cost of Living Payments
Finance,Revenues Department,Resources,Supplies & Services,Grants and Subscriptions,Disbursements,,12/05/2022,10997481,0,150,R,Cost of Living Payments
Finance,Revenues Department,Resources,Supplies & Services,Grants and Subscriptions,Disbursements,,12/05/2022,10997483,0,150,R,Cost of Living Payments
Finance,Revenues Department,Resources,Supplies & Services,Grants and Subscriptions,Disbursements,,12/05/2022,10997485,0,150,R,Cost of Living Payments
Finance,Revenues Department,Resources,Supplies & Services,Grants and Subscriptions,Disbursements,,12/05/2022,10997487,0,150,R,Cost of Living Payments
Finance,Revenues Department,Resources,Supplies & Services,Grants and Subscriptions,Disbursements,,12/05/2022,10997489,0,150,R,Cost of Living Payments
Finance,Revenues Department,Resources,Supplies & Services,Grants and Subscriptions,Disbursements,,12/05/2022,10997491,0,150,R,Cost of Living Payments
Finance,Revenues Department,Resources,Supplies & Services,Grants and Subscriptions,Disbursements,,12/05/2022,10997493,0,150,R,Cost of Living Payments
Finance,Revenues Department,Resources,Supplies & Services,Grants and Subscriptions,Disbursements,,12/05/2022,10997495,0,150,R,Cost of Living Payments
Finance,Revenues Department,Resources,Supplies & Services,Grants and Subscriptions,Disbursements,,12/05/2022,10997497,0,150,R,Cost of Living Payments
Finance,Revenues Department,Resources,Supplies & Services,Grants and Subscriptions,Disbursements,,12/05/2022,10997499,0,150,R,Cost of Living Payments
Finance,Revenues Department,Resources,Supplies & Services,Grants and Subscriptions,Disbursements,,12/05/2022,10997501,0,150,R,Cost of Living Payments
Finance,Revenues Department,Resources,Supplies & Services,Grants and Subscriptions,Disbursements,,12/05/2022,10997503,0,150,R,Cost of Living Payments
Finance,Revenues Department,Resources,Supplies & Services,Grants and Subscriptions,Disbursements,,12/05/2022,10997505,0,150,R,Cost of Living Payments
Finance,Revenues Department,Resources,Supplies & Services,Grants and Subscriptions,Disbursements,,12/05/2022,10997507,0,150,R,Cost of Living Payments
Finance,Revenues Department,Resources,Supplies & Services,Grants and Subscriptions,Disbursements,,12/05/2022,10997509,0,150,R,Cost of Living Payments
Finance,Revenues Department,Resources,Supplies & Services,Grants and Subscriptions,Disbursements,,12/05/2022,10997511,0,150,R,Cost of Living Payments
Finance,Revenues Department,Resources,Supplies & Services,Grants and Subscriptions,Disbursements,,12/05/2022,10997513,0,150,R,Cost of Living Payments
Finance,Revenues Department,Resources,Supplies & Services,Grants and Subscriptions,Disbursements,,12/05/2022,10997515,0,150,R,Cost of Living Payments
Finance,Revenues Department,Resources,Supplies & Services,Grants and Subscriptions,Disbursements,,12/05/2022,10997517,0,150,R,Cost of Living Payments
Finance,Revenues Department,Resources,Supplies & Services,Grants and Subscriptions,Disbursements,,12/05/2022,10997519,0,150,R,Cost of Living Payments
Finance,Revenues Department,Resources,Supplies & Services,Grants and Subscriptions,Disbursements,,12/05/2022,10997521,0,150,R,Cost of Living Payments
Finance,Revenues Department,Resources,Supplies & Services,Grants and Subscriptions,Disbursements,,12/05/2022,10997523,0,150,R,Cost of Living Payments
Finance,Revenues Department,Resources,Supplies & Services,Grants and Subscriptions,Disbursements,,12/05/2022,10997525,0,150,R,Cost of Living Payments
Finance,Revenues Department,Resources,Supplies & Services,Grants and Subscriptions,Disbursements,,12/05/2022,10997527,0,150,R,Cost of Living Payments
Finance,Revenues Department,Resources,Supplies & Services,Grants and Subscriptions,Disbursements,,12/05/2022,10997529,0,150,R,Cost of Living Payments
Finance,Revenues Department,Resources,Supplies & Services,Grants and Subscriptions,Disbursements,,12/05/2022,10997530,0,150,R,Cost of Living Payments
Finance,Revenues Department,Resources,Supplies & Services,Grants and Subscriptions,Disbursements,,12/05/2022,10997532,0,150,R,Cost of Living Payments
Finance,Revenues Department,Resources,Supplies & Services,Grants and Subscriptions,Disbursements,,12/05/2022,10997534,0,150,R,Cost of Living Payments
Finance,Revenues Department,Resources,Supplies & Services,Grants and Subscriptions,Disbursements,,12/05/2022,10997536,0,150,R,Cost of Living Payments
Finance,Revenues Department,Resources,Supplies & Services,Grants and Subscriptions,Disbursements,,12/05/2022,10997538,0,150,R,Cost of Living Payments
Finance,Revenues Department,Resources,Supplies & Services,Grants and Subscriptions,Disbursements,,12/05/2022,10997540,0,150,R,Cost of Living Payments
Finance,Revenues Department,Resources,Supplies & Services,Grants and Subscriptions,Disbursements,,12/05/2022,10997542,0,150,R,Cost of Living Payments
Finance,Revenues Department,Resources,Supplies & Services,Grants and Subscriptions,Disbursements,,12/05/2022,10997544,0,150,R,Cost of Living Payments
Finance,Revenues Department,Resources,Supplies & Services,Grants and Subscriptions,Disbursements,,12/05/2022,10997547,0,150,R,Cost of Living Payments
Finance,Revenues Department,Resources,Supplies & Services,Grants and Subscriptions,Disbursements,,12/05/2022,10997549,0,150,R,Cost of Living Payments
Finance,Revenues Department,Resources,Supplies & Services,Grants and Subscriptions,Disbursements,,12/05/2022,10997551,0,150,R,Cost of Living Payments
Finance,Revenues Department,Resources,Supplies & Services,Grants and Subscriptions,Disbursements,,12/05/2022,10997553,0,150,R,Cost of Living Payments
Finance,Revenues Department,Resources,Supplies & Services,Grants and Subscriptions,Disbursements,,12/05/2022,10997555,0,150,R,Cost of Living Payments
Finance,Revenues Department,Resources,Supplies & Services,Grants and Subscriptions,Disbursements,,12/05/2022,10997557,0,150,R,Cost of Living Payments
Finance,Revenues Department,Resources,Supplies & Services,Grants and Subscriptions,Disbursements,,12/05/2022,10997559,0,150,R,Cost of Living Payments
Finance,Revenues Department,Resources,Supplies & Services,Grants and Subscriptions,Disbursements,,12/05/2022,10997561,0,150,R,Cost of Living Payments
Finance,Revenues Department,Resources,Supplies & Services,Grants and Subscriptions,Disbursements,,12/05/2022,10997563,0,150,R,Cost of Living Payments
Finance,Revenues Department,Resources,Supplies & Services,Grants and Subscriptions,Disbursements,,12/05/2022,10997565,0,150,R,Cost of Living Payments
Finance,Revenues Department,Resources,Supplies & Services,Grants and Subscriptions,Disbursements,,12/05/2022,10997567,0,150,R,Cost of Living Payments
Finance,Revenues Department,Resources,Supplies & Services,Grants and Subscriptions,Disbursements,,12/05/2022,10997569,0,150,R,Cost of Living Payments
Finance,Revenues Department,Resources,Supplies & Services,Grants and Subscriptions,Disbursements,,12/05/2022,10997571,0,150,R,Cost of Living Payments
Finance,Revenues Department,Resources,Supplies & Services,Grants and Subscriptions,Disbursements,,12/05/2022,10997573,0,150,R,Cost of Living Payments
Finance,Revenues Department,Resources,Supplies & Services,Grants and Subscriptions,Disbursements,,12/05/2022,10997575,0,150,R,Cost of Living Payments
Finance,Revenues Department,Resources,Supplies & Services,Grants and Subscriptions,Disbursements,,12/05/2022,10997577,0,150,R,Cost of Living Payments
Finance,Revenues Department,Resources,Supplies & Services,Grants and Subscriptions,Disbursements,,12/05/2022,10997579,0,150,R,Cost of Living Payments
Finance,Revenues Department,Resources,Supplies & Services,Grants and Subscriptions,Disbursements,,12/05/2022,10997581,0,150,R,Cost of Living Payments
Finance,Revenues Department,Resources,Supplies & Services,Grants and Subscriptions,Disbursements,,12/05/2022,10997583,0,150,R,Cost of Living Payments
Finance,Revenues Department,Resources,Supplies & Services,Grants and Subscriptions,Disbursements,,12/05/2022,10997585,0,150,R,Cost of Living Payments
Finance,Revenues Department,Resources,Supplies & Services,Grants and Subscriptions,Disbursements,,12/05/2022,10997586,0,150,R,Cost of Living Payments
Finance,Revenues Department,Resources,Supplies & Services,Grants and Subscriptions,Disbursements,,12/05/2022,10997588,0,150,R,Cost of Living Payments
Finance,Revenues Department,Resources,Supplies & Services,Grants and Subscriptions,Disbursements,,12/05/2022,10997590,0,150,R,Cost of Living Payments
Finance,Revenues Department,Resources,Supplies & Services,Grants and Subscriptions,Disbursements,,12/05/2022,10997592,0,150,R,Cost of Living Payments
Finance,Revenues Department,Resources,Supplies & Services,Grants and Subscriptions,Disbursements,,12/05/2022,10997594,0,150,R,Cost of Living Payments
Finance,Revenues Department,Resources,Supplies & Services,Grants and Subscriptions,Disbursements,,12/05/2022,10997596,0,150,R,Cost of Living Payments
Finance,Revenues Department,Resources,Supplies & Services,Grants and Subscriptions,Disbursements,,12/05/2022,10997598,0,150,R,Cost of Living Payments
Finance,Revenues Department,Resources,Supplies & Services,Grants and Subscriptions,Disbursements,,12/05/2022,10997600,0,150,R,Cost of Living Payments
Finance,Revenues Department,Resources,Supplies & Services,Grants and Subscriptions,Disbursements,,12/05/2022,10997602,0,150,R,Cost of Living Payments
Finance,Revenues Department,Resources,Supplies & Services,Grants and Subscriptions,Disbursements,,12/05/2022,10997604,0,150,R,Cost of Living Payments
Finance,Revenues Department,Resources,Supplies & Services,Grants and Subscriptions,Disbursements,,12/05/2022,10997606,0,150,R,Cost of Living Payments
Finance,Revenues Department,Resources,Supplies & Services,Grants and Subscriptions,Disbursements,,12/05/2022,10997608,0,150,R,Cost of Living Payments
Finance,Revenues Department,Resources,Supplies & Services,Grants and Subscriptions,Disbursements,,12/05/2022,10997610,0,150,R,Cost of Living Payments
Finance,Revenues Department,Resources,Supplies & Services,Grants and Subscriptions,Disbursements,,12/05/2022,10997612,0,150,R,Cost of Living Payments
Finance,Revenues Department,Resources,Supplies & Services,Grants and Subscriptions,Disbursements,,12/05/2022,10997614,0,150,R,Cost of Living Payments
Finance,Revenues Department,Resources,Supplies & Services,Grants and Subscriptions,Disbursements,,12/05/2022,10997616,0,150,R,Cost of Living Payments
Finance,Revenues Department,Resources,Supplies & Services,Grants and Subscriptions,Disbursements,,12/05/2022,10997618,0,150,R,Cost of Living Payments
Finance,Revenues Department,Resources,Supplies & Services,Grants and Subscriptions,Disbursements,,12/05/2022,10997620,0,150,R,Cost of Living Payments
Finance,Revenues Department,Resources,Supplies & Services,Grants and Subscriptions,Disbursements,,12/05/2022,10997622,0,150,R,Cost of Living Payments
Finance,Revenues Department,Resources,Supplies & Services,Grants and Subscriptions,Disbursements,,12/05/2022,10997624,0,150,R,Cost of Living Payments
Finance,Revenues Department,Resources,Supplies & Services,Grants and Subscriptions,Disbursements,,12/05/2022,10997626,0,150,R,Cost of Living Payments
Finance,Revenues Department,Resources,Supplies & Services,Grants and Subscriptions,Disbursements,,12/05/2022,10997628,0,150,R,Cost of Living Payments
Finance,Revenues Department,Resources,Supplies & Services,Grants and Subscriptions,Disbursements,,12/05/2022,10997630,0,150,R,Cost of Living Payments
Finance,Revenues Department,Resources,Supplies & Services,Grants and Subscriptions,Disbursements,,12/05/2022,10997632,0,150,R,Cost of Living Payments
Finance,Revenues Department,Resources,Supplies & Services,Grants and Subscriptions,Disbursements,,12/05/2022,10997634,0,150,R,Cost of Living Payments
Finance,Revenues Department,Resources,Supplies & Services,Grants and Subscriptions,Disbursements,,12/05/2022,10997637,0,150,R,Cost of Living Payments
Finance,Revenues Department,Resources,Supplies & Services,Grants and Subscriptions,Disbursements,,12/05/2022,10997639,0,150,R,Cost of Living Payments
Finance,Revenues Department,Resources,Supplies & Services,Grants and Subscriptions,Disbursements,,12/05/2022,10997641,0,150,R,Cost of Living Payments
Finance,Revenues Department,Resources,Supplies & Services,Grants and Subscriptions,Disbursements,,12/05/2022,10997642,0,150,R,Cost of Living Payments
Finance,Revenues Department,Resources,Supplies & Services,Grants and Subscriptions,Disbursements,,12/05/2022,10997644,0,150,R,Cost of Living Payments
Finance,Revenues Department,Resources,Supplies & Services,Grants and Subscriptions,Disbursements,,12/05/2022,10997645,0,150,R,Cost of Living Payments
Finance,Revenues Department,Resources,Supplies & Services,Grants and Subscriptions,Disbursements,,12/05/2022,10997647,0,150,R,Cost of Living Payments
Finance,Revenues Department,Resources,Supplies & Services,Grants and Subscriptions,Disbursements,,12/05/2022,10997649,0,150,R,Cost of Living Payments
Finance,Revenues Department,Resources,Supplies & Services,Grants and Subscriptions,Disbursements,,12/05/2022,10997651,0,150,R,Cost of Living Payments
Finance,Revenues Department,Resources,Supplies & Services,Grants and Subscriptions,Disbursements,,12/05/2022,10997653,0,150,R,Cost of Living Payments
Finance,Revenues Department,Resources,Supplies & Services,Grants and Subscriptions,Disbursements,,12/05/2022,10997655,0,150,R,Cost of Living Payments
Finance,Revenues Department,Resources,Supplies & Services,Grants and Subscriptions,Disbursements,,12/05/2022,10997658,0,150,R,Cost of Living Payments
Finance,Revenues Department,Resources,Supplies & Services,Grants and Subscriptions,Disbursements,,12/05/2022,10997660,0,150,R,Cost of Living Payments
Finance,Revenues Department,Resources,Supplies & Services,Grants and Subscriptions,Disbursements,,12/05/2022,10997662,0,150,R,Cost of Living Payments
Finance,Revenues Department,Resources,Supplies & Services,Grants and Subscriptions,Disbursements,,12/05/2022,10997664,0,150,R,Cost of Living Payments
Finance,Revenues Department,Resources,Supplies & Services,Grants and Subscriptions,Disbursements,,12/05/2022,10997666,0,150,R,Cost of Living Payments
Finance,Revenues Department,Resources,Supplies & Services,Grants and Subscriptions,Disbursements,,12/05/2022,10997668,0,150,R,Cost of Living Payments
Finance,Revenues Department,Resources,Supplies & Services,Grants and Subscriptions,Disbursements,,12/05/2022,10997670,0,150,R,Cost of Living Payments
Finance,Revenues Department,Resources,Supplies & Services,Grants and Subscriptions,Disbursements,,12/05/2022,10997672,0,150,R,Cost of Living Payments
Finance,Revenues Department,Resources,Supplies & Services,Grants and Subscriptions,Disbursements,,12/05/2022,10997674,0,150,R,Cost of Living Payments
Finance,Revenues Department,Resources,Supplies & Services,Grants and Subscriptions,Disbursements,,12/05/2022,10997676,0,150,R,Cost of Living Payments
Finance,Revenues Department,Resources,Supplies & Services,Grants and Subscriptions,Disbursements,,12/05/2022,10997678,0,150,R,Cost of Living Payments
Finance,Revenues Department,Resources,Supplies & Services,Grants and Subscriptions,Disbursements,,12/05/2022,10997680,0,150,R,Cost of Living Payments
Finance,Revenues Department,Resources,Supplies & Services,Grants and Subscriptions,Disbursements,,12/05/2022,10997682,0,150,R,Cost of Living Payments
Finance,Revenues Department,Resources,Supplies & Services,Grants and Subscriptions,Disbursements,,12/05/2022,10997684,0,150,R,Cost of Living Payments
Finance,Revenues Department,Resources,Supplies & Services,Grants and Subscriptions,Disbursements,,12/05/2022,10997686,0,150,R,Cost of Living Payments
Finance,Revenues Department,Resources,Supplies & Services,Grants and Subscriptions,Disbursements,,12/05/2022,10997688,0,150,R,Cost of Living Payments
Finance,Revenues Department,Resources,Supplies & Services,Grants and Subscriptions,Disbursements,,12/05/2022,10997690,0,150,R,Cost of Living Payments
Finance,Revenues Department,Resources,Supplies & Services,Grants and Subscriptions,Disbursements,,12/05/2022,10997692,0,150,R,Cost of Living Payments
Finance,Revenues Department,Resources,Supplies & Services,Grants and Subscriptions,Disbursements,,12/05/2022,10997693,0,150,R,Cost of Living Payments
Finance,Revenues Department,Resources,Supplies & Services,Grants and Subscriptions,Disbursements,,12/05/2022,10997695,0,150,R,Cost of Living Payments
Finance,Revenues Department,Resources,Supplies & Services,Grants and Subscriptions,Disbursements,,12/05/2022,10997697,0,150,R,Cost of Living Payments
Finance,Revenues Department,Resources,Supplies & Services,Grants and Subscriptions,Disbursements,,12/05/2022,10997698,0,150,R,Cost of Living Payments
Finance,Revenues Department,Resources,Supplies & Services,Grants and Subscriptions,Disbursements,,12/05/2022,10997700,0,150,R,Cost of Living Payments
Finance,Revenues Department,Resources,Supplies & Services,Grants and Subscriptions,Disbursements,,12/05/2022,10997701,0,150,R,Cost of Living Payments
Finance,Revenues Department,Resources,Supplies & Services,Grants and Subscriptions,Disbursements,,12/05/2022,10997703,0,150,R,Cost of Living Payments
Finance,Revenues Department,Resources,Supplies & Services,Grants and Subscriptions,Disbursements,,12/05/2022,10997706,0,150,R,Cost of Living Payments
Finance,Revenues Department,Resources,Supplies & Services,Grants and Subscriptions,Disbursements,,12/05/2022,10997709,0,150,R,Cost of Living Payments
Finance,Revenues Department,Resources,Supplies & Services,Grants and Subscriptions,Disbursements,,12/05/2022,10997711,0,150,R,Cost of Living Payments
Finance,Revenues Department,Resources,Supplies & Services,Grants and Subscriptions,Disbursements,,12/05/2022,10997713,0,150,R,Cost of Living Payments
Finance,Revenues Department,Resources,Supplies & Services,Grants and Subscriptions,Disbursements,,12/05/2022,10997715,0,150,R,Cost of Living Payments
Finance,Revenues Department,Resources,Supplies & Services,Grants and Subscriptions,Disbursements,,12/05/2022,10997717,0,150,R,Cost of Living Payments
Finance,Revenues Department,Resources,Supplies & Services,Grants and Subscriptions,Disbursements,,12/05/2022,10997719,0,150,R,Cost of Living Payments
Finance,Revenues Department,Resources,Supplies & Services,Grants and Subscriptions,Disbursements,,12/05/2022,10997721,0,150,R,Cost of Living Payments
Finance,Revenues Department,Resources,Supplies & Services,Grants and Subscriptions,Disbursements,,12/05/2022,10997723,0,150,R,Cost of Living Payments
Finance,Revenues Department,Resources,Supplies & Services,Grants and Subscriptions,Disbursements,,12/05/2022,10997725,0,150,R,Cost of Living Payments
Finance,Revenues Department,Resources,Supplies & Services,Grants and Subscriptions,Disbursements,,12/05/2022,10997727,0,150,R,Cost of Living Payments
Finance,Revenues Department,Resources,Supplies & Services,Grants and Subscriptions,Disbursements,,12/05/2022,10997729,0,150,R,Cost of Living Payments
Finance,Revenues Department,Resources,Supplies & Services,Grants and Subscriptions,Disbursements,,12/05/2022,10997731,0,150,R,Cost of Living Payments
Finance,Revenues Department,Resources,Supplies & Services,Grants and Subscriptions,Disbursements,,12/05/2022,10997733,0,150,R,Cost of Living Payments
Finance,Revenues Department,Resources,Supplies & Services,Grants and Subscriptions,Disbursements,,12/05/2022,10997735,0,150,R,Cost of Living Payments
Finance,Revenues Department,Resources,Supplies & Services,Grants and Subscriptions,Disbursements,,12/05/2022,10997737,0,150,R,Cost of Living Payments
Finance,Revenues Department,Resources,Supplies & Services,Grants and Subscriptions,Disbursements,,12/05/2022,10997739,0,150,R,Cost of Living Payments
Finance,Revenues Department,Resources,Supplies & Services,Grants and Subscriptions,Disbursements,,12/05/2022,10997741,0,150,R,Cost of Living Payments
Finance,Revenues Department,Resources,Supplies & Services,Grants and Subscriptions,Disbursements,,12/05/2022,10997743,0,150,R,Cost of Living Payments
Finance,Revenues Department,Resources,Supplies & Services,Grants and Subscriptions,Disbursements,,12/05/2022,10997745,0,150,R,Cost of Living Payments
Finance,Revenues Department,Resources,Supplies & Services,Grants and Subscriptions,Disbursements,,12/05/2022,10997747,0,150,R,Cost of Living Payments
Finance,Revenues Department,Resources,Supplies & Services,Grants and Subscriptions,Disbursements,,12/05/2022,10997749,0,150,R,Cost of Living Payments
Finance,Revenues Department,Resources,Supplies & Services,Grants and Subscriptions,Disbursements,,12/05/2022,10997751,0,150,R,Cost of Living Payments
Finance,Revenues Department,Resources,Supplies & Services,Grants and Subscriptions,Disbursements,,12/05/2022,10997754,0,150,R,Cost of Living Payments
Finance,Revenues Department,Resources,Supplies & Services,Grants and Subscriptions,Disbursements,,12/05/2022,10997756,0,150,R,Cost of Living Payments
Finance,Revenues Department,Resources,Supplies & Services,Grants and Subscriptions,Disbursements,,12/05/2022,10997758,0,150,R,Cost of Living Payments
Finance,Revenues Department,Resources,Supplies & Services,Grants and Subscriptions,Disbursements,,12/05/2022,10997760,0,150,R,Cost of Living Payments
Finance,Revenues Department,Resources,Supplies & Services,Grants and Subscriptions,Disbursements,,12/05/2022,10997762,0,150,R,Cost of Living Payments
Finance,Revenues Department,Resources,Supplies & Services,Grants and Subscriptions,Disbursements,,12/05/2022,10997764,0,150,R,Cost of Living Payments
Finance,Revenues Department,Resources,Supplies & Services,Grants and Subscriptions,Disbursements,,12/05/2022,10997766,0,150,R,Cost of Living Payments
Finance,Revenues Department,Resources,Supplies & Services,Grants and Subscriptions,Disbursements,,12/05/2022,10997768,0,150,R,Cost of Living Payments
Finance,Revenues Department,Resources,Supplies & Services,Grants and Subscriptions,Disbursements,,12/05/2022,10997770,0,150,R,Cost of Living Payments
Finance,Revenues Department,Resources,Supplies & Services,Grants and Subscriptions,Disbursements,,12/05/2022,10997772,0,150,R,Cost of Living Payments
Finance,Revenues Department,Resources,Supplies & Services,Grants and Subscriptions,Disbursements,,12/05/2022,10997774,0,150,R,Cost of Living Payments
Finance,Revenues Department,Resources,Supplies & Services,Grants and Subscriptions,Disbursements,,12/05/2022,10997776,0,150,R,Cost of Living Payments
Finance,Revenues Department,Resources,Supplies & Services,Grants and Subscriptions,Disbursements,,12/05/2022,10997778,0,150,R,Cost of Living Payments
Finance,Revenues Department,Resources,Supplies & Services,Grants and Subscriptions,Disbursements,,12/05/2022,10997781,0,150,R,Cost of Living Payments
Finance,Revenues Department,Resources,Supplies & Services,Grants and Subscriptions,Disbursements,,12/05/2022,10997783,0,150,R,Cost of Living Payments
Finance,Revenues Department,Resources,Supplies & Services,Grants and Subscriptions,Disbursements,,12/05/2022,10997785,0,150,R,Cost of Living Payments
Finance,Revenues Department,Resources,Supplies & Services,Grants and Subscriptions,Disbursements,,12/05/2022,10997787,0,150,R,Cost of Living Payments
Finance,Revenues Department,Resources,Supplies & Services,Grants and Subscriptions,Disbursements,,12/05/2022,10997789,0,150,R,Cost of Living Payments
Finance,Revenues Department,Resources,Supplies & Services,Grants and Subscriptions,Disbursements,,12/05/2022,10997791,0,150,R,Cost of Living Payments
Finance,Revenues Department,Resources,Supplies & Services,Grants and Subscriptions,Disbursements,,12/05/2022,10997793,0,150,R,Cost of Living Payments
Finance,Revenues Department,Resources,Supplies & Services,Grants and Subscriptions,Disbursements,,12/05/2022,10997795,0,150,R,Cost of Living Payments
Finance,Revenues Department,Resources,Supplies & Services,Grants and Subscriptions,Disbursements,,12/05/2022,10997797,0,150,R,Cost of Living Payments
Finance,Revenues Department,Resources,Supplies & Services,Grants and Subscriptions,Disbursements,,12/05/2022,10997799,0,150,R,Cost of Living Payments
Finance,Revenues Department,Resources,Supplies & Services,Grants and Subscriptions,Disbursements,,12/05/2022,10997801,0,150,R,Cost of Living Payments
Finance,Revenues Department,Resources,Supplies & Services,Grants and Subscriptions,Disbursements,,12/05/2022,10997803,0,150,R,Cost of Living Payments
Finance,Revenues Department,Resources,Supplies & Services,Grants and Subscriptions,Disbursements,,12/05/2022,10997806,0,150,R,Cost of Living Payments
Finance,Revenues Department,Resources,Supplies & Services,Grants and Subscriptions,Disbursements,,12/05/2022,10997808,0,150,R,Cost of Living Payments
Finance,Revenues Department,Resources,Supplies & Services,Grants and Subscriptions,Disbursements,,12/05/2022,10997810,0,150,R,Cost of Living Payments
Finance,Revenues Department,Resources,Supplies & Services,Grants and Subscriptions,Disbursements,,12/05/2022,10997812,0,150,R,Cost of Living Payments
Finance,Revenues Department,Resources,Supplies & Services,Grants and Subscriptions,Disbursements,,12/05/2022,10997813,0,150,R,Cost of Living Payments
Finance,Revenues Department,Resources,Supplies & Services,Grants and Subscriptions,Disbursements,,12/05/2022,10997815,0,150,R,Cost of Living Payments
Finance,Revenues Department,Resources,Supplies & Services,Grants and Subscriptions,Disbursements,,12/05/2022,10997817,0,150,R,Cost of Living Payments
Finance,Revenues Department,Resources,Supplies & Services,Grants and Subscriptions,Disbursements,,12/05/2022,10997819,0,150,R,Cost of Living Payments
Finance,Revenues Department,Resources,Supplies & Services,Grants and Subscriptions,Disbursements,,12/05/2022,10997821,0,150,R,Cost of Living Payments
Finance,Revenues Department,Resources,Supplies & Services,Grants and Subscriptions,Disbursements,,12/05/2022,10997823,0,150,R,Cost of Living Payments
Finance,Revenues Department,Resources,Supplies & Services,Grants and Subscriptions,Disbursements,,12/05/2022,10997825,0,150,R,Cost of Living Payments
Finance,Revenues Department,Resources,Supplies & Services,Grants and Subscriptions,Disbursements,,12/05/2022,10997827,0,150,R,Cost of Living Payments
Finance,Revenues Department,Resources,Supplies & Services,Grants and Subscriptions,Disbursements,,12/05/2022,10997829,0,150,R,Cost of Living Payments
Finance,Revenues Department,Resources,Supplies & Services,Grants and Subscriptions,Disbursements,,12/05/2022,10997831,0,150,R,Cost of Living Payments
Finance,Revenues Department,Resources,Supplies & Services,Grants and Subscriptions,Disbursements,,12/05/2022,10997833,0,150,R,Cost of Living Payments
Finance,Revenues Department,Resources,Supplies & Services,Grants and Subscriptions,Disbursements,,12/05/2022,10997835,0,150,R,Cost of Living Payments
Finance,Revenues Department,Resources,Supplies & Services,Grants and Subscriptions,Disbursements,,12/05/2022,10997837,0,150,R,Cost of Living Payments
Finance,Revenues Department,Resources,Supplies & Services,Grants and Subscriptions,Disbursements,,12/05/2022,10997839,0,150,R,Cost of Living Payments
Finance,Revenues Department,Resources,Supplies & Services,Grants and Subscriptions,Disbursements,,12/05/2022,10997841,0,150,R,Cost of Living Payments
Finance,Revenues Department,Resources,Supplies & Services,Grants and Subscriptions,Disbursements,,12/05/2022,10997843,0,150,R,Cost of Living Payments
Finance,Revenues Department,Resources,Supplies & Services,Grants and Subscriptions,Disbursements,,12/05/2022,10997845,0,150,R,Cost of Living Payments
Finance,Revenues Department,Resources,Supplies & Services,Grants and Subscriptions,Disbursements,,12/05/2022,10997847,0,150,R,Cost of Living Payments
Finance,Revenues Department,Resources,Supplies & Services,Grants and Subscriptions,Disbursements,,12/05/2022,10997849,0,150,R,Cost of Living Payments
Finance,Revenues Department,Resources,Supplies & Services,Grants and Subscriptions,Disbursements,,12/05/2022,10997851,0,150,R,Cost of Living Payments
Finance,Revenues Department,Resources,Supplies & Services,Grants and Subscriptions,Disbursements,,12/05/2022,10997853,0,150,R,Cost of Living Payments
Finance,Revenues Department,Resources,Supplies & Services,Grants and Subscriptions,Disbursements,,12/05/2022,10997855,0,150,R,Cost of Living Payments
Finance,Revenues Department,Resources,Supplies & Services,Grants and Subscriptions,Disbursements,,12/05/2022,10997857,0,150,R,Cost of Living Payments
Finance,Revenues Department,Resources,Supplies & Services,Grants and Subscriptions,Disbursements,,12/05/2022,10997859,0,150,R,Cost of Living Payments
Finance,Revenues Department,Resources,Supplies & Services,Grants and Subscriptions,Disbursements,,12/05/2022,10997861,0,150,R,Cost of Living Payments
Finance,Revenues Department,Resources,Supplies & Services,Grants and Subscriptions,Disbursements,,12/05/2022,10997863,0,150,R,Cost of Living Payments
Finance,Revenues Department,Resources,Supplies & Services,Grants and Subscriptions,Disbursements,,12/05/2022,10997865,0,150,R,Cost of Living Payments
Finance,Revenues Department,Resources,Supplies & Services,Grants and Subscriptions,Disbursements,,12/05/2022,10997866,0,150,R,Cost of Living Payments
Finance,Revenues Department,Resources,Supplies & Services,Grants and Subscriptions,Disbursements,,12/05/2022,10997868,0,150,R,Cost of Living Payments
Finance,Revenues Department,Resources,Supplies & Services,Grants and Subscriptions,Disbursements,,12/05/2022,10997870,0,150,R,Cost of Living Payments
Finance,Revenues Department,Resources,Supplies & Services,Grants and Subscriptions,Disbursements,,12/05/2022,10997872,0,150,R,Cost of Living Payments
Finance,Revenues Department,Resources,Supplies & Services,Grants and Subscriptions,Disbursements,,12/05/2022,10997874,0,150,R,Cost of Living Payments
Finance,Revenues Department,Resources,Supplies & Services,Grants and Subscriptions,Disbursements,,12/05/2022,10997876,0,150,R,Cost of Living Payments
Finance,Revenues Department,Resources,Supplies & Services,Grants and Subscriptions,Disbursements,,12/05/2022,10997878,0,150,R,Cost of Living Payments
Finance,Revenues Department,Resources,Supplies & Services,Grants and Subscriptions,Disbursements,,12/05/2022,10997880,0,150,R,Cost of Living Payments
Finance,Revenues Department,Resources,Supplies & Services,Grants and Subscriptions,Disbursements,,12/05/2022,10997882,0,150,R,Cost of Living Payments
Finance,Revenues Department,Resources,Supplies & Services,Grants and Subscriptions,Disbursements,,12/05/2022,10997884,0,150,R,Cost of Living Payments
Finance,Revenues Department,Resources,Supplies & Services,Grants and Subscriptions,Disbursements,,12/05/2022,10997886,0,150,R,Cost of Living Payments
Finance,Revenues Department,Resources,Supplies & Services,Grants and Subscriptions,Disbursements,,12/05/2022,10997888,0,150,R,Cost of Living Payments
Finance,Revenues Department,Resources,Supplies & Services,Grants and Subscriptions,Disbursements,,12/05/2022,10997890,0,150,R,Cost of Living Payments
Finance,Revenues Department,Resources,Supplies & Services,Grants and Subscriptions,Disbursements,,12/05/2022,10997892,0,150,R,Cost of Living Payments
Finance,Revenues Department,Resources,Supplies & Services,Grants and Subscriptions,Disbursements,,12/05/2022,10997894,0,150,R,Cost of Living Payments
Finance,Revenues Department,Resources,Supplies & Services,Grants and Subscriptions,Disbursements,,12/05/2022,10997896,0,150,R,Cost of Living Payments
Finance,Revenues Department,Resources,Supplies & Services,Grants and Subscriptions,Disbursements,,12/05/2022,10997898,0,150,R,Cost of Living Payments
Finance,Revenues Department,Resources,Supplies & Services,Grants and Subscriptions,Disbursements,,12/05/2022,10997900,0,150,R,Cost of Living Payments
Finance,Revenues Department,Resources,Supplies & Services,Grants and Subscriptions,Disbursements,,12/05/2022,10997902,0,150,R,Cost of Living Payments
Finance,Revenues Department,Resources,Supplies & Services,Grants and Subscriptions,Disbursements,,12/05/2022,10997904,0,150,R,Cost of Living Payments
Finance,Revenues Department,Resources,Supplies & Services,Grants and Subscriptions,Disbursements,,12/05/2022,10997906,0,150,R,Cost of Living Payments
Finance,Revenues Department,Resources,Supplies & Services,Grants and Subscriptions,Disbursements,,12/05/2022,10997908,0,150,R,Cost of Living Payments
Finance,Revenues Department,Resources,Supplies & Services,Grants and Subscriptions,Disbursements,,12/05/2022,10997910,0,150,R,Cost of Living Payments
Finance,Revenues Department,Resources,Supplies & Services,Grants and Subscriptions,Disbursements,,12/05/2022,10997912,0,150,R,Cost of Living Payments
Finance,Revenues Department,Resources,Supplies & Services,Grants and Subscriptions,Disbursements,,12/05/2022,10997914,0,150,R,Cost of Living Payments
Finance,Revenues Department,Resources,Supplies & Services,Grants and Subscriptions,Disbursements,,12/05/2022,10997916,0,150,R,Cost of Living Payments
Finance,Revenues Department,Resources,Supplies & Services,Grants and Subscriptions,Disbursements,,12/05/2022,10997918,0,150,R,Cost of Living Payments
Finance,Revenues Department,Resources,Supplies & Services,Grants and Subscriptions,Disbursements,,12/05/2022,10997920,0,150,R,Cost of Living Payments
Finance,Revenues Department,Resources,Supplies & Services,Grants and Subscriptions,Disbursements,,12/05/2022,10997922,0,150,R,Cost of Living Payments
Finance,Revenues Department,Resources,Supplies & Services,Grants and Subscriptions,Disbursements,,12/05/2022,10997924,0,150,R,Cost of Living Payments
Finance,Revenues Department,Resources,Supplies & Services,Grants and Subscriptions,Disbursements,,12/05/2022,10997926,0,150,R,Cost of Living Payments
Finance,Revenues Department,Resources,Supplies & Services,Grants and Subscriptions,Disbursements,,12/05/2022,10997928,0,150,R,Cost of Living Payments
Finance,Revenues Department,Resources,Supplies & Services,Grants and Subscriptions,Disbursements,,12/05/2022,10997930,0,150,R,Cost of Living Payments
Finance,Revenues Department,Resources,Supplies & Services,Grants and Subscriptions,Disbursements,,12/05/2022,10997932,0,150,R,Cost of Living Payments
Finance,Revenues Department,Resources,Supplies & Services,Grants and Subscriptions,Disbursements,,12/05/2022,10997934,0,150,R,Cost of Living Payments
Finance,Revenues Department,Resources,Supplies & Services,Grants and Subscriptions,Disbursements,,12/05/2022,10997936,0,150,R,Cost of Living Payments
Finance,Revenues Department,Resources,Supplies & Services,Grants and Subscriptions,Disbursements,,12/05/2022,10997938,0,150,R,Cost of Living Payments
Finance,Revenues Department,Resources,Supplies & Services,Grants and Subscriptions,Disbursements,,12/05/2022,10997940,0,150,R,Cost of Living Payments
Finance,Revenues Department,Resources,Supplies & Services,Grants and Subscriptions,Disbursements,,12/05/2022,10997942,0,150,R,Cost of Living Payments
Finance,Revenues Department,Resources,Supplies & Services,Grants and Subscriptions,Disbursements,,12/05/2022,10997944,0,150,R,Cost of Living Payments
Finance,Revenues Department,Resources,Supplies & Services,Grants and Subscriptions,Disbursements,,12/05/2022,10997946,0,150,R,Cost of Living Payments
Finance,Revenues Department,Resources,Supplies & Services,Grants and Subscriptions,Disbursements,,12/05/2022,10997948,0,150,R,Cost of Living Payments
Finance,Revenues Department,Resources,Supplies & Services,Grants and Subscriptions,Disbursements,,12/05/2022,10997949,0,150,R,Cost of Living Payments
Finance,Revenues Department,Resources,Supplies & Services,Grants and Subscriptions,Disbursements,,12/05/2022,10997951,0,150,R,Cost of Living Payments
Finance,Revenues Department,Resources,Supplies & Services,Grants and Subscriptions,Disbursements,,12/05/2022,10997953,0,150,R,Cost of Living Payments
Finance,Revenues Department,Resources,Supplies & Services,Grants and Subscriptions,Disbursements,,12/05/2022,10997955,0,150,R,Cost of Living Payments
Finance,Revenues Department,Resources,Supplies & Services,Grants and Subscriptions,Disbursements,,12/05/2022,10997957,0,150,R,Cost of Living Payments
Finance,Revenues Department,Resources,Supplies & Services,Grants and Subscriptions,Disbursements,,12/05/2022,10997959,0,150,R,Cost of Living Payments
Finance,Revenues Department,Resources,Supplies & Services,Grants and Subscriptions,Disbursements,,12/05/2022,10997961,0,150,R,Cost of Living Payments
Finance,Revenues Department,Resources,Supplies & Services,Grants and Subscriptions,Disbursements,,12/05/2022,10997963,0,150,R,Cost of Living Payments
Finance,Revenues Department,Resources,Supplies & Services,Grants and Subscriptions,Disbursements,,12/05/2022,10997965,0,150,R,Cost of Living Payments
Finance,Revenues Department,Resources,Supplies & Services,Grants and Subscriptions,Disbursements,,12/05/2022,10997967,0,150,R,Cost of Living Payments
Finance,Revenues Department,Resources,Supplies & Services,Grants and Subscriptions,Disbursements,,12/05/2022,10997969,0,150,R,Cost of Living Payments
Finance,Revenues Department,Resources,Supplies & Services,Grants and Subscriptions,Disbursements,,12/05/2022,10997971,0,150,R,Cost of Living Payments
Finance,Revenues Department,Resources,Supplies & Services,Grants and Subscriptions,Disbursements,,12/05/2022,10997973,0,150,R,Cost of Living Payments
Finance,Revenues Department,Resources,Supplies & Services,Grants and Subscriptions,Disbursements,,12/05/2022,10997975,0,150,R,Cost of Living Payments
Finance,Revenues Department,Resources,Supplies & Services,Grants and Subscriptions,Disbursements,,12/05/2022,10997977,0,150,R,Cost of Living Payments
Finance,Revenues Department,Resources,Supplies & Services,Grants and Subscriptions,Disbursements,,12/05/2022,10997978,0,150,R,Cost of Living Payments
Finance,Revenues Department,Resources,Supplies & Services,Grants and Subscriptions,Disbursements,,12/05/2022,10997980,0,150,R,Cost of Living Payments
Finance,Revenues Department,Resources,Supplies & Services,Grants and Subscriptions,Disbursements,,12/05/2022,10997982,0,150,R,Cost of Living Payments
Finance,Revenues Department,Resources,Supplies & Services,Grants and Subscriptions,Disbursements,,12/05/2022,10997984,0,150,R,Cost of Living Payments
Finance,Revenues Department,Resources,Supplies & Services,Grants and Subscriptions,Disbursements,,12/05/2022,10997986,0,150,R,Cost of Living Payments
Finance,Revenues Department,Resources,Supplies & Services,Grants and Subscriptions,Disbursements,,12/05/2022,10997988,0,150,R,Cost of Living Payments
Finance,Revenues Department,Resources,Supplies & Services,Grants and Subscriptions,Disbursements,,12/05/2022,10997989,0,150,R,Cost of Living Payments
Finance,Revenues Department,Resources,Supplies & Services,Grants and Subscriptions,Disbursements,,12/05/2022,10997991,0,150,R,Cost of Living Payments
Finance,Revenues Department,Resources,Supplies & Services,Grants and Subscriptions,Disbursements,,12/05/2022,10997993,0,150,R,Cost of Living Payments
Finance,Revenues Department,Resources,Supplies & Services,Grants and Subscriptions,Disbursements,,12/05/2022,10997995,0,150,R,Cost of Living Payments
Finance,Revenues Department,Resources,Supplies & Services,Grants and Subscriptions,Disbursements,,12/05/2022,10997997,0,150,R,Cost of Living Payments
Finance,Revenues Department,Resources,Supplies & Services,Grants and Subscriptions,Disbursements,,12/05/2022,10997999,0,150,R,Cost of Living Payments
Finance,Revenues Department,Resources,Supplies & Services,Grants and Subscriptions,Disbursements,,12/05/2022,10998001,0,150,R,Cost of Living Payments
Finance,Revenues Department,Resources,Supplies & Services,Grants and Subscriptions,Disbursements,,12/05/2022,10998003,0,150,R,Cost of Living Payments
Finance,Revenues Department,Resources,Supplies & Services,Grants and Subscriptions,Disbursements,,12/05/2022,10998005,0,150,R,Cost of Living Payments
Finance,Revenues Department,Resources,Supplies & Services,Grants and Subscriptions,Disbursements,,12/05/2022,10998007,0,150,R,Cost of Living Payments
Finance,Revenues Department,Resources,Supplies & Services,Grants and Subscriptions,Disbursements,,12/05/2022,10998009,0,150,R,Cost of Living Payments
Finance,Revenues Department,Resources,Supplies & Services,Grants and Subscriptions,Disbursements,,12/05/2022,10998011,0,150,R,Cost of Living Payments
Finance,Revenues Department,Resources,Supplies & Services,Grants and Subscriptions,Disbursements,,12/05/2022,10998013,0,150,R,Cost of Living Payments
Finance,Revenues Department,Resources,Supplies & Services,Grants and Subscriptions,Disbursements,,12/05/2022,10998015,0,150,R,Cost of Living Payments
Finance,Revenues Department,Resources,Supplies & Services,Grants and Subscriptions,Disbursements,,12/05/2022,10998017,0,150,R,Cost of Living Payments
Finance,Revenues Department,Resources,Supplies & Services,Grants and Subscriptions,Disbursements,,12/05/2022,10998019,0,150,R,Cost of Living Payments
Finance,Revenues Department,Resources,Supplies & Services,Grants and Subscriptions,Disbursements,,12/05/2022,10998021,0,150,R,Cost of Living Payments
Finance,Revenues Department,Resources,Supplies & Services,Grants and Subscriptions,Disbursements,,12/05/2022,10998023,0,150,R,Cost of Living Payments
Finance,Revenues Department,Resources,Supplies & Services,Grants and Subscriptions,Disbursements,,12/05/2022,10998025,0,150,R,Cost of Living Payments
Finance,Revenues Department,Resources,Supplies & Services,Grants and Subscriptions,Disbursements,,12/05/2022,10998027,0,150,R,Cost of Living Payments
Finance,Revenues Department,Resources,Supplies & Services,Grants and Subscriptions,Disbursements,,12/05/2022,10998029,0,150,R,Cost of Living Payments
Finance,Revenues Department,Resources,Supplies & Services,Grants and Subscriptions,Disbursements,,12/05/2022,10998031,0,150,R,Cost of Living Payments
Finance,Revenues Department,Resources,Supplies & Services,Grants and Subscriptions,Disbursements,,12/05/2022,10998033,0,150,R,Cost of Living Payments
Finance,Revenues Department,Resources,Supplies & Services,Grants and Subscriptions,Disbursements,,12/05/2022,10998034,0,150,R,Cost of Living Payments
Finance,Revenues Department,Resources,Supplies & Services,Grants and Subscriptions,Disbursements,,12/05/2022,10998036,0,150,R,Cost of Living Payments
Finance,Revenues Department,Resources,Supplies & Services,Grants and Subscriptions,Disbursements,,12/05/2022,10998038,0,150,R,Cost of Living Payments
Finance,Revenues Department,Resources,Supplies & Services,Grants and Subscriptions,Disbursements,,12/05/2022,10998040,0,150,R,Cost of Living Payments
Finance,Revenues Department,Resources,Supplies & Services,Grants and Subscriptions,Disbursements,,12/05/2022,10998042,0,150,R,Cost of Living Payments
Finance,Revenues Department,Resources,Supplies & Services,Grants and Subscriptions,Disbursements,,12/05/2022,10998044,0,150,R,Cost of Living Payments
Finance,Revenues Department,Resources,Supplies & Services,Grants and Subscriptions,Disbursements,,12/05/2022,10998047,0,150,R,Cost of Living Payments
Finance,Revenues Department,Resources,Supplies & Services,Grants and Subscriptions,Disbursements,,12/05/2022,10998049,0,150,R,Cost of Living Payments
Finance,Revenues Department,Resources,Supplies & Services,Grants and Subscriptions,Disbursements,,12/05/2022,10998051,0,150,R,Cost of Living Payments
Finance,Revenues Department,Resources,Supplies & Services,Grants and Subscriptions,Disbursements,,12/05/2022,10998053,0,150,R,Cost of Living Payments
Finance,Revenues Department,Resources,Supplies & Services,Grants and Subscriptions,Disbursements,,12/05/2022,10998055,0,150,R,Cost of Living Payments
Finance,Revenues Department,Resources,Supplies & Services,Grants and Subscriptions,Disbursements,,12/05/2022,10998057,0,150,R,Cost of Living Payments
Finance,Revenues Department,Resources,Supplies & Services,Grants and Subscriptions,Disbursements,,12/05/2022,10998059,0,150,R,Cost of Living Payments
Finance,Revenues Department,Resources,Supplies & Services,Grants and Subscriptions,Disbursements,,12/05/2022,10998061,0,150,R,Cost of Living Payments
Finance,Revenues Department,Resources,Supplies & Services,Grants and Subscriptions,Disbursements,,12/05/2022,10998063,0,150,R,Cost of Living Payments
Finance,Revenues Department,Resources,Supplies & Services,Grants and Subscriptions,Disbursements,,12/05/2022,10998065,0,150,R,Cost of Living Payments
Finance,Revenues Department,Resources,Supplies & Services,Grants and Subscriptions,Disbursements,,12/05/2022,10998067,0,150,R,Cost of Living Payments
Finance,Revenues Department,Resources,Supplies & Services,Grants and Subscriptions,Disbursements,,12/05/2022,10998069,0,150,R,Cost of Living Payments
Finance,Revenues Department,Resources,Supplies & Services,Grants and Subscriptions,Disbursements,,12/05/2022,10998071,0,150,R,Cost of Living Payments
Finance,Revenues Department,Resources,Supplies & Services,Grants and Subscriptions,Disbursements,,12/05/2022,10998073,0,150,R,Cost of Living Payments
Finance,Revenues Department,Resources,Supplies & Services,Grants and Subscriptions,Disbursements,,12/05/2022,10998075,0,150,R,Cost of Living Payments
Finance,Revenues Department,Resources,Supplies & Services,Grants and Subscriptions,Disbursements,,12/05/2022,10998077,0,150,R,Cost of Living Payments
Finance,Revenues Department,Resources,Supplies & Services,Grants and Subscriptions,Disbursements,,12/05/2022,10998079,0,150,R,Cost of Living Payments
Finance,Revenues Department,Resources,Supplies & Services,Grants and Subscriptions,Disbursements,,12/05/2022,10998081,0,150,R,Cost of Living Payments
Finance,Revenues Department,Resources,Supplies & Services,Grants and Subscriptions,Disbursements,,12/05/2022,10998083,0,150,R,Cost of Living Payments
Finance,Revenues Department,Resources,Supplies & Services,Grants and Subscriptions,Disbursements,,12/05/2022,10998085,0,150,R,Cost of Living Payments
Finance,Revenues Department,Resources,Supplies & Services,Grants and Subscriptions,Disbursements,,12/05/2022,10998087,0,150,R,Cost of Living Payments
Finance,Revenues Department,Resources,Supplies & Services,Grants and Subscriptions,Disbursements,,12/05/2022,10998089,0,150,R,Cost of Living Payments
Finance,Revenues Department,Resources,Supplies & Services,Grants and Subscriptions,Disbursements,,12/05/2022,10998090,0,150,R,Cost of Living Payments
Finance,Revenues Department,Resources,Supplies & Services,Grants and Subscriptions,Disbursements,,12/05/2022,10998092,0,150,R,Cost of Living Payments
Finance,Revenues Department,Resources,Supplies & Services,Grants and Subscriptions,Disbursements,,12/05/2022,10998094,0,150,R,Cost of Living Payments
Finance,Revenues Department,Resources,Supplies & Services,Grants and Subscriptions,Disbursements,,12/05/2022,10998096,0,150,R,Cost of Living Payments
Finance,Revenues Department,Resources,Supplies & Services,Grants and Subscriptions,Disbursements,,12/05/2022,10998098,0,150,R,Cost of Living Payments
Finance,Revenues Department,Resources,Supplies & Services,Grants and Subscriptions,Disbursements,,12/05/2022,10998100,0,150,R,Cost of Living Payments
Finance,Revenues Department,Resources,Supplies & Services,Grants and Subscriptions,Disbursements,,12/05/2022,10998102,0,150,R,Cost of Living Payments
Finance,Revenues Department,Resources,Supplies & Services,Grants and Subscriptions,Disbursements,,12/05/2022,10998104,0,150,R,Cost of Living Payments
Finance,Revenues Department,Resources,Supplies & Services,Grants and Subscriptions,Disbursements,,12/05/2022,10998106,0,150,R,Cost of Living Payments
Finance,Revenues Department,Resources,Supplies & Services,Grants and Subscriptions,Disbursements,,12/05/2022,10998108,0,150,R,Cost of Living Payments
Finance,Revenues Department,Resources,Supplies & Services,Grants and Subscriptions,Disbursements,,12/05/2022,10998110,0,150,R,Cost of Living Payments
Finance,Revenues Department,Resources,Supplies & Services,Grants and Subscriptions,Disbursements,,12/05/2022,10998113,0,150,R,Cost of Living Payments
Finance,Revenues Department,Resources,Supplies & Services,Grants and Subscriptions,Disbursements,,12/05/2022,10998115,0,150,R,Cost of Living Payments
Finance,Revenues Department,Resources,Supplies & Services,Grants and Subscriptions,Disbursements,,12/05/2022,10998117,0,150,R,Cost of Living Payments
Finance,Revenues Department,Resources,Supplies & Services,Grants and Subscriptions,Disbursements,,12/05/2022,10998119,0,150,R,Cost of Living Payments
Finance,Revenues Department,Resources,Supplies & Services,Grants and Subscriptions,Disbursements,,12/05/2022,10998121,0,150,R,Cost of Living Payments
Finance,Revenues Department,Resources,Supplies & Services,Grants and Subscriptions,Disbursements,,12/05/2022,10998123,0,150,R,Cost of Living Payments
Finance,Revenues Department,Resources,Supplies & Services,Grants and Subscriptions,Disbursements,,12/05/2022,10998125,0,150,R,Cost of Living Payments
Finance,Revenues Department,Resources,Supplies & Services,Grants and Subscriptions,Disbursements,,12/05/2022,10998127,0,150,R,Cost of Living Payments
Finance,Revenues Department,Resources,Supplies & Services,Grants and Subscriptions,Disbursements,,12/05/2022,10998129,0,150,R,Cost of Living Payments
Finance,Revenues Department,Resources,Supplies & Services,Grants and Subscriptions,Disbursements,,12/05/2022,10998131,0,150,R,Cost of Living Payments
Finance,Revenues Department,Resources,Supplies & Services,Grants and Subscriptions,Disbursements,,12/05/2022,10998133,0,150,R,Cost of Living Payments
Finance,Revenues Department,Resources,Supplies & Services,Grants and Subscriptions,Disbursements,,12/05/2022,10998135,0,150,R,Cost of Living Payments
Finance,Revenues Department,Resources,Supplies & Services,Grants and Subscriptions,Disbursements,,12/05/2022,10998137,0,150,R,Cost of Living Payments
Finance,Revenues Department,Resources,Supplies & Services,Grants and Subscriptions,Disbursements,,12/05/2022,10998139,0,150,R,Cost of Living Payments
Finance,Revenues Department,Resources,Supplies & Services,Grants and Subscriptions,Disbursements,,12/05/2022,10998142,0,150,R,Cost of Living Payments
Finance,Revenues Department,Resources,Supplies & Services,Grants and Subscriptions,Disbursements,,12/05/2022,10998144,0,150,R,Cost of Living Payments
Finance,Revenues Department,Resources,Supplies & Services,Grants and Subscriptions,Disbursements,,12/05/2022,10998146,0,150,R,Cost of Living Payments
Finance,Revenues Department,Resources,Supplies & Services,Grants and Subscriptions,Disbursements,,12/05/2022,10998148,0,150,R,Cost of Living Payments
Finance,Revenues Department,Resources,Supplies & Services,Grants and Subscriptions,Disbursements,,12/05/2022,10998150,0,150,R,Cost of Living Payments
Finance,Revenues Department,Resources,Supplies & Services,Grants and Subscriptions,Disbursements,,12/05/2022,10998152,0,150,R,Cost of Living Payments
Finance,Revenues Department,Resources,Supplies & Services,Grants and Subscriptions,Disbursements,,12/05/2022,10998154,0,150,R,Cost of Living Payments
Finance,Revenues Department,Resources,Supplies & Services,Grants and Subscriptions,Disbursements,,12/05/2022,10998156,0,150,R,Cost of Living Payments
Finance,Revenues Department,Resources,Supplies & Services,Grants and Subscriptions,Disbursements,,12/05/2022,10998158,0,150,R,Cost of Living Payments
Finance,Revenues Department,Resources,Supplies & Services,Grants and Subscriptions,Disbursements,,12/05/2022,10998160,0,150,R,Cost of Living Payments
Finance,Revenues Department,Resources,Supplies & Services,Grants and Subscriptions,Disbursements,,12/05/2022,10998162,0,150,R,Cost of Living Payments
Finance,Revenues Department,Resources,Supplies & Services,Grants and Subscriptions,Disbursements,,12/05/2022,10998164,0,150,R,Cost of Living Payments
Finance,Revenues Department,Resources,Supplies & Services,Grants and Subscriptions,Disbursements,,12/05/2022,10998166,0,150,R,Cost of Living Payments
Finance,Revenues Department,Resources,Supplies & Services,Grants and Subscriptions,Disbursements,,12/05/2022,10998168,0,150,R,Cost of Living Payments
Finance,Revenues Department,Resources,Supplies & Services,Grants and Subscriptions,Disbursements,,12/05/2022,10998170,0,150,R,Cost of Living Payments
Finance,Revenues Department,Resources,Supplies & Services,Grants and Subscriptions,Disbursements,,12/05/2022,10998172,0,150,R,Cost of Living Payments
Finance,Revenues Department,Resources,Supplies & Services,Grants and Subscriptions,Disbursements,,12/05/2022,10998174,0,150,R,Cost of Living Payments
Finance,Revenues Department,Resources,Supplies & Services,Grants and Subscriptions,Disbursements,,12/05/2022,10998176,0,150,R,Cost of Living Payments
Finance,Revenues Department,Resources,Supplies & Services,Grants and Subscriptions,Disbursements,,12/05/2022,10998178,0,150,R,Cost of Living Payments
Finance,Revenues Department,Resources,Supplies & Services,Grants and Subscriptions,Disbursements,,12/05/2022,10998180,0,150,R,Cost of Living Payments
Finance,Revenues Department,Resources,Supplies & Services,Grants and Subscriptions,Disbursements,,12/05/2022,10998182,0,150,R,Cost of Living Payments
Finance,Revenues Department,Resources,Supplies & Services,Grants and Subscriptions,Disbursements,,12/05/2022,10998184,0,150,R,Cost of Living Payments
Finance,Revenues Department,Resources,Supplies & Services,Grants and Subscriptions,Disbursements,,12/05/2022,10998186,0,150,R,Cost of Living Payments
Finance,Revenues Department,Resources,Supplies & Services,Grants and Subscriptions,Disbursements,,12/05/2022,10998188,0,150,R,Cost of Living Payments
Finance,Revenues Department,Resources,Supplies & Services,Grants and Subscriptions,Disbursements,,12/05/2022,10998189,0,150,R,Cost of Living Payments
Finance,Revenues Department,Resources,Supplies & Services,Grants and Subscriptions,Disbursements,,12/05/2022,10998191,0,150,R,Cost of Living Payments
Finance,Revenues Department,Resources,Supplies & Services,Grants and Subscriptions,Disbursements,,12/05/2022,10998193,0,150,R,Cost of Living Payments
Finance,Revenues Department,Resources,Supplies & Services,Grants and Subscriptions,Disbursements,,12/05/2022,10998195,0,150,R,Cost of Living Payments
Finance,Revenues Department,Resources,Supplies & Services,Grants and Subscriptions,Disbursements,,12/05/2022,10998197,0,150,R,Cost of Living Payments
Finance,Revenues Department,Resources,Supplies & Services,Grants and Subscriptions,Disbursements,,12/05/2022,10998199,0,150,R,Cost of Living Payments
Finance,Revenues Department,Resources,Supplies & Services,Grants and Subscriptions,Disbursements,,12/05/2022,10998201,0,150,R,Cost of Living Payments
Finance,Revenues Department,Resources,Supplies & Services,Grants and Subscriptions,Disbursements,,12/05/2022,10998202,0,150,R,Cost of Living Payments
Finance,Revenues Department,Resources,Supplies & Services,Grants and Subscriptions,Disbursements,,12/05/2022,10998204,0,150,R,Cost of Living Payments
Finance,Revenues Department,Resources,Supplies & Services,Grants and Subscriptions,Disbursements,,12/05/2022,10998205,0,150,R,Cost of Living Payments
Finance,Revenues Department,Resources,Supplies & Services,Grants and Subscriptions,Disbursements,,12/05/2022,10998207,0,150,R,Cost of Living Payments
Finance,Revenues Department,Resources,Supplies & Services,Grants and Subscriptions,Disbursements,,12/05/2022,10998209,0,150,R,Cost of Living Payments
Finance,Revenues Department,Resources,Supplies & Services,Grants and Subscriptions,Disbursements,,12/05/2022,10998211,0,150,R,Cost of Living Payments
Finance,Revenues Department,Resources,Supplies & Services,Grants and Subscriptions,Disbursements,,12/05/2022,10998213,0,150,R,Cost of Living Payments
Finance,Revenues Department,Resources,Supplies & Services,Grants and Subscriptions,Disbursements,,12/05/2022,10998215,0,150,R,Cost of Living Payments
Finance,Revenues Department,Resources,Supplies & Services,Grants and Subscriptions,Disbursements,,12/05/2022,10998217,0,150,R,Cost of Living Payments
Finance,Revenues Department,Resources,Supplies & Services,Grants and Subscriptions,Disbursements,,12/05/2022,10998219,0,150,R,Cost of Living Payments
Finance,Revenues Department,Resources,Supplies & Services,Grants and Subscriptions,Disbursements,,12/05/2022,10998221,0,150,R,Cost of Living Payments
Finance,Revenues Department,Resources,Supplies & Services,Grants and Subscriptions,Disbursements,,12/05/2022,10998223,0,150,R,Cost of Living Payments
Finance,Revenues Department,Resources,Supplies & Services,Grants and Subscriptions,Disbursements,,12/05/2022,10998225,0,150,R,Cost of Living Payments
Finance,Revenues Department,Resources,Supplies & Services,Grants and Subscriptions,Disbursements,,12/05/2022,10998227,0,150,R,Cost of Living Payments
Finance,Revenues Department,Resources,Supplies & Services,Grants and Subscriptions,Disbursements,,12/05/2022,10998229,0,150,R,Cost of Living Payments
Finance,Revenues Department,Resources,Supplies & Services,Grants and Subscriptions,Disbursements,,12/05/2022,10998231,0,150,R,Cost of Living Payments
Finance,Revenues Department,Resources,Supplies & Services,Grants and Subscriptions,Disbursements,,12/05/2022,10998233,0,150,R,Cost of Living Payments
Finance,Revenues Department,Resources,Supplies & Services,Grants and Subscriptions,Disbursements,,12/05/2022,10998235,0,150,R,Cost of Living Payments
Finance,Revenues Department,Resources,Supplies & Services,Grants and Subscriptions,Disbursements,,12/05/2022,10998238,0,150,R,Cost of Living Payments
Finance,Revenues Department,Resources,Supplies & Services,Grants and Subscriptions,Disbursements,,12/05/2022,10998240,0,150,R,Cost of Living Payments
Finance,Revenues Department,Resources,Supplies & Services,Grants and Subscriptions,Disbursements,,12/05/2022,10998242,0,150,R,Cost of Living Payments
Finance,Revenues Department,Resources,Supplies & Services,Grants and Subscriptions,Disbursements,,12/05/2022,10998244,0,150,R,Cost of Living Payments
Finance,Revenues Department,Resources,Supplies & Services,Grants and Subscriptions,Disbursements,,12/05/2022,10998246,0,150,R,Cost of Living Payments
Finance,Revenues Department,Resources,Supplies & Services,Grants and Subscriptions,Disbursements,,12/05/2022,10998248,0,150,R,Cost of Living Payments
Finance,Revenues Department,Resources,Supplies & Services,Grants and Subscriptions,Disbursements,,12/05/2022,10998250,0,150,R,Cost of Living Payments
Finance,Revenues Department,Resources,Supplies & Services,Grants and Subscriptions,Disbursements,,12/05/2022,10998252,0,150,R,Cost of Living Payments
Finance,Revenues Department,Resources,Supplies & Services,Grants and Subscriptions,Disbursements,,12/05/2022,10998254,0,150,R,Cost of Living Payments
Finance,Revenues Department,Resources,Supplies & Services,Grants and Subscriptions,Disbursements,,12/05/2022,10998256,0,150,R,Cost of Living Payments
Finance,Revenues Department,Resources,Supplies & Services,Grants and Subscriptions,Disbursements,,12/05/2022,10998258,0,150,R,Cost of Living Payments
Finance,Revenues Department,Resources,Supplies & Services,Grants and Subscriptions,Disbursements,,12/05/2022,10998260,0,150,R,Cost of Living Payments
Finance,Revenues Department,Resources,Supplies & Services,Grants and Subscriptions,Disbursements,,12/05/2022,10998262,0,150,R,Cost of Living Payments
Finance,Revenues Department,Resources,Supplies & Services,Grants and Subscriptions,Disbursements,,12/05/2022,10998264,0,150,R,Cost of Living Payments
Finance,Revenues Department,Resources,Supplies & Services,Grants and Subscriptions,Disbursements,,12/05/2022,10998266,0,150,R,Cost of Living Payments
Finance,Revenues Department,Resources,Supplies & Services,Grants and Subscriptions,Disbursements,,12/05/2022,10998268,0,150,R,Cost of Living Payments
Finance,Revenues Department,Resources,Supplies & Services,Grants and Subscriptions,Disbursements,,12/05/2022,10998270,0,150,R,Cost of Living Payments
Finance,Revenues Department,Resources,Supplies & Services,Grants and Subscriptions,Disbursements,,12/05/2022,10998272,0,150,R,Cost of Living Payments
Finance,Revenues Department,Resources,Supplies & Services,Grants and Subscriptions,Disbursements,,12/05/2022,10998274,0,150,R,Cost of Living Payments
Finance,Revenues Department,Resources,Supplies & Services,Grants and Subscriptions,Disbursements,,12/05/2022,10998276,0,150,R,Cost of Living Payments
Finance,Revenues Department,Resources,Supplies & Services,Grants and Subscriptions,Disbursements,,12/05/2022,10998278,0,150,R,Cost of Living Payments
Finance,Revenues Department,Resources,Supplies & Services,Grants and Subscriptions,Disbursements,,12/05/2022,10998280,0,150,R,Cost of Living Payments
Finance,Revenues Department,Resources,Supplies & Services,Grants and Subscriptions,Disbursements,,12/05/2022,10998282,0,150,R,Cost of Living Payments
Finance,Revenues Department,Resources,Supplies & Services,Grants and Subscriptions,Disbursements,,12/05/2022,10998285,0,150,R,Cost of Living Payments
Finance,Revenues Department,Resources,Supplies & Services,Grants and Subscriptions,Disbursements,,12/05/2022,10998287,0,150,R,Cost of Living Payments
Finance,Revenues Department,Resources,Supplies & Services,Grants and Subscriptions,Disbursements,,12/05/2022,10998289,0,150,R,Cost of Living Payments
Finance,Revenues Department,Resources,Supplies & Services,Grants and Subscriptions,Disbursements,,12/05/2022,10998291,0,150,R,Cost of Living Payments
Finance,Revenues Department,Resources,Supplies & Services,Grants and Subscriptions,Disbursements,,12/05/2022,10998293,0,150,R,Cost of Living Payments
Finance,Revenues Department,Resources,Supplies & Services,Grants and Subscriptions,Disbursements,,12/05/2022,10998295,0,150,R,Cost of Living Payments
